Body,Body Name,Date,TransNo,Amount � (Excl VAT),Supplier name,Supplier ID,Expense Area,Expense Type,Expense Code
http://statistics.data.gov.uk/id/local-authority/00BF,London Borough of Sutton,04/09/2017,6915999,"3,280.20",21st Century Legacy Ltd,99891,Peoples Services Directorate,Agency Services,G431
http://statistics.data.gov.uk/id/local-authority/00BF,London Borough of Sutton,24/05/2017,6916197,500.00,8th Cheam Scout Group,99891,"Environment, Housing & Regeneration Directorate",Assistance to Voluntary Organisations,F471
http://statistics.data.gov.uk/id/local-authority/00BF,London Borough of Sutton,22/09/2017,6916997,655.00,A T Sound Hire,10306,"Environment, Housing & Regeneration Directorate",Other Equipment-Hire,F070
http://statistics.data.gov.uk/id/local-authority/00BF,London Borough of Sutton,22/09/2017,6917003,695.00,A T Sound Hire,10306,"Environment, Housing & Regeneration Directorate",General Office Expenses,F235
http://statistics.data.gov.uk/id/local-authority/00BF,London Borough of Sutton,01/08/2017,6915850,"1,546.90",A To Z Property Management Ltd,26729,"Environment, Housing & Regeneration Directorate",Bed and Breakfast Accommodation,G400
http://statistics.data.gov.uk/id/local-authority/00BF,London Borough of Sutton,01/08/2017,6915851,"1,546.90",A To Z Property Management Ltd,26729,"Environment, Housing & Regeneration Directorate",Bed and Breakfast Accommodation,G400
http://statistics.data.gov.uk/id/local-authority/00BF,London Borough of Sutton,01/08/2017,6915852,525.00,A To Z Property Management Ltd,26729,"Environment, Housing & Regeneration Directorate",Bed and Breakfast Accommodation,G400
http://statistics.data.gov.uk/id/local-authority/00BF,London Borough of Sutton,17/08/2017,6915209,868.00,AA Guesthouses Ltd,29292,Peoples Services Directorate,C.C.A Rent & Utilities,H211
http://statistics.data.gov.uk/id/local-authority/00BF,London Borough of Sutton,08/09/2017,40109622,"2,280.00",Abbeyfield Kent Society,28532,Peoples Services Directorate,Residential Care - Ext Provider,G310
http://statistics.data.gov.uk/id/local-authority/00BF,London Borough of Sutton,18/09/2017,1242434,"2,431.80",ABC Pre-School Beddington LLP,28675,Peoples Services Directorate,Non-Maintained Childrens' Nurseries - 2 Year Olds,G404
http://statistics.data.gov.uk/id/local-authority/00BF,London Borough of Sutton,18/09/2017,1242484,"1,853.58",ABC Pre-School Beddington LLP,28675,Peoples Services Directorate,Non-Maintained Childrens' Nurseries - 3 & 4 yr olds,G405
http://statistics.data.gov.uk/id/local-authority/00BF,London Borough of Sutton,28/08/2017,6915860,486.42,Absolute Care Services Ltd,10021,Peoples Services Directorate,Homecare Core Services,G336
http://statistics.data.gov.uk/id/local-authority/00BF,London Borough of Sutton,04/09/2017,6915957,"5,766.81",Absolute Care Services Ltd,10021,Peoples Services Directorate,Homecare Core Services,G336
http://statistics.data.gov.uk/id/local-authority/00BF,London Borough of Sutton,04/09/2017,6915958,921.69,Absolute Care Services Ltd,10021,Peoples Services Directorate,Homecare Core Services,G336
http://statistics.data.gov.uk/id/local-authority/00BF,London Borough of Sutton,01/09/2017,6915959,"1,469.76",Absolute Care Services Ltd,10021,Peoples Services Directorate,Rent - General,D650
http://statistics.data.gov.uk/id/local-authority/00BF,London Borough of Sutton,04/09/2017,6916255,486.42,Absolute Care Services Ltd,10021,Peoples Services Directorate,Homecare Core Services,G336
http://statistics.data.gov.uk/id/local-authority/00BF,London Borough of Sutton,11/09/2017,6916303,"5,070.19",Absolute Care Services Ltd,10021,Peoples Services Directorate,Homecare Core Services,G336
http://statistics.data.gov.uk/id/local-authority/00BF,London Borough of Sutton,11/09/2017,6916305,"5,766.81",Absolute Care Services Ltd,10021,Peoples Services Directorate,Homecare Core Services,G336
http://statistics.data.gov.uk/id/local-authority/00BF,London Borough of Sutton,11/09/2017,6916306,921.69,Absolute Care Services Ltd,10021,Peoples Services Directorate,Homecare Core Services,G336
http://statistics.data.gov.uk/id/local-authority/00BF,London Borough of Sutton,11/09/2017,6916476,486.42,Absolute Care Services Ltd,10021,Peoples Services Directorate,Homecare Core Services,G336
http://statistics.data.gov.uk/id/local-authority/00BF,London Borough of Sutton,18/09/2017,6916652,"5,070.19",Absolute Care Services Ltd,10021,Peoples Services Directorate,Homecare Core Services,G336
http://statistics.data.gov.uk/id/local-authority/00BF,London Borough of Sutton,18/09/2017,6916654,"5,766.81",Absolute Care Services Ltd,10021,Peoples Services Directorate,Homecare Core Services,G336
http://statistics.data.gov.uk/id/local-authority/00BF,London Borough of Sutton,18/09/2017,6916655,921.69,Absolute Care Services Ltd,10021,Peoples Services Directorate,Homecare Core Services,G336
http://statistics.data.gov.uk/id/local-authority/00BF,London Borough of Sutton,23/07/2017,40108050,583.93,Absolute Care Services Ltd,10021,Peoples Services Directorate,Home Care,G334
http://statistics.data.gov.uk/id/local-authority/00BF,London Borough of Sutton,20/08/2017,40108051,583.93,Absolute Care Services Ltd,10021,Peoples Services Directorate,Home Care,G334
http://statistics.data.gov.uk/id/local-authority/00BF,London Borough of Sutton,23/07/2017,40108065,500.84,Absolute Care Services Ltd,10021,Peoples Services Directorate,Home Care,G334
http://statistics.data.gov.uk/id/local-authority/00BF,London Borough of Sutton,20/08/2017,40108066,500.84,Absolute Care Services Ltd,10021,Peoples Services Directorate,Home Care,G334
http://statistics.data.gov.uk/id/local-authority/00BF,London Borough of Sutton,20/08/2017,40108092,468.58,Absolute Care Services Ltd,10021,Peoples Services Directorate,Home Care,G334
http://statistics.data.gov.uk/id/local-authority/00BF,London Borough of Sutton,20/08/2017,40108098,426.56,Absolute Care Services Ltd,10021,Peoples Services Directorate,Home Care,G334
http://statistics.data.gov.uk/id/local-authority/00BF,London Borough of Sutton,20/08/2017,40108099,433.44,Absolute Care Services Ltd,10021,Peoples Services Directorate,Home Care,G334
http://statistics.data.gov.uk/id/local-authority/00BF,London Borough of Sutton,20/08/2017,40108114,433.44,Absolute Care Services Ltd,10021,Peoples Services Directorate,Home Care,G334
http://statistics.data.gov.uk/id/local-authority/00BF,London Borough of Sutton,20/08/2017,40108119,460.04,Absolute Care Services Ltd,10021,Peoples Services Directorate,Home Care,G334
http://statistics.data.gov.uk/id/local-authority/00BF,London Borough of Sutton,13/07/2017,40114546,541.15,Absolute Care Services Ltd,10021,Peoples Services Directorate,Home Care,G334
http://statistics.data.gov.uk/id/local-authority/00BF,London Borough of Sutton,13/07/2017,40114547,458.20,Absolute Care Services Ltd,10021,Peoples Services Directorate,Home Care,G334
http://statistics.data.gov.uk/id/local-authority/00BF,London Borough of Sutton,06/07/2017,40114552,564.85,Absolute Care Services Ltd,10021,Peoples Services Directorate,Home Care,G334
http://statistics.data.gov.uk/id/local-authority/00BF,London Borough of Sutton,03/08/2017,40114571,466.10,Absolute Care Services Ltd,10021,Peoples Services Directorate,Home Care,G334
http://statistics.data.gov.uk/id/local-authority/00BF,London Borough of Sutton,28/07/2017,40114574,447.62,Absolute Care Services Ltd,10021,Peoples Services Directorate,Home Care,G334
http://statistics.data.gov.uk/id/local-authority/00BF,London Borough of Sutton,13/07/2017,40114577,513.50,Absolute Care Services Ltd,10021,Peoples Services Directorate,Home Care,G334
http://statistics.data.gov.uk/id/local-authority/00BF,London Borough of Sutton,20/06/2017,40114856,501.65,Absolute Care Services Ltd,10021,Peoples Services Directorate,Home Care,G334
http://statistics.data.gov.uk/id/local-authority/00BF,London Borough of Sutton,13/08/2017,40114865,447.62,Absolute Care Services Ltd,10021,Peoples Services Directorate,Home Care,G334
http://statistics.data.gov.uk/id/local-authority/00BF,London Borough of Sutton,13/08/2017,40114914,596.82,Absolute Care Services Ltd,10021,Peoples Services Directorate,Home Care,G334
http://statistics.data.gov.uk/id/local-authority/00BF,London Borough of Sutton,13/08/2017,40114960,447.62,Absolute Care Services Ltd,10021,Peoples Services Directorate,Home Care,G334
http://statistics.data.gov.uk/id/local-authority/00BF,London Borough of Sutton,13/08/2017,40115006,447.62,Absolute Care Services Ltd,10021,Peoples Services Directorate,Home Care,G334
http://statistics.data.gov.uk/id/local-authority/00BF,London Borough of Sutton,13/08/2017,40115009,497.35,Absolute Care Services Ltd,10021,Peoples Services Directorate,Home Care,G334
http://statistics.data.gov.uk/id/local-authority/00BF,London Borough of Sutton,04/06/2017,40115045,583.93,Absolute Care Services Ltd,10021,Peoples Services Directorate,Home Care,G334
http://statistics.data.gov.uk/id/local-authority/00BF,London Borough of Sutton,11/06/2017,40115046,583.93,Absolute Care Services Ltd,10021,Peoples Services Directorate,Home Care,G334
http://statistics.data.gov.uk/id/local-authority/00BF,London Borough of Sutton,04/06/2017,40115065,534.79,Absolute Care Services Ltd,10021,Peoples Services Directorate,Home Care,G334
http://statistics.data.gov.uk/id/local-authority/00BF,London Borough of Sutton,11/06/2017,40115066,534.79,Absolute Care Services Ltd,10021,Peoples Services Directorate,Home Care,G334
http://statistics.data.gov.uk/id/local-authority/00BF,London Borough of Sutton,13/08/2017,40115078,"2,415.00",Absolute Care Services Ltd,10021,Peoples Services Directorate,Home Care,G334
http://statistics.data.gov.uk/id/local-authority/00BF,London Borough of Sutton,13/08/2017,40115101,497.35,Absolute Care Services Ltd,10021,Peoples Services Directorate,Home Care,G334
http://statistics.data.gov.uk/id/local-authority/00BF,London Borough of Sutton,31/08/2017,1241900,"2,664.00",Access Mobility Transport Ltd,27456,Peoples Services Directorate,Hired Peoples Transport (Children),E072
http://statistics.data.gov.uk/id/local-authority/00BF,London Borough of Sutton,01/08/2017,40109205,"10,407.01",Acorn Homes UK Ltd,25726,Peoples Services Directorate,Residential Care-Children,G330
http://statistics.data.gov.uk/id/local-authority/00BF,London Borough of Sutton,08/09/2017,40109389,"2,903.20",Acorn Lodge,15804,Peoples Services Directorate,Residential Care - Ext Provider,G310
http://statistics.data.gov.uk/id/local-authority/00BF,London Borough of Sutton,08/09/2017,40109758,"3,042.36",Acorn Residential Home,15828,Peoples Services Directorate,Residential Care - Ext Provider,G310
http://statistics.data.gov.uk/id/local-authority/00BF,London Borough of Sutton,15/09/2017,6916852,"1,513.75",Active Prospects,13617,Peoples Services Directorate,Provisions - General,F150
http://statistics.data.gov.uk/id/local-authority/00BF,London Borough of Sutton,15/09/2017,6916853,"1,025.00",Active Prospects,13617,Peoples Services Directorate,Provisions - General,F150
http://statistics.data.gov.uk/id/local-authority/00BF,London Borough of Sutton,21/09/2017,6916946,"1,435.00",Active Prospects,13617,Peoples Services Directorate,Provisions - General,F150
http://statistics.data.gov.uk/id/local-authority/00BF,London Borough of Sutton,27/09/2017,6917195,"1,435.00",Active Prospects,13617,Peoples Services Directorate,Provisions - General,F150
http://statistics.data.gov.uk/id/local-authority/00BF,London Borough of Sutton,02/08/2017,6914243,700.00,Adaram Ltd T/A Rosehill Lodging,12014,"Environment, Housing & Regeneration Directorate",Bed and Breakfast Accommodation,G400
http://statistics.data.gov.uk/id/local-authority/00BF,London Borough of Sutton,02/08/2017,6914244,700.00,Adaram Ltd T/A Rosehill Lodging,12014,"Environment, Housing & Regeneration Directorate",Bed and Breakfast Accommodation,G400
http://statistics.data.gov.uk/id/local-authority/00BF,London Borough of Sutton,02/08/2017,6914245,700.00,Adaram Ltd T/A Rosehill Lodging,12014,"Environment, Housing & Regeneration Directorate",Bed and Breakfast Accommodation,G400
http://statistics.data.gov.uk/id/local-authority/00BF,London Borough of Sutton,08/09/2017,40109689,"5,385.71",Addiction Recovery Centres Ltd,23357,Peoples Services Directorate,Residential Care - Ext Provider,G310
http://statistics.data.gov.uk/id/local-authority/00BF,London Borough of Sutton,08/09/2017,40109711,"1,077.14",Addiction Recovery Centres Ltd,23357,Peoples Services Directorate,Interim Placements - Ext Provider,G317
http://statistics.data.gov.uk/id/local-authority/00BF,London Borough of Sutton,01/09/2017,6916216,"158,312.11",Adecco Uk Ltd,10059,Resources Directorate,Suspense/Holding Accounts,X550
http://statistics.data.gov.uk/id/local-authority/00BF,London Borough of Sutton,17/08/2017,6916217,"103,540.94",Adecco Uk Ltd,10059,Resources Directorate,Suspense/Holding Accounts,X550
http://statistics.data.gov.uk/id/local-authority/00BF,London Borough of Sutton,10/08/2017,6916218,"40,528.34",Adecco Uk Ltd,10059,Resources Directorate,Suspense/Holding Accounts,X550
http://statistics.data.gov.uk/id/local-authority/00BF,London Borough of Sutton,07/08/2017,6916219,"224,199.68",Adecco Uk Ltd,10059,Resources Directorate,Suspense/Holding Accounts,X550
http://statistics.data.gov.uk/id/local-authority/00BF,London Borough of Sutton,27/07/2017,6916220,"181,290.10",Adecco Uk Ltd,10059,Resources Directorate,Suspense/Holding Accounts,X550
http://statistics.data.gov.uk/id/local-authority/00BF,London Borough of Sutton,25/08/2017,6916275,"208,447.11",Adecco Uk Ltd,10059,Resources Directorate,Suspense/Holding Accounts,X550
http://statistics.data.gov.uk/id/local-authority/00BF,London Borough of Sutton,15/09/2017,6916765,"187,424.74",Adecco Uk Ltd,10059,Resources Directorate,Suspense/Holding Accounts,X550
http://statistics.data.gov.uk/id/local-authority/00BF,London Borough of Sutton,25/10/2016,6917223,570.13,Adecco Uk Ltd,10059,Resources Directorate,Suspense/Holding Accounts,X550
http://statistics.data.gov.uk/id/local-authority/00BF,London Borough of Sutton,01/09/2017,6916373,550.79,Adt Fire & Security Plc,10063,Peoples Services Directorate,Security Systems - SCH,D880
http://statistics.data.gov.uk/id/local-authority/00BF,London Borough of Sutton,07/09/2017,6916165,"4,166.66",Advocacy For All,24795,Peoples Services Directorate,Provider Contract Payments,F470
http://statistics.data.gov.uk/id/local-authority/00BF,London Borough of Sutton,07/09/2017,6916166,"15,833.33",Advocacy For All,24795,Peoples Services Directorate,Provider Contract Payments,F470
http://statistics.data.gov.uk/id/local-authority/00BF,London Borough of Sutton,13/09/2017,6916794,"1,800.00",Aecom Infrastructure & Environment UK Ltd,29144,"Environment, Housing & Regeneration Directorate",Fees - Consultants (Ad Hoc),F283
http://statistics.data.gov.uk/id/local-authority/00BF,London Borough of Sutton,12/04/2017,6916128,571.16,Agilisys Contact Services Ltd,25894,Resources Directorate,Fees - Bailiffs,F302
http://statistics.data.gov.uk/id/local-authority/00BF,London Borough of Sutton,23/05/2017,6916129,949.30,Agilisys Contact Services Ltd,25894,Resources Directorate,Fees - Bailiffs,F302
http://statistics.data.gov.uk/id/local-authority/00BF,London Borough of Sutton,08/09/2017,40109479,"7,511.00",Aims Care Partnership (Leighton House Ltd),12628,Peoples Services Directorate,Residential Care - Ext Provider,G310
http://statistics.data.gov.uk/id/local-authority/00BF,London Borough of Sutton,08/09/2017,40109392,"5,278.00",Aitch Care Homes,20446,Peoples Services Directorate,Residential Care - Ext Provider,G310
http://statistics.data.gov.uk/id/local-authority/00BF,London Borough of Sutton,08/09/2017,40109504,"8,400.16",Aitch Care Homes,20446,Peoples Services Directorate,Residential Care - Ext Provider,G310
http://statistics.data.gov.uk/id/local-authority/00BF,London Borough of Sutton,21/12/2016,6916534,806.00,Alere Toxicology Plc,24389,Peoples Services Directorate,Children Assessments,G329
http://statistics.data.gov.uk/id/local-authority/00BF,London Borough of Sutton,28/06/2017,6916535,807.80,Alere Toxicology Plc,24389,Peoples Services Directorate,Children Assessments,G329
http://statistics.data.gov.uk/id/local-authority/00BF,London Borough of Sutton,13/07/2017,6916536,505.40,Alere Toxicology Plc,24389,Peoples Services Directorate,Children Assessments,G329
http://statistics.data.gov.uk/id/local-authority/00BF,London Borough of Sutton,01/09/2017,6916068,"1,426.50",All Security Ltd,97190,"Environment, Housing & Regeneration Directorate",Agency Services,G431
http://statistics.data.gov.uk/id/local-authority/00BF,London Borough of Sutton,05/09/2017,6916082,"2,450.00",Allen Lane Ltd,18334,Resources Directorate,Agency Staff - Other,A301
http://statistics.data.gov.uk/id/local-authority/00BF,London Borough of Sutton,05/09/2017,6916084,"1,294.12",Allen Lane Ltd,18334,Resources Directorate,Agency Staff - Other,A301
http://statistics.data.gov.uk/id/local-authority/00BF,London Borough of Sutton,12/09/2017,6916415,"1,750.00",Allen Lane Ltd,18334,Resources Directorate,Agency Staff - Other,A301
http://statistics.data.gov.uk/id/local-authority/00BF,London Borough of Sutton,12/09/2017,6916416,"1,400.00",Allen Lane Ltd,18334,Resources Directorate,Agency Staff - Other,A301
http://statistics.data.gov.uk/id/local-authority/00BF,London Borough of Sutton,12/09/2017,6916417,970.59,Allen Lane Ltd,18334,Resources Directorate,Agency Staff - Other,A301
http://statistics.data.gov.uk/id/local-authority/00BF,London Borough of Sutton,19/09/2017,6916796,"1,750.00",Allen Lane Ltd,18334,Resources Directorate,Agency Staff - Other,A301
http://statistics.data.gov.uk/id/local-authority/00BF,London Borough of Sutton,19/09/2017,6916797,"1,617.65",Allen Lane Ltd,18334,Resources Directorate,Agency Staff - Other,A301
http://statistics.data.gov.uk/id/local-authority/00BF,London Borough of Sutton,08/09/2017,40109350,"3,625.00",Alliance Care (Dale Homes) Ltd T/A Uplands Care Home,26835,Peoples Services Directorate,Nursing Care - Ext Provider,G311
http://statistics.data.gov.uk/id/local-authority/00BF,London Borough of Sutton,08/09/2017,40109384,"6,234.48",Allied Care (Mhs) Ltd,10145,Peoples Services Directorate,Residential Care - Ext Provider,G310
http://statistics.data.gov.uk/id/local-authority/00BF,London Borough of Sutton,31/07/2017,6914560,573.98,Allstar Business Solutions,24482,"Environment, Housing & Regeneration Directorate",Fuel Etc,E030
http://statistics.data.gov.uk/id/local-authority/00BF,London Borough of Sutton,15/08/2017,6915280,660.36,Allstar Business Solutions,24482,"Environment, Housing & Regeneration Directorate",Fuel Etc,E030
http://statistics.data.gov.uk/id/local-authority/00BF,London Borough of Sutton,31/08/2017,6916273,551.71,Allstar Business Solutions,24482,"Environment, Housing & Regeneration Directorate",Fuel Etc,E030
http://statistics.data.gov.uk/id/local-authority/00BF,London Borough of Sutton,08/09/2017,40109493,"6,370.00",Allswell Care Services Ltd,20761,Peoples Services Directorate,Residential Care - Ext Provider,G310
http://statistics.data.gov.uk/id/local-authority/00BF,London Borough of Sutton,08/09/2017,40109597,"3,480.00",Allswell Care Services Ltd,20761,Peoples Services Directorate,Residential Care - Ext Provider,G310
http://statistics.data.gov.uk/id/local-authority/00BF,London Borough of Sutton,08/09/2017,40109600,"4,400.00",Allswell Care Services Ltd,20761,Peoples Services Directorate,Residential Care - Ext Provider,G310
http://statistics.data.gov.uk/id/local-authority/00BF,London Borough of Sutton,11/09/2017,6916369,"1,035.00",Allwag Promotions Ltd,25960,"Environment, Housing & Regeneration Directorate",Advertising/Publicity (non Staff),F240
http://statistics.data.gov.uk/id/local-authority/00BF,London Borough of Sutton,14/09/2017,6916539,"8,084.00",Alzheimers Society Sutton Branch,10114,Peoples Services Directorate,Provider Contract Payments,F470
http://statistics.data.gov.uk/id/local-authority/00BF,London Borough of Sutton,31/07/2017,40109255,"13,268.00",Amegreen Childrens Services,27145,Peoples Services Directorate,Residential Care-Children,G330
http://statistics.data.gov.uk/id/local-authority/00BF,London Borough of Sutton,31/08/2017,6916086,"9,730.00",Ameo Professional Services Ltd,27868,Chief Executive's Directorate,Fees - Consultants (Ad Hoc),F283
http://statistics.data.gov.uk/id/local-authority/00BF,London Borough of Sutton,31/08/2017,6916087,"40,086.20",Ameo Professional Services Ltd,27868,Resources Directorate,Internal Fees - Project Management,Y180
http://statistics.data.gov.uk/id/local-authority/00BF,London Borough of Sutton,13/09/2017,1242286,"1,200.00",Amy Johnson Day Nursery,22840,Peoples Services Directorate,Non-Maintained Childrens' Nurseries - 2 Year Olds,G404
http://statistics.data.gov.uk/id/local-authority/00BF,London Borough of Sutton,29/08/2017,40109217,"17,556.57",Anderida Adolescent Care Ltd,26195,Peoples Services Directorate,Residential Care-Children,G330
http://statistics.data.gov.uk/id/local-authority/00BF,London Borough of Sutton,08/09/2017,40109449,"1,370.52",Angel Home AS Ltd,10173,Peoples Services Directorate,Residential Care - Ext Provider,G310
http://statistics.data.gov.uk/id/local-authority/00BF,London Borough of Sutton,08/09/2017,40109450,"2,200.00",Angel Home AS Ltd,10173,Peoples Services Directorate,Residential Care - Ext Provider,G310
http://statistics.data.gov.uk/id/local-authority/00BF,London Borough of Sutton,08/09/2017,40109470,"1,101.86",Angel Home AS Ltd,10173,Peoples Services Directorate,Residential Care - Ext Provider,G310
http://statistics.data.gov.uk/id/local-authority/00BF,London Borough of Sutton,08/09/2017,40109811,"1,229.48",Angel Home AS Ltd,10173,Peoples Services Directorate,Residential Care - Ext Provider,G310
http://statistics.data.gov.uk/id/local-authority/00BF,London Borough of Sutton,18/09/2017,1242561,"1,050.00",Angela Ives,29706,Peoples Services Directorate,Non-Maintained Childrens' Nurseries - 3 & 4 yr olds,G405
http://statistics.data.gov.uk/id/local-authority/00BF,London Borough of Sutton,31/08/2017,6916093,"6,354.43",Apetito Ltd,10206,Peoples Services Directorate,Provisions - General,F150
http://statistics.data.gov.uk/id/local-authority/00BF,London Borough of Sutton,31/07/2017,6916531,"1,772.20",Apex Housing Solutions Ltd,29950,"Environment, Housing & Regeneration Directorate",Bed and Breakfast Accommodation,G400
http://statistics.data.gov.uk/id/local-authority/00BF,London Borough of Sutton,31/08/2017,6916532,"2,368.90",Apex Housing Solutions Ltd,29950,"Environment, Housing & Regeneration Directorate",Bed and Breakfast Accommodation,G400
http://statistics.data.gov.uk/id/local-authority/00BF,London Borough of Sutton,30/06/2017,6916533,"1,020.00",Apex Housing Solutions Ltd,29950,"Environment, Housing & Regeneration Directorate",Bed and Breakfast Accommodation,G400
http://statistics.data.gov.uk/id/local-authority/00BF,London Borough of Sutton,31/05/2017,6916560,578.00,Apex Housing Solutions Ltd,29950,"Environment, Housing & Regeneration Directorate",Bed and Breakfast Accommodation,G400
http://statistics.data.gov.uk/id/local-authority/00BF,London Borough of Sutton,30/07/2017,40108132,518.00,Aquaflocare Ltd,26274,Peoples Services Directorate,Home Care,G334
http://statistics.data.gov.uk/id/local-authority/00BF,London Borough of Sutton,06/08/2017,40108133,518.00,Aquaflocare Ltd,26274,Peoples Services Directorate,Home Care,G334
http://statistics.data.gov.uk/id/local-authority/00BF,London Borough of Sutton,20/08/2017,40108134,518.00,Aquaflocare Ltd,26274,Peoples Services Directorate,Home Care,G334
http://statistics.data.gov.uk/id/local-authority/00BF,London Borough of Sutton,05/09/2017,6916211,"1,785.00",Architype Ltd,25419,Peoples Services Directorate,Building Regs & Planning App. Fees,Y191
http://statistics.data.gov.uk/id/local-authority/00BF,London Borough of Sutton,05/09/2017,6916252,"9,859.00",Architype Ltd,25419,Peoples Services Directorate,External Fees  - Architects,Y100
http://statistics.data.gov.uk/id/local-authority/00BF,London Borough of Sutton,12/09/2017,6916679,"1,865.00",Architype Ltd,25419,Peoples Services Directorate,External Fees  - Architects,Y100
http://statistics.data.gov.uk/id/local-authority/00BF,London Borough of Sutton,22/08/2017,40109229,"10,807.13",Area Camden Ltd,29908,Peoples Services Directorate,Residential Care-Children,G330
http://statistics.data.gov.uk/id/local-authority/00BF,London Borough of Sutton,19/09/2017,6916847,"5,750.00",Ascendit Lifts Limited,99815,"Environment, Housing & Regeneration Directorate",Grants -Made,Y610
http://statistics.data.gov.uk/id/local-authority/00BF,London Borough of Sutton,01/08/2017,40108789,"1,049.97",Ashbrook House Ltd,23499,Peoples Services Directorate,Supported Living - Ext Provider,G306
http://statistics.data.gov.uk/id/local-authority/00BF,London Borough of Sutton,01/09/2017,40108731,884.48,Ashlong House Ltd,23101,Peoples Services Directorate,Supported Living - Ext Provider,G306
http://statistics.data.gov.uk/id/local-authority/00BF,London Borough of Sutton,01/08/2017,40108795,"2,058.40",Ashlong House Ltd,23101,Peoples Services Directorate,Supported Living - Ext Provider,G306
http://statistics.data.gov.uk/id/local-authority/00BF,London Borough of Sutton,08/09/2017,40109352,"4,926.00",Ashlong House Ltd,23101,Peoples Services Directorate,Residential Care - Ext Provider,G310
http://statistics.data.gov.uk/id/local-authority/00BF,London Borough of Sutton,08/09/2017,40109643,"3,852.52",Ashtead House Ltd,29629,Peoples Services Directorate,Nursing Care - Ext Provider,G311
http://statistics.data.gov.uk/id/local-authority/00BF,London Borough of Sutton,08/09/2017,40109628,"3,600.00",Asprey Healthcare Ltd (Smallbrook Care Home),29112,Peoples Services Directorate,Residential Care - Ext Provider,G310
http://statistics.data.gov.uk/id/local-authority/00BF,London Borough of Sutton,31/08/2017,6917104,961.00,Assetgrove Lettings Ltd,28820,"Environment, Housing & Regeneration Directorate",Bed and Breakfast Accommodation,G400
http://statistics.data.gov.uk/id/local-authority/00BF,London Borough of Sutton,31/08/2017,6917105,961.00,Assetgrove Lettings Ltd,28820,"Environment, Housing & Regeneration Directorate",Bed and Breakfast Accommodation,G400
http://statistics.data.gov.uk/id/local-authority/00BF,London Borough of Sutton,31/08/2017,6917106,"1,619.75",Assetgrove Lettings Ltd,28820,"Environment, Housing & Regeneration Directorate",Bed and Breakfast Accommodation,G400
http://statistics.data.gov.uk/id/local-authority/00BF,London Borough of Sutton,31/08/2017,6917107,"1,236.90",Assetgrove Lettings Ltd,28820,"Environment, Housing & Regeneration Directorate",Bed and Breakfast Accommodation,G400
http://statistics.data.gov.uk/id/local-authority/00BF,London Borough of Sutton,31/08/2017,6917108,"1,236.90",Assetgrove Lettings Ltd,28820,"Environment, Housing & Regeneration Directorate",Bed and Breakfast Accommodation,G400
http://statistics.data.gov.uk/id/local-authority/00BF,London Borough of Sutton,31/08/2017,6917111,"1,240.00",Assetgrove Lettings Ltd,28820,"Environment, Housing & Regeneration Directorate",Bed and Breakfast Accommodation,G400
http://statistics.data.gov.uk/id/local-authority/00BF,London Borough of Sutton,31/08/2017,6917112,"1,085.00",Assetgrove Lettings Ltd,28820,"Environment, Housing & Regeneration Directorate",Bed and Breakfast Accommodation,G400
http://statistics.data.gov.uk/id/local-authority/00BF,London Borough of Sutton,31/08/2017,6917113,"1,054.00",Assetgrove Lettings Ltd,28820,"Environment, Housing & Regeneration Directorate",Bed and Breakfast Accommodation,G400
http://statistics.data.gov.uk/id/local-authority/00BF,London Borough of Sutton,31/08/2017,6917116,"1,085.00",Assetgrove Lettings Ltd,28820,"Environment, Housing & Regeneration Directorate",Bed and Breakfast Accommodation,G400
http://statistics.data.gov.uk/id/local-authority/00BF,London Borough of Sutton,31/08/2017,6917117,"1,085.00",Assetgrove Lettings Ltd,28820,"Environment, Housing & Regeneration Directorate",Bed and Breakfast Accommodation,G400
http://statistics.data.gov.uk/id/local-authority/00BF,London Borough of Sutton,31/08/2017,6917118,"1,302.00",Assetgrove Lettings Ltd,28820,"Environment, Housing & Regeneration Directorate",Bed and Breakfast Accommodation,G400
http://statistics.data.gov.uk/id/local-authority/00BF,London Borough of Sutton,31/08/2017,6917119,899.00,Assetgrove Lettings Ltd,28820,"Environment, Housing & Regeneration Directorate",Bed and Breakfast Accommodation,G400
http://statistics.data.gov.uk/id/local-authority/00BF,London Borough of Sutton,31/08/2017,6917120,961.00,Assetgrove Lettings Ltd,28820,"Environment, Housing & Regeneration Directorate",Bed and Breakfast Accommodation,G400
http://statistics.data.gov.uk/id/local-authority/00BF,London Borough of Sutton,31/08/2017,6917121,"1,085.00",Assetgrove Lettings Ltd,28820,"Environment, Housing & Regeneration Directorate",Bed and Breakfast Accommodation,G400
http://statistics.data.gov.uk/id/local-authority/00BF,London Borough of Sutton,31/08/2017,6917122,961.00,Assetgrove Lettings Ltd,28820,"Environment, Housing & Regeneration Directorate",Bed and Breakfast Accommodation,G400
http://statistics.data.gov.uk/id/local-authority/00BF,London Borough of Sutton,31/08/2017,6917123,"1,054.00",Assetgrove Lettings Ltd,28820,"Environment, Housing & Regeneration Directorate",Bed and Breakfast Accommodation,G400
http://statistics.data.gov.uk/id/local-authority/00BF,London Borough of Sutton,31/08/2017,6917124,961.00,Assetgrove Lettings Ltd,28820,"Environment, Housing & Regeneration Directorate",Bed and Breakfast Accommodation,G400
http://statistics.data.gov.uk/id/local-authority/00BF,London Borough of Sutton,31/08/2017,6917125,961.00,Assetgrove Lettings Ltd,28820,"Environment, Housing & Regeneration Directorate",Bed and Breakfast Accommodation,G400
http://statistics.data.gov.uk/id/local-authority/00BF,London Borough of Sutton,31/08/2017,6917126,961.00,Assetgrove Lettings Ltd,28820,"Environment, Housing & Regeneration Directorate",Bed and Breakfast Accommodation,G400
http://statistics.data.gov.uk/id/local-authority/00BF,London Borough of Sutton,31/08/2017,6917127,961.00,Assetgrove Lettings Ltd,28820,"Environment, Housing & Regeneration Directorate",Bed and Breakfast Accommodation,G400
http://statistics.data.gov.uk/id/local-authority/00BF,London Borough of Sutton,31/08/2017,6917128,"1,015.00",Assetgrove Lettings Ltd,28820,"Environment, Housing & Regeneration Directorate",Bed and Breakfast Accommodation,G400
http://statistics.data.gov.uk/id/local-authority/00BF,London Borough of Sutton,31/08/2017,6917129,961.00,Assetgrove Lettings Ltd,28820,"Environment, Housing & Regeneration Directorate",Bed and Breakfast Accommodation,G400
http://statistics.data.gov.uk/id/local-authority/00BF,London Borough of Sutton,31/08/2017,6917130,"1,054.00",Assetgrove Lettings Ltd,28820,"Environment, Housing & Regeneration Directorate",Bed and Breakfast Accommodation,G400
http://statistics.data.gov.uk/id/local-authority/00BF,London Borough of Sutton,31/08/2017,6917131,961.00,Assetgrove Lettings Ltd,28820,"Environment, Housing & Regeneration Directorate",Bed and Breakfast Accommodation,G400
http://statistics.data.gov.uk/id/local-authority/00BF,London Borough of Sutton,31/08/2017,6917132,961.00,Assetgrove Lettings Ltd,28820,"Environment, Housing & Regeneration Directorate",Bed and Breakfast Accommodation,G400
http://statistics.data.gov.uk/id/local-authority/00BF,London Borough of Sutton,31/08/2017,6917133,961.00,Assetgrove Lettings Ltd,28820,"Environment, Housing & Regeneration Directorate",Bed and Breakfast Accommodation,G400
http://statistics.data.gov.uk/id/local-authority/00BF,London Borough of Sutton,31/08/2017,6917134,"1,054.00",Assetgrove Lettings Ltd,28820,"Environment, Housing & Regeneration Directorate",Bed and Breakfast Accommodation,G400
http://statistics.data.gov.uk/id/local-authority/00BF,London Borough of Sutton,31/08/2017,6917136,"1,054.00",Assetgrove Lettings Ltd,28820,"Environment, Housing & Regeneration Directorate",Bed and Breakfast Accommodation,G400
http://statistics.data.gov.uk/id/local-authority/00BF,London Borough of Sutton,31/08/2017,6917137,"1,236.90",Assetgrove Lettings Ltd,28820,"Environment, Housing & Regeneration Directorate",Bed and Breakfast Accommodation,G400
http://statistics.data.gov.uk/id/local-authority/00BF,London Borough of Sutton,31/08/2017,6917138,961.00,Assetgrove Lettings Ltd,28820,"Environment, Housing & Regeneration Directorate",Bed and Breakfast Accommodation,G400
http://statistics.data.gov.uk/id/local-authority/00BF,London Borough of Sutton,31/08/2017,6917139,961.00,Assetgrove Lettings Ltd,28820,"Environment, Housing & Regeneration Directorate",Bed and Breakfast Accommodation,G400
http://statistics.data.gov.uk/id/local-authority/00BF,London Borough of Sutton,31/08/2017,6917140,961.00,Assetgrove Lettings Ltd,28820,"Environment, Housing & Regeneration Directorate",Bed and Breakfast Accommodation,G400
http://statistics.data.gov.uk/id/local-authority/00BF,London Borough of Sutton,31/08/2017,6917141,961.00,Assetgrove Lettings Ltd,28820,"Environment, Housing & Regeneration Directorate",Bed and Breakfast Accommodation,G400
http://statistics.data.gov.uk/id/local-authority/00BF,London Borough of Sutton,31/08/2017,6917142,961.00,Assetgrove Lettings Ltd,28820,"Environment, Housing & Regeneration Directorate",Bed and Breakfast Accommodation,G400
http://statistics.data.gov.uk/id/local-authority/00BF,London Borough of Sutton,31/08/2017,6917143,"1,943.70",Assetgrove Lettings Ltd,28820,"Environment, Housing & Regeneration Directorate",Bed and Breakfast Accommodation,G400
http://statistics.data.gov.uk/id/local-authority/00BF,London Borough of Sutton,31/08/2017,6917144,930.00,Assetgrove Lettings Ltd,28820,"Environment, Housing & Regeneration Directorate",Bed and Breakfast Accommodation,G400
http://statistics.data.gov.uk/id/local-authority/00BF,London Borough of Sutton,31/08/2017,6917145,961.00,Assetgrove Lettings Ltd,28820,"Environment, Housing & Regeneration Directorate",Bed and Breakfast Accommodation,G400
http://statistics.data.gov.uk/id/local-authority/00BF,London Borough of Sutton,31/08/2017,6917146,961.00,Assetgrove Lettings Ltd,28820,"Environment, Housing & Regeneration Directorate",Bed and Breakfast Accommodation,G400
http://statistics.data.gov.uk/id/local-authority/00BF,London Borough of Sutton,31/08/2017,6917147,961.00,Assetgrove Lettings Ltd,28820,"Environment, Housing & Regeneration Directorate",Bed and Breakfast Accommodation,G400
http://statistics.data.gov.uk/id/local-authority/00BF,London Borough of Sutton,31/08/2017,6917148,961.00,Assetgrove Lettings Ltd,28820,"Environment, Housing & Regeneration Directorate",Bed and Breakfast Accommodation,G400
http://statistics.data.gov.uk/id/local-authority/00BF,London Borough of Sutton,31/08/2017,6917149,961.00,Assetgrove Lettings Ltd,28820,"Environment, Housing & Regeneration Directorate",Bed and Breakfast Accommodation,G400
http://statistics.data.gov.uk/id/local-authority/00BF,London Borough of Sutton,31/08/2017,6917150,961.00,Assetgrove Lettings Ltd,28820,"Environment, Housing & Regeneration Directorate",Bed and Breakfast Accommodation,G400
http://statistics.data.gov.uk/id/local-authority/00BF,London Borough of Sutton,31/08/2017,6917151,"1,236.90",Assetgrove Lettings Ltd,28820,"Environment, Housing & Regeneration Directorate",Bed and Breakfast Accommodation,G400
http://statistics.data.gov.uk/id/local-authority/00BF,London Borough of Sutton,31/08/2017,6917152,"1,236.90",Assetgrove Lettings Ltd,28820,"Environment, Housing & Regeneration Directorate",Bed and Breakfast Accommodation,G400
http://statistics.data.gov.uk/id/local-authority/00BF,London Borough of Sutton,31/08/2017,6917153,961.00,Assetgrove Lettings Ltd,28820,"Environment, Housing & Regeneration Directorate",Bed and Breakfast Accommodation,G400
http://statistics.data.gov.uk/id/local-authority/00BF,London Borough of Sutton,31/08/2017,6917154,961.00,Assetgrove Lettings Ltd,28820,"Environment, Housing & Regeneration Directorate",Bed and Breakfast Accommodation,G400
http://statistics.data.gov.uk/id/local-authority/00BF,London Borough of Sutton,31/08/2017,6917155,961.00,Assetgrove Lettings Ltd,28820,"Environment, Housing & Regeneration Directorate",Bed and Breakfast Accommodation,G400
http://statistics.data.gov.uk/id/local-authority/00BF,London Borough of Sutton,31/08/2017,6917156,"1,149.50",Assetgrove Lettings Ltd,28820,"Environment, Housing & Regeneration Directorate",Bed and Breakfast Accommodation,G400
http://statistics.data.gov.uk/id/local-authority/00BF,London Borough of Sutton,31/08/2017,6917157,961.00,Assetgrove Lettings Ltd,28820,"Environment, Housing & Regeneration Directorate",Bed and Breakfast Accommodation,G400
http://statistics.data.gov.uk/id/local-authority/00BF,London Borough of Sutton,31/08/2017,6917158,434.00,Assetgrove Lettings Ltd,28820,"Environment, Housing & Regeneration Directorate",Bed and Breakfast Accommodation,G400
http://statistics.data.gov.uk/id/local-authority/00BF,London Borough of Sutton,31/08/2017,6917159,961.00,Assetgrove Lettings Ltd,28820,"Environment, Housing & Regeneration Directorate",Bed and Breakfast Accommodation,G400
http://statistics.data.gov.uk/id/local-authority/00BF,London Borough of Sutton,31/08/2017,6917160,558.00,Assetgrove Lettings Ltd,28820,"Environment, Housing & Regeneration Directorate",Bed and Breakfast Accommodation,G400
http://statistics.data.gov.uk/id/local-authority/00BF,London Borough of Sutton,31/08/2017,6917163,465.00,Assetgrove Lettings Ltd,28820,"Environment, Housing & Regeneration Directorate",Bed and Breakfast Accommodation,G400
http://statistics.data.gov.uk/id/local-authority/00BF,London Borough of Sutton,08/09/2017,40109500,"3,639.72",Assurance Care Services Ltd T/A Christ the King Residential Care Homes,27458,Peoples Services Directorate,Residential Care - Ext Provider,G310
http://statistics.data.gov.uk/id/local-authority/00BF,London Borough of Sutton,10/08/2017,6915985,"1,194.53",Atkins Ltd,10307,Peoples Services Directorate,External Fees  - Architects,Y100
http://statistics.data.gov.uk/id/local-authority/00BF,London Borough of Sutton,20/09/2017,6916828,"1,285.52",Atkins Ltd,10307,Peoples Services Directorate,External Fees  - Architects,Y100
http://statistics.data.gov.uk/id/local-authority/00BF,London Borough of Sutton,29/08/2017,6916003,"5,446.70",Aurora Resourcing,26400,Peoples Services Directorate,Agency Staff - Other,A301
http://statistics.data.gov.uk/id/local-authority/00BF,London Borough of Sutton,08/09/2017,40109387,"4,580.72",Autism & Aspergers Care Services,10327,Peoples Services Directorate,Residential Care - Ext Provider,G310
http://statistics.data.gov.uk/id/local-authority/00BF,London Borough of Sutton,08/09/2017,40109346,"2,805.00",Avante Ltd (Weybourne),24009,Peoples Services Directorate,Residential Care - Ext Provider,G310
http://statistics.data.gov.uk/id/local-authority/00BF,London Borough of Sutton,13/09/2017,1242259,"28,123.33",Avenue Primary Acadamy,26025,Peoples Services Directorate,Top-up Funding,G064
http://statistics.data.gov.uk/id/local-authority/00BF,London Borough of Sutton,22/09/2017,6916942,"5,000.00",Axiell Ltd,25933,Peoples Services Directorate,Operating Lease - General,F060
http://statistics.data.gov.uk/id/local-authority/00BF,London Borough of Sutton,18/09/2017,1242528,"22,032.50",B Mallen T/A The Adventure Pre-School,10072,Peoples Services Directorate,Non-Maintained Childrens' Nurseries - 3 & 4 yr olds,G405
http://statistics.data.gov.uk/id/local-authority/00BF,London Borough of Sutton,08/09/2017,40109530,"3,200.00",Balcombe Care Homes Ltd,10367,Peoples Services Directorate,Nursing Care - Ext Provider,G311
http://statistics.data.gov.uk/id/local-authority/00BF,London Borough of Sutton,08/09/2017,40109564,"3,200.00",Balcombe Care Homes Ltd,10367,Peoples Services Directorate,Nursing Care - Ext Provider,G311
http://statistics.data.gov.uk/id/local-authority/00BF,London Borough of Sutton,13/09/2017,1242287,600.00,Bandon Hill Pre-School,10357,Peoples Services Directorate,Non-Maintained Childrens' Nurseries - 2 Year Olds,G404
http://statistics.data.gov.uk/id/local-authority/00BF,London Borough of Sutton,18/09/2017,1242436,694.80,Bandon Hill Pre-School,10357,Peoples Services Directorate,Non-Maintained Childrens' Nurseries - 2 Year Olds,G404
http://statistics.data.gov.uk/id/local-authority/00BF,London Borough of Sutton,18/09/2017,1242486,"4,219.50",Bandon Hill Pre-School,10357,Peoples Services Directorate,Non-Maintained Childrens' Nurseries - 3 & 4 yr olds,G405
http://statistics.data.gov.uk/id/local-authority/00BF,London Borough of Sutton,13/09/2017,1242260,"233,020.00",Bandon Hill Primary,10372,Peoples Services Directorate,Top-up Funding,G064
http://statistics.data.gov.uk/id/local-authority/00BF,London Borough of Sutton,22/09/2017,1242877,"1,275.00",Bandon Hill Primary,10372,Peoples Services Directorate,Special Educational Needs,G331
http://statistics.data.gov.uk/id/local-authority/00BF,London Borough of Sutton,30/08/2017,6917060,"66,131.48",Bandon Hill Primary,10372,Peoples Services Directorate,Building Works-Sub Contractor,Y360
http://statistics.data.gov.uk/id/local-authority/00BF,London Borough of Sutton,30/08/2017,6917060,"10,416.38",Bandon Hill Primary,10372,Peoples Services Directorate,Equipment It,Y523
http://statistics.data.gov.uk/id/local-authority/00BF,London Borough of Sutton,30/08/2017,6917060,"24,006.16",Bandon Hill Primary,10372,Peoples Services Directorate,Furniture & Fittings,Y500
http://statistics.data.gov.uk/id/local-authority/00BF,London Borough of Sutton,08/09/2017,40109615,"4,000.00",Barchester Healthcare - Atfield House,27028,Peoples Services Directorate,Nursing Care - Ext Provider,G311
http://statistics.data.gov.uk/id/local-authority/00BF,London Borough of Sutton,29/08/2017,40107443,567.00,Barnardo's,10370,Peoples Services Directorate,Provider Contract Payments,F470
http://statistics.data.gov.uk/id/local-authority/00BF,London Borough of Sutton,29/08/2017,40107444,672.00,Barnardo's,10370,Peoples Services Directorate,Provider Contract Payments,F470
http://statistics.data.gov.uk/id/local-authority/00BF,London Borough of Sutton,29/08/2017,40107445,441.00,Barnardo's,10370,Peoples Services Directorate,Provider Contract Payments,F470
http://statistics.data.gov.uk/id/local-authority/00BF,London Borough of Sutton,29/08/2017,40107448,420.00,Barnardo's,10370,Peoples Services Directorate,Provider Contract Payments,F470
http://statistics.data.gov.uk/id/local-authority/00BF,London Borough of Sutton,29/08/2017,40107449,814.00,Barnardo's,10370,Peoples Services Directorate,Provider Contract Payments,F470
http://statistics.data.gov.uk/id/local-authority/00BF,London Borough of Sutton,29/08/2017,40107451,575.00,Barnardo's,10370,Peoples Services Directorate,Provider Contract Payments,F470
http://statistics.data.gov.uk/id/local-authority/00BF,London Borough of Sutton,29/08/2017,40107452,630.00,Barnardo's,10370,Peoples Services Directorate,Provider Contract Payments,F470
http://statistics.data.gov.uk/id/local-authority/00BF,London Borough of Sutton,29/08/2017,40107455,528.00,Barnardo's,10370,Peoples Services Directorate,Provider Contract Payments,F470
http://statistics.data.gov.uk/id/local-authority/00BF,London Borough of Sutton,29/08/2017,40107457,828.00,Barnardo's,10370,Peoples Services Directorate,Provider Contract Payments,F470
http://statistics.data.gov.uk/id/local-authority/00BF,London Borough of Sutton,29/08/2017,40107462,"2,369.00",Barnardo's,10370,Peoples Services Directorate,Provider Contract Payments,F470
http://statistics.data.gov.uk/id/local-authority/00BF,London Borough of Sutton,29/08/2017,40107463,504.00,Barnardo's,10370,Peoples Services Directorate,Provider Contract Payments,F470
http://statistics.data.gov.uk/id/local-authority/00BF,London Borough of Sutton,29/08/2017,40107464,"1,023.00",Barnardo's,10370,Peoples Services Directorate,Provider Contract Payments,F470
http://statistics.data.gov.uk/id/local-authority/00BF,London Borough of Sutton,29/08/2017,40107471,805.00,Barnardo's,10370,Peoples Services Directorate,Provider Contract Payments,F470
http://statistics.data.gov.uk/id/local-authority/00BF,London Borough of Sutton,19/09/2017,40114195,616.00,Barnardo's,10370,Peoples Services Directorate,Provider Contract Payments,F470
http://statistics.data.gov.uk/id/local-authority/00BF,London Borough of Sutton,19/09/2017,40114201,"1,127.00",Barnardo's,10370,Peoples Services Directorate,Provider Contract Payments,F470
http://statistics.data.gov.uk/id/local-authority/00BF,London Borough of Sutton,19/09/2017,40114209,420.00,Barnardo's,10370,Peoples Services Directorate,Provider Contract Payments,F470
http://statistics.data.gov.uk/id/local-authority/00BF,London Borough of Sutton,19/09/2017,40114210,"1,334.00",Barnardo's,10370,Peoples Services Directorate,Provider Contract Payments,F470
http://statistics.data.gov.uk/id/local-authority/00BF,London Borough of Sutton,19/09/2017,40114211,"1,083.50",Barnardo's,10370,Peoples Services Directorate,Provider Contract Payments,F470
http://statistics.data.gov.uk/id/local-authority/00BF,London Borough of Sutton,19/09/2017,40114212,672.00,Barnardo's,10370,Peoples Services Directorate,Provider Contract Payments,F470
http://statistics.data.gov.uk/id/local-authority/00BF,London Borough of Sutton,19/09/2017,40114221,920.00,Barnardo's,10370,Peoples Services Directorate,Provider Contract Payments,F470
http://statistics.data.gov.uk/id/local-authority/00BF,London Borough of Sutton,19/09/2017,40114224,726.00,Barnardo's,10370,Peoples Services Directorate,Provider Contract Payments,F470
http://statistics.data.gov.uk/id/local-authority/00BF,London Borough of Sutton,19/09/2017,40114226,880.00,Barnardo's,10370,Peoples Services Directorate,Provider Contract Payments,F470
http://statistics.data.gov.uk/id/local-authority/00BF,London Borough of Sutton,19/09/2017,40114227,546.00,Barnardo's,10370,Peoples Services Directorate,Provider Contract Payments,F470
http://statistics.data.gov.uk/id/local-authority/00BF,London Borough of Sutton,19/09/2017,40114228,630.00,Barnardo's,10370,Peoples Services Directorate,Provider Contract Payments,F470
http://statistics.data.gov.uk/id/local-authority/00BF,London Borough of Sutton,19/09/2017,40114229,"1,196.00",Barnardo's,10370,Peoples Services Directorate,Provider Contract Payments,F470
http://statistics.data.gov.uk/id/local-authority/00BF,London Borough of Sutton,19/09/2017,40114230,792.00,Barnardo's,10370,Peoples Services Directorate,Provider Contract Payments,F470
http://statistics.data.gov.uk/id/local-authority/00BF,London Borough of Sutton,19/09/2017,40114232,880.00,Barnardo's,10370,Peoples Services Directorate,Provider Contract Payments,F470
http://statistics.data.gov.uk/id/local-authority/00BF,London Borough of Sutton,12/09/2017,6916383,"14,418.03",Barnett Waddingham LLP,28449,Unknown Directorate,Investment Expenses,A931
http://statistics.data.gov.uk/id/local-authority/00BF,London Borough of Sutton,01/09/2017,6916208,"1,465.67",Barts Health Nhs Trust,28991,Peoples Services Directorate,Provider Contract Payments,F470
http://statistics.data.gov.uk/id/local-authority/00BF,London Borough of Sutton,18/08/2017,6916236,"2,762.50",Beddington Park Primary (Academy),25879,Peoples Services Directorate,Building Works -Main Contractor,Y350
http://statistics.data.gov.uk/id/local-authority/00BF,London Borough of Sutton,18/09/2017,1242437,"1,823.85",Belmont Village Playgroup,17807,Peoples Services Directorate,Non-Maintained Childrens' Nurseries - 2 Year Olds,G404
http://statistics.data.gov.uk/id/local-authority/00BF,London Borough of Sutton,18/09/2017,1242487,"10,479.50",Belmont Village Playgroup,17807,Peoples Services Directorate,Non-Maintained Childrens' Nurseries - 3 & 4 yr olds,G405
http://statistics.data.gov.uk/id/local-authority/00BF,London Borough of Sutton,20/07/2017,40109175,"15,300.67",Benjamin UK Ltd,23244,Peoples Services Directorate,Residential Care-Children,G330
http://statistics.data.gov.uk/id/local-authority/00BF,London Borough of Sutton,20/07/2017,40109250,"18,356.34",Benjamin UK Ltd,23244,Peoples Services Directorate,Residential Care-Children,G330
http://statistics.data.gov.uk/id/local-authority/00BF,London Borough of Sutton,25/09/2017,1242723,"1,050.00",Bernadine Willis,24139,Peoples Services Directorate,Non-Maintained Childrens' Nurseries - 3 & 4 yr olds,G405
http://statistics.data.gov.uk/id/local-authority/00BF,London Borough of Sutton,08/09/2017,40109688,"6,413.00",Bertinaley Care Ltd T/A Angel Lodge,27109,Peoples Services Directorate,Interim Placements - Ext Provider,G317
http://statistics.data.gov.uk/id/local-authority/00BF,London Borough of Sutton,31/08/2017,6916035,"8,417.00",Bestcourt UK Ltd,10441,"Environment, Housing & Regeneration Directorate",Bed and Breakfast Accommodation,G400
http://statistics.data.gov.uk/id/local-authority/00BF,London Borough of Sutton,08/09/2017,40109461,"2,226.40",Beverley Lodge Nursing Home,10434,Peoples Services Directorate,Nursing Care - Ext Provider,G311
http://statistics.data.gov.uk/id/local-authority/00BF,London Borough of Sutton,08/09/2017,40109532,"2,800.00",Beverley Lodge Nursing Home,10434,Peoples Services Directorate,Nursing Care - Ext Provider,G311
http://statistics.data.gov.uk/id/local-authority/00BF,London Borough of Sutton,08/09/2017,40109561,"3,400.00",Beverley Lodge Nursing Home,10434,Peoples Services Directorate,Nursing Care - Ext Provider,G311
http://statistics.data.gov.uk/id/local-authority/00BF,London Borough of Sutton,08/09/2017,40109591,"2,604.48",Beverley Lodge Nursing Home,10434,Peoples Services Directorate,Nursing Care - Ext Provider,G311
http://statistics.data.gov.uk/id/local-authority/00BF,London Borough of Sutton,08/09/2017,40109705,"1,735.71",Beverley Lodge Nursing Home,10434,Peoples Services Directorate,Nursing Care - Ext Provider,G311
http://statistics.data.gov.uk/id/local-authority/00BF,London Borough of Sutton,08/09/2017,40109739,"2,019.96",Beverley Lodge Nursing Home,10434,Peoples Services Directorate,Nursing Care - Ext Provider,G311
http://statistics.data.gov.uk/id/local-authority/00BF,London Borough of Sutton,08/09/2017,40109840,"2,462.44",Beverley Lodge Nursing Home,10434,Peoples Services Directorate,Nursing Care - Ext Provider,G311
http://statistics.data.gov.uk/id/local-authority/00BF,London Borough of Sutton,01/09/2017,1242893,"17,465.00",Beyond Autism,17692,Peoples Services Directorate,Independent Schools,G325
http://statistics.data.gov.uk/id/local-authority/00BF,London Borough of Sutton,01/09/2017,1242894,"22,003.33",Beyond Autism,17692,Peoples Services Directorate,Independent Schools,G325
http://statistics.data.gov.uk/id/local-authority/00BF,London Borough of Sutton,01/09/2017,1242895,"30,116.66",Beyond Autism,17692,Peoples Services Directorate,Independent Schools,G325
http://statistics.data.gov.uk/id/local-authority/00BF,London Borough of Sutton,01/09/2017,1242896,"21,783.33",Beyond Autism,17692,Peoples Services Directorate,Independent Schools,G325
http://statistics.data.gov.uk/id/local-authority/00BF,London Borough of Sutton,14/08/2017,40111361,490.00,Beyond Community Care Services Ltd,29933,Peoples Services Directorate,Home Care,G334
http://statistics.data.gov.uk/id/local-authority/00BF,London Borough of Sutton,14/08/2017,40111389,490.00,Beyond Community Care Services Ltd,29933,Peoples Services Directorate,Home Care,G334
http://statistics.data.gov.uk/id/local-authority/00BF,London Borough of Sutton,14/08/2017,40111390,490.00,Beyond Community Care Services Ltd,29933,Peoples Services Directorate,Home Care,G334
http://statistics.data.gov.uk/id/local-authority/00BF,London Borough of Sutton,14/08/2017,40111391,490.00,Beyond Community Care Services Ltd,29933,Peoples Services Directorate,Home Care,G334
http://statistics.data.gov.uk/id/local-authority/00BF,London Borough of Sutton,14/08/2017,40111392,490.00,Beyond Community Care Services Ltd,29933,Peoples Services Directorate,Home Care,G334
http://statistics.data.gov.uk/id/local-authority/00BF,London Borough of Sutton,14/08/2017,40111401,490.00,Beyond Community Care Services Ltd,29933,Peoples Services Directorate,Home Care,G334
http://statistics.data.gov.uk/id/local-authority/00BF,London Borough of Sutton,31/08/2017,6915840,"1,600.00",Bibliotheca Ltd,28968,"Environment, Housing & Regeneration Directorate",Equipment It,Y523
http://statistics.data.gov.uk/id/local-authority/00BF,London Borough of Sutton,14/09/2017,6916547,"1,600.00",Bibliotheca Ltd,28968,"Environment, Housing & Regeneration Directorate",Equipment It,Y523
http://statistics.data.gov.uk/id/local-authority/00BF,London Borough of Sutton,18/09/2017,1242438,"1,215.90",Bizzy Bees Day Nursery,10483,Peoples Services Directorate,Non-Maintained Childrens' Nurseries - 2 Year Olds,G404
http://statistics.data.gov.uk/id/local-authority/00BF,London Borough of Sutton,18/09/2017,1242488,"5,506.25",Bizzy Bees Day Nursery,10483,Peoples Services Directorate,Non-Maintained Childrens' Nurseries - 3 & 4 yr olds,G405
http://statistics.data.gov.uk/id/local-authority/00BF,London Borough of Sutton,04/09/2017,6915998,"12,435.79",Bloom Procurement Services Ltd,29692,Peoples Services Directorate,Contractual Consultant Fees,G430
http://statistics.data.gov.uk/id/local-authority/00BF,London Borough of Sutton,01/09/2017,1242873,"5,166.67",Blossom House Lower School,10507,Peoples Services Directorate,Independent Schools,G325
http://statistics.data.gov.uk/id/local-authority/00BF,London Borough of Sutton,03/07/2017,1242881,"13,950.00",Blossom House Lower School,10507,Peoples Services Directorate,Independent Schools,G325
http://statistics.data.gov.uk/id/local-authority/00BF,London Borough of Sutton,06/09/2017,6917034,426.11,Bond Dickinson LLP,26337,Resources Directorate,Fees - Consultants (Ad Hoc),F283
http://statistics.data.gov.uk/id/local-authority/00BF,London Borough of Sutton,21/09/2017,6916905,"1,200.90",Book Trust,10530,Peoples Services Directorate,LAC - Education,F269
http://statistics.data.gov.uk/id/local-authority/00BF,London Borough of Sutton,31/08/2017,6916118,500.00,Bottomline Technologies Ltd,25145,Resources Directorate,Fees - Computer Software,F384
http://statistics.data.gov.uk/id/local-authority/00BF,London Borough of Sutton,08/09/2017,40109451,"1,996.00",Bridge House Care Centre,10620,Peoples Services Directorate,Nursing Care - Ext Provider,G311
http://statistics.data.gov.uk/id/local-authority/00BF,London Borough of Sutton,08/09/2017,40109476,"1,942.48",Bridge House Care Centre,10620,Peoples Services Directorate,Nursing Care - Ext Provider,G311
http://statistics.data.gov.uk/id/local-authority/00BF,London Borough of Sutton,08/09/2017,40109512,"2,033.92",Bridge House Care Centre,10620,Peoples Services Directorate,Nursing Care - Ext Provider,G311
http://statistics.data.gov.uk/id/local-authority/00BF,London Borough of Sutton,08/09/2017,40109544,"3,475.36",Bridge House Care Centre,10620,Peoples Services Directorate,Nursing Care - Ext Provider,G311
http://statistics.data.gov.uk/id/local-authority/00BF,London Borough of Sutton,08/09/2017,40109555,"3,400.00",Bridge House Care Centre,10620,Peoples Services Directorate,Nursing Care - Ext Provider,G311
http://statistics.data.gov.uk/id/local-authority/00BF,London Borough of Sutton,08/09/2017,40109565,"3,200.00",Bridge House Care Centre,10620,Peoples Services Directorate,Nursing Care - Ext Provider,G311
http://statistics.data.gov.uk/id/local-authority/00BF,London Borough of Sutton,08/09/2017,40109582,"3,380.00",Bridge House Care Centre,10620,Peoples Services Directorate,Nursing Care - Ext Provider,G311
http://statistics.data.gov.uk/id/local-authority/00BF,London Borough of Sutton,08/09/2017,40109640,"3,000.00",Bridge House Care Centre,10620,Peoples Services Directorate,Nursing Care - Ext Provider,G311
http://statistics.data.gov.uk/id/local-authority/00BF,London Borough of Sutton,08/09/2017,40109773,"3,000.00",Bridge House Care Centre,10620,Peoples Services Directorate,Nursing Care - Ext Provider,G311
http://statistics.data.gov.uk/id/local-authority/00BF,London Borough of Sutton,08/09/2017,40109775,"2,005.84",Bridge House Care Centre,10620,Peoples Services Directorate,Nursing Care - Ext Provider,G311
http://statistics.data.gov.uk/id/local-authority/00BF,London Borough of Sutton,08/09/2017,40109813,"2,034.96",Bridge House Care Centre,10620,Peoples Services Directorate,Nursing Care - Ext Provider,G311
http://statistics.data.gov.uk/id/local-authority/00BF,London Borough of Sutton,09/09/2017,6916371,645.00,Britaniacrest Recycling Ltd,25243,Resources Directorate,"Bulk Refuse Containers, Paladin Bins and Refuse Ch",D810
http://statistics.data.gov.uk/id/local-authority/00BF,London Borough of Sutton,08/09/2017,40109481,"2,710.40",British Home & Hospital For Incurables,10589,Peoples Services Directorate,Nursing Care - Ext Provider,G311
http://statistics.data.gov.uk/id/local-authority/00BF,London Borough of Sutton,08/09/2017,40109821,"2,439.36",British Home & Hospital For Incurables,10589,Peoples Services Directorate,Nursing Care - Ext Provider,G311
http://statistics.data.gov.uk/id/local-authority/00BF,London Borough of Sutton,08/09/2017,40109822,"2,439.36",British Home & Hospital For Incurables,10589,Peoples Services Directorate,Nursing Care - Ext Provider,G311
http://statistics.data.gov.uk/id/local-authority/00BF,London Borough of Sutton,13/08/2017,6915358,"1,350.00",British Telecommunications Plc,10574,Resources Directorate,"Telephones - Mobile, Pagers etc.",F374
http://statistics.data.gov.uk/id/local-authority/00BF,London Borough of Sutton,27/08/2017,6915747,"15,934.90",British Telecommunications Plc,10574,Resources Directorate,"Telephones - Mobile, Pagers etc.",F374
http://statistics.data.gov.uk/id/local-authority/00BF,London Borough of Sutton,08/09/2017,40109484,"3,277.16",Broadlands Nursing Home,10586,Peoples Services Directorate,Nursing Care - Ext Provider,G311
http://statistics.data.gov.uk/id/local-authority/00BF,London Borough of Sutton,08/09/2017,40109579,"2,945.00",Broadlands Nursing Home,10586,Peoples Services Directorate,Nursing Care - Ext Provider,G311
http://statistics.data.gov.uk/id/local-authority/00BF,London Borough of Sutton,08/09/2017,40109655,"3,380.00",Broadlands Nursing Home,10586,Peoples Services Directorate,Nursing Care - Ext Provider,G311
http://statistics.data.gov.uk/id/local-authority/00BF,London Borough of Sutton,08/09/2017,40109677,"3,380.00",Broadlands Nursing Home,10586,Peoples Services Directorate,Nursing Care - Ext Provider,G311
http://statistics.data.gov.uk/id/local-authority/00BF,London Borough of Sutton,08/09/2017,40109685,"3,400.00",Broadlands Nursing Home,10586,Peoples Services Directorate,Nursing Care - Ext Provider,G311
http://statistics.data.gov.uk/id/local-authority/00BF,London Borough of Sutton,08/09/2017,40109743,"1,835.60",Broadlands Nursing Home,10586,Peoples Services Directorate,Nursing Care - Ext Provider,G311
http://statistics.data.gov.uk/id/local-authority/00BF,London Borough of Sutton,16/08/2017,6916382,"2,120.00",Bromley & Croydon Women's Aid,26394,Peoples Services Directorate,C.C.A Rent & Utilities,H211
http://statistics.data.gov.uk/id/local-authority/00BF,London Borough of Sutton,26/09/2017,6917166,"1,120.00",Bromley & Croydon Women's Aid,26394,Peoples Services Directorate,C.C.A Rent & Utilities,H211
http://statistics.data.gov.uk/id/local-authority/00BF,London Borough of Sutton,30/08/2017,6915996,"38,410.38",Built Off-Site Ltd,28510,Peoples Services Directorate,Building Works -Main Contractor,Y350
http://statistics.data.gov.uk/id/local-authority/00BF,London Borough of Sutton,31/08/2017,6916342,"55,179.63",Built Off-Site Ltd,28510,Peoples Services Directorate,Building Works -Main Contractor,Y350
http://statistics.data.gov.uk/id/local-authority/00BF,London Borough of Sutton,12/09/2017,6916665,"144,794.74",Built Off-Site Ltd,28510,Peoples Services Directorate,Building Works -Main Contractor,Y350
http://statistics.data.gov.uk/id/local-authority/00BF,London Borough of Sutton,26/09/2017,6917188,"9,600.00",Built Off-Site Ltd,28510,Peoples Services Directorate,Feasibility Studies,Y192
http://statistics.data.gov.uk/id/local-authority/00BF,London Borough of Sutton,31/08/2017,6916770,"1,302.00",Buller Hotel,23493,"Environment, Housing & Regeneration Directorate",Bed and Breakfast Accommodation,G400
http://statistics.data.gov.uk/id/local-authority/00BF,London Borough of Sutton,31/08/2017,6916771,844.80,Buller Hotel,23493,"Environment, Housing & Regeneration Directorate",Bed and Breakfast Accommodation,G400
http://statistics.data.gov.uk/id/local-authority/00BF,London Borough of Sutton,31/08/2017,6916772,"1,302.00",Buller Hotel,23493,"Environment, Housing & Regeneration Directorate",Bed and Breakfast Accommodation,G400
http://statistics.data.gov.uk/id/local-authority/00BF,London Borough of Sutton,31/08/2017,6916773,"1,116.00",Buller Hotel,23493,"Environment, Housing & Regeneration Directorate",Bed and Breakfast Accommodation,G400
http://statistics.data.gov.uk/id/local-authority/00BF,London Borough of Sutton,31/08/2017,6916774,"1,050.00",Buller Hotel,23493,"Environment, Housing & Regeneration Directorate",Bed and Breakfast Accommodation,G400
http://statistics.data.gov.uk/id/local-authority/00BF,London Borough of Sutton,31/08/2017,6916775,"1,302.00",Buller Hotel,23493,"Environment, Housing & Regeneration Directorate",Bed and Breakfast Accommodation,G400
http://statistics.data.gov.uk/id/local-authority/00BF,London Borough of Sutton,31/08/2017,6916776,924.00,Buller Hotel,23493,"Environment, Housing & Regeneration Directorate",Bed and Breakfast Accommodation,G400
http://statistics.data.gov.uk/id/local-authority/00BF,London Borough of Sutton,31/08/2017,6916777,"1,050.00",Buller Hotel,23493,"Environment, Housing & Regeneration Directorate",Bed and Breakfast Accommodation,G400
http://statistics.data.gov.uk/id/local-authority/00BF,London Borough of Sutton,31/08/2017,6916778,966.00,Buller Hotel,23493,"Environment, Housing & Regeneration Directorate",Bed and Breakfast Accommodation,G400
http://statistics.data.gov.uk/id/local-authority/00BF,London Borough of Sutton,31/08/2017,6916779,966.00,Buller Hotel,23493,"Environment, Housing & Regeneration Directorate",Bed and Breakfast Accommodation,G400
http://statistics.data.gov.uk/id/local-authority/00BF,London Borough of Sutton,18/09/2017,1242441,"8,395.50",Bumpsa Daisies Nurserys,10727,Peoples Services Directorate,Non-Maintained Childrens' Nurseries - 2 Year Olds,G404
http://statistics.data.gov.uk/id/local-authority/00BF,London Borough of Sutton,18/09/2017,1242491,"21,434.83",Bumpsa Daisies Nurserys,10727,Peoples Services Directorate,Non-Maintained Childrens' Nurseries - 3 & 4 yr olds,G405
http://statistics.data.gov.uk/id/local-authority/00BF,London Borough of Sutton,30/08/2017,6915787,606.40,Bunzl Catering Supplies,10706,Peoples Services Directorate,Refreshments,F155
http://statistics.data.gov.uk/id/local-authority/00BF,London Borough of Sutton,08/09/2017,40109455,"1,971.80",Bupa Care Services,10175,Peoples Services Directorate,Nursing Care - Ext Provider,G311
http://statistics.data.gov.uk/id/local-authority/00BF,London Borough of Sutton,08/09/2017,40109703,"1,963.43",Bupa Care Services,10175,Peoples Services Directorate,Nursing Care - Ext Provider,G311
http://statistics.data.gov.uk/id/local-authority/00BF,London Borough of Sutton,08/09/2017,40109788,"1,868.00",Bupa Care Services,10175,Peoples Services Directorate,Residential Care - Ext Provider,G310
http://statistics.data.gov.uk/id/local-authority/00BF,London Borough of Sutton,08/09/2017,40109353,"2,344.04",Bupa Care Services (Carders Court),29650,Peoples Services Directorate,Nursing Care - Ext Provider,G311
http://statistics.data.gov.uk/id/local-authority/00BF,London Borough of Sutton,08/09/2017,40109335,"2,439.56",Burlington Nursing Home Ltd,19236,Peoples Services Directorate,Nursing Care - Ext Provider,G311
http://statistics.data.gov.uk/id/local-authority/00BF,London Borough of Sutton,18/09/2017,1242493,"20,995.36",Busy Bees Day Nurseries Ltd - Cheam,24079,Peoples Services Directorate,Non-Maintained Childrens' Nurseries - 3 & 4 yr olds,G405
http://statistics.data.gov.uk/id/local-authority/00BF,London Borough of Sutton,18/09/2017,1242442,607.95,Busy Bees Day Nursery at Carshalton,24082,Peoples Services Directorate,Non-Maintained Childrens' Nurseries - 2 Year Olds,G404
http://statistics.data.gov.uk/id/local-authority/00BF,London Borough of Sutton,18/09/2017,1242492,"26,040.25",Busy Bees Day Nursery at Carshalton,24082,Peoples Services Directorate,Non-Maintained Childrens' Nurseries - 3 & 4 yr olds,G405
http://statistics.data.gov.uk/id/local-authority/00BF,London Borough of Sutton,08/09/2017,40109345,"7,824.28",Butterfly's Care Homes Ltd,28860,Peoples Services Directorate,Residential Care - Ext Provider,G310
http://statistics.data.gov.uk/id/local-authority/00BF,London Borough of Sutton,20/09/2017,6916804,912.00,C.E.R Investments Ltd,26967,"Environment, Housing & Regeneration Directorate",Temporary Protection - Homeless Persons,H300
http://statistics.data.gov.uk/id/local-authority/00BF,London Borough of Sutton,16/09/2016,1242283,"17,653.44",Cambian Asperger Syndrome Services Ltd,12082,Peoples Services Directorate,Top-up Funding,G064
http://statistics.data.gov.uk/id/local-authority/00BF,London Borough of Sutton,30/11/2016,1242284,"17,653.44",Cambian Asperger Syndrome Services Ltd,12082,Peoples Services Directorate,Top-up Funding,G064
http://statistics.data.gov.uk/id/local-authority/00BF,London Borough of Sutton,14/03/2017,1242285,"17,653.43",Cambian Asperger Syndrome Services Ltd,12082,Peoples Services Directorate,Top-up Funding,G064
http://statistics.data.gov.uk/id/local-authority/00BF,London Borough of Sutton,08/09/2017,40109598,"4,705.24",Cambian Asperger Syndrome Services Ltd,12082,Peoples Services Directorate,Residential Care - Ext Provider,G310
http://statistics.data.gov.uk/id/local-authority/00BF,London Borough of Sutton,14/09/2017,1242686,"20,122.94",Cambian Autism Services Ltd,12064,Peoples Services Directorate,Independent Schools,G325
http://statistics.data.gov.uk/id/local-authority/00BF,London Borough of Sutton,14/09/2017,1242686,"27,788.82",Cambian Autism Services Ltd,12064,Peoples Services Directorate,Residential Care-Children,G330
http://statistics.data.gov.uk/id/local-authority/00BF,London Borough of Sutton,24/07/2017,6916515,"42,876.00",Campbell & Kennedy Ltd,97711,Resources Directorate,Building Works -Main Contractor,Y350
http://statistics.data.gov.uk/id/local-authority/00BF,London Borough of Sutton,08/09/2017,40109496,"3,884.56",Canterbury Oast Trust,10755,Peoples Services Directorate,Residential Care - Ext Provider,G310
http://statistics.data.gov.uk/id/local-authority/00BF,London Borough of Sutton,07/09/2017,6916406,850.00,Capital Traffic Management Ltd,24034,"Environment, Housing & Regeneration Directorate",Surveys & Analysis,Y685
http://statistics.data.gov.uk/id/local-authority/00BF,London Borough of Sutton,01/08/2017,6916006,"50,000.00",Cardiff University,10857,"Environment, Housing & Regeneration Directorate",Provider Contract Payments,F470
http://statistics.data.gov.uk/id/local-authority/00BF,London Borough of Sutton,08/09/2017,40109490,"2,267.40",Care Base(Redhill)Ltd t/a Acorn Court Care Home,24206,Peoples Services Directorate,Residential Care - Ext Provider,G310
http://statistics.data.gov.uk/id/local-authority/00BF,London Borough of Sutton,01/09/2017,6915789,"5,585.08",Care Connections Ltd,10798,Peoples Services Directorate,Supported Living - Ext Provider,G306
http://statistics.data.gov.uk/id/local-authority/00BF,London Borough of Sutton,08/09/2017,40109695,"1,430.00",Care Direct Uk Ltd  (David House),27080,Peoples Services Directorate,Residential Care - Ext Provider,G310
http://statistics.data.gov.uk/id/local-authority/00BF,London Borough of Sutton,08/09/2017,40109735,"3,053.24",Care Direct Uk Ltd  (David House),27080,Peoples Services Directorate,Residential Care - Ext Provider,G310
http://statistics.data.gov.uk/id/local-authority/00BF,London Borough of Sutton,08/09/2017,40109359,"3,800.00",Care UK Homecare Ltd,10853,Peoples Services Directorate,Nursing Care - Ext Provider,G311
http://statistics.data.gov.uk/id/local-authority/00BF,London Borough of Sutton,01/08/2017,40108734,"4,060.00",Care Unlimited Domcare Ltd,28906,Peoples Services Directorate,Supported Living - Ext Provider,G306
http://statistics.data.gov.uk/id/local-authority/00BF,London Borough of Sutton,01/08/2017,40108740,"4,060.00",Care Unlimited Domcare Ltd,28906,Peoples Services Directorate,Supported Living - Ext Provider,G306
http://statistics.data.gov.uk/id/local-authority/00BF,London Borough of Sutton,01/08/2017,40108765,"4,060.00",Care Unlimited Domcare Ltd,28906,Peoples Services Directorate,Supported Living - Ext Provider,G306
http://statistics.data.gov.uk/id/local-authority/00BF,London Borough of Sutton,01/08/2017,40108778,"4,060.00",Care Unlimited Domcare Ltd,28906,Peoples Services Directorate,Supported Living - Ext Provider,G306
http://statistics.data.gov.uk/id/local-authority/00BF,London Borough of Sutton,01/08/2017,40108779,"4,060.00",Care Unlimited Domcare Ltd,28906,Peoples Services Directorate,Supported Living - Ext Provider,G306
http://statistics.data.gov.uk/id/local-authority/00BF,London Borough of Sutton,08/09/2017,40109485,"1,470.00",Care Unlimited Group Ltd,10774,Peoples Services Directorate,Residential Care - Ext Provider,G310
http://statistics.data.gov.uk/id/local-authority/00BF,London Borough of Sutton,08/09/2017,40109521,"1,780.00",Care Unlimited Group Ltd,10774,Peoples Services Directorate,Residential Care - Ext Provider,G310
http://statistics.data.gov.uk/id/local-authority/00BF,London Borough of Sutton,08/09/2017,40109537,"1,692.00",Care Unlimited Group Ltd,10774,Peoples Services Directorate,Residential Care - Ext Provider,G310
http://statistics.data.gov.uk/id/local-authority/00BF,London Borough of Sutton,08/09/2017,40109580,"2,550.00",Care Unlimited Group Ltd,10774,Peoples Services Directorate,Interim Placements - Ext Provider,G317
http://statistics.data.gov.uk/id/local-authority/00BF,London Borough of Sutton,08/09/2017,40109595,"1,692.00",Care Unlimited Group Ltd,10774,Peoples Services Directorate,Residential Care - Ext Provider,G310
http://statistics.data.gov.uk/id/local-authority/00BF,London Borough of Sutton,08/09/2017,40109661,"3,020.00",Care Unlimited Group Ltd,10774,Peoples Services Directorate,Interim Placements - Ext Provider,G317
http://statistics.data.gov.uk/id/local-authority/00BF,London Borough of Sutton,11/09/2017,1242423,459.00,Caremark (Sutton),25541,Peoples Services Directorate,Hired Peoples Transport (Children),E072
http://statistics.data.gov.uk/id/local-authority/00BF,London Borough of Sutton,05/09/2017,6916231,"-32,939.34",Caremark (Sutton),25541,Peoples Services Directorate,Home Care,G334
http://statistics.data.gov.uk/id/local-authority/00BF,London Borough of Sutton,27/08/2017,40107902,547.75,Caremark (Sutton),25541,Peoples Services Directorate,Home Care,G334
http://statistics.data.gov.uk/id/local-authority/00BF,London Borough of Sutton,20/08/2017,40107911,637.74,Caremark (Sutton),25541,Peoples Services Directorate,Home Care,G334
http://statistics.data.gov.uk/id/local-authority/00BF,London Borough of Sutton,27/08/2017,40107912,602.53,Caremark (Sutton),25541,Peoples Services Directorate,Home Care,G334
http://statistics.data.gov.uk/id/local-authority/00BF,London Borough of Sutton,27/08/2017,40107914,516.45,Caremark (Sutton),25541,Peoples Services Directorate,Home Care,G334
http://statistics.data.gov.uk/id/local-authority/00BF,London Borough of Sutton,20/08/2017,40108018,602.53,Caremark (Sutton),25541,Peoples Services Directorate,Home Care,G334
http://statistics.data.gov.uk/id/local-authority/00BF,London Borough of Sutton,27/08/2017,40108019,618.18,Caremark (Sutton),25541,Peoples Services Directorate,Home Care,G334
http://statistics.data.gov.uk/id/local-authority/00BF,London Borough of Sutton,23/04/2017,40108821,528.19,Caremark (Sutton),25541,Peoples Services Directorate,Home Care,G334
http://statistics.data.gov.uk/id/local-authority/00BF,London Borough of Sutton,30/04/2017,40108822,543.84,Caremark (Sutton),25541,Peoples Services Directorate,Home Care,G334
http://statistics.data.gov.uk/id/local-authority/00BF,London Borough of Sutton,07/05/2017,40108823,449.94,Caremark (Sutton),25541,Peoples Services Directorate,Home Care,G334
http://statistics.data.gov.uk/id/local-authority/00BF,London Borough of Sutton,23/04/2017,40108826,602.53,Caremark (Sutton),25541,Peoples Services Directorate,Home Care,G334
http://statistics.data.gov.uk/id/local-authority/00BF,London Borough of Sutton,30/04/2017,40108827,602.53,Caremark (Sutton),25541,Peoples Services Directorate,Home Care,G334
http://statistics.data.gov.uk/id/local-authority/00BF,London Borough of Sutton,07/05/2017,40108828,602.53,Caremark (Sutton),25541,Peoples Services Directorate,Home Care,G334
http://statistics.data.gov.uk/id/local-authority/00BF,London Borough of Sutton,14/05/2017,40108829,602.53,Caremark (Sutton),25541,Peoples Services Directorate,Home Care,G334
http://statistics.data.gov.uk/id/local-authority/00BF,London Borough of Sutton,21/05/2017,40108830,602.53,Caremark (Sutton),25541,Peoples Services Directorate,Home Care,G334
http://statistics.data.gov.uk/id/local-authority/00BF,London Borough of Sutton,28/05/2017,40108831,602.53,Caremark (Sutton),25541,Peoples Services Directorate,Home Care,G334
http://statistics.data.gov.uk/id/local-authority/00BF,London Borough of Sutton,04/06/2017,40108832,602.53,Caremark (Sutton),25541,Peoples Services Directorate,Home Care,G334
http://statistics.data.gov.uk/id/local-authority/00BF,London Borough of Sutton,11/06/2017,40108833,602.53,Caremark (Sutton),25541,Peoples Services Directorate,Home Care,G334
http://statistics.data.gov.uk/id/local-authority/00BF,London Borough of Sutton,23/04/2017,40108849,602.53,Caremark (Sutton),25541,Peoples Services Directorate,Home Care,G334
http://statistics.data.gov.uk/id/local-authority/00BF,London Borough of Sutton,30/04/2017,40108850,602.53,Caremark (Sutton),25541,Peoples Services Directorate,Home Care,G334
http://statistics.data.gov.uk/id/local-authority/00BF,London Borough of Sutton,07/05/2017,40108851,602.53,Caremark (Sutton),25541,Peoples Services Directorate,Home Care,G334
http://statistics.data.gov.uk/id/local-authority/00BF,London Borough of Sutton,14/05/2017,40108852,563.40,Caremark (Sutton),25541,Peoples Services Directorate,Home Care,G334
http://statistics.data.gov.uk/id/local-authority/00BF,London Borough of Sutton,21/05/2017,40108853,602.53,Caremark (Sutton),25541,Peoples Services Directorate,Home Care,G334
http://statistics.data.gov.uk/id/local-authority/00BF,London Borough of Sutton,28/05/2017,40108854,602.53,Caremark (Sutton),25541,Peoples Services Directorate,Home Care,G334
http://statistics.data.gov.uk/id/local-authority/00BF,London Borough of Sutton,04/06/2017,40108855,602.53,Caremark (Sutton),25541,Peoples Services Directorate,Home Care,G334
http://statistics.data.gov.uk/id/local-authority/00BF,London Borough of Sutton,11/06/2017,40108856,602.53,Caremark (Sutton),25541,Peoples Services Directorate,Home Care,G334
http://statistics.data.gov.uk/id/local-authority/00BF,London Borough of Sutton,23/04/2017,40108857,704.25,Caremark (Sutton),25541,Peoples Services Directorate,Home Care,G334
http://statistics.data.gov.uk/id/local-authority/00BF,London Borough of Sutton,30/04/2017,40108858,704.25,Caremark (Sutton),25541,Peoples Services Directorate,Home Care,G334
http://statistics.data.gov.uk/id/local-authority/00BF,London Borough of Sutton,07/05/2017,40108859,704.25,Caremark (Sutton),25541,Peoples Services Directorate,Home Care,G334
http://statistics.data.gov.uk/id/local-authority/00BF,London Borough of Sutton,14/05/2017,40108860,704.25,Caremark (Sutton),25541,Peoples Services Directorate,Home Care,G334
http://statistics.data.gov.uk/id/local-authority/00BF,London Borough of Sutton,04/06/2017,40108863,743.38,Caremark (Sutton),25541,Peoples Services Directorate,Home Care,G334
http://statistics.data.gov.uk/id/local-authority/00BF,London Borough of Sutton,23/04/2017,40108870,602.53,Caremark (Sutton),25541,Peoples Services Directorate,Home Care,G334
http://statistics.data.gov.uk/id/local-authority/00BF,London Borough of Sutton,30/04/2017,40108871,602.53,Caremark (Sutton),25541,Peoples Services Directorate,Home Care,G334
http://statistics.data.gov.uk/id/local-authority/00BF,London Borough of Sutton,07/05/2017,40108872,602.53,Caremark (Sutton),25541,Peoples Services Directorate,Home Care,G334
http://statistics.data.gov.uk/id/local-authority/00BF,London Borough of Sutton,14/05/2017,40108873,602.53,Caremark (Sutton),25541,Peoples Services Directorate,Home Care,G334
http://statistics.data.gov.uk/id/local-authority/00BF,London Borough of Sutton,21/05/2017,40108874,610.35,Caremark (Sutton),25541,Peoples Services Directorate,Home Care,G334
http://statistics.data.gov.uk/id/local-authority/00BF,London Borough of Sutton,28/05/2017,40108875,602.53,Caremark (Sutton),25541,Peoples Services Directorate,Home Care,G334
http://statistics.data.gov.uk/id/local-authority/00BF,London Borough of Sutton,04/06/2017,40108876,618.18,Caremark (Sutton),25541,Peoples Services Directorate,Home Care,G334
http://statistics.data.gov.uk/id/local-authority/00BF,London Borough of Sutton,11/06/2017,40108877,602.53,Caremark (Sutton),25541,Peoples Services Directorate,Home Care,G334
http://statistics.data.gov.uk/id/local-authority/00BF,London Borough of Sutton,04/06/2017,40108883,492.98,Caremark (Sutton),25541,Peoples Services Directorate,Home Care,G334
http://statistics.data.gov.uk/id/local-authority/00BF,London Borough of Sutton,11/06/2017,40108884,492.98,Caremark (Sutton),25541,Peoples Services Directorate,Home Care,G334
http://statistics.data.gov.uk/id/local-authority/00BF,London Borough of Sutton,03/09/2017,40114879,508.63,Caremark (Sutton),25541,Peoples Services Directorate,Home Care,G334
http://statistics.data.gov.uk/id/local-authority/00BF,London Borough of Sutton,10/09/2017,40114880,602.53,Caremark (Sutton),25541,Peoples Services Directorate,Home Care,G334
http://statistics.data.gov.uk/id/local-authority/00BF,London Borough of Sutton,03/09/2017,40114968,712.08,Caremark (Sutton),25541,Peoples Services Directorate,Home Care,G334
http://statistics.data.gov.uk/id/local-authority/00BF,London Borough of Sutton,10/09/2017,40114969,712.08,Caremark (Sutton),25541,Peoples Services Directorate,Home Care,G334
http://statistics.data.gov.uk/id/local-authority/00BF,London Borough of Sutton,03/09/2017,40115105,602.53,Caremark (Sutton),25541,Peoples Services Directorate,Home Care,G334
http://statistics.data.gov.uk/id/local-authority/00BF,London Borough of Sutton,10/09/2017,40115106,618.18,Caremark (Sutton),25541,Peoples Services Directorate,Home Care,G334
http://statistics.data.gov.uk/id/local-authority/00BF,London Borough of Sutton,01/08/2017,40109431,"2,092.50",Caretech Community Services Ltd,10791,Peoples Services Directorate,One to One Care,G335
http://statistics.data.gov.uk/id/local-authority/00BF,London Borough of Sutton,08/09/2017,40109482,"5,270.48",Caretech Community Services Ltd,10791,Peoples Services Directorate,Residential Care - Ext Provider,G310
http://statistics.data.gov.uk/id/local-authority/00BF,London Borough of Sutton,08/09/2017,40109734,"5,270.48",Caretech Community Services Ltd,10791,Peoples Services Directorate,Residential Care - Ext Provider,G310
http://statistics.data.gov.uk/id/local-authority/00BF,London Borough of Sutton,08/09/2017,40109801,"5,270.48",Caretech Community Services Ltd,10791,Peoples Services Directorate,Residential Care - Ext Provider,G310
http://statistics.data.gov.uk/id/local-authority/00BF,London Borough of Sutton,08/09/2017,40109834,"5,405.88",Caretech Community Services Ltd,10791,Peoples Services Directorate,Residential Care - Ext Provider,G310
http://statistics.data.gov.uk/id/local-authority/00BF,London Borough of Sutton,13/09/2017,1242262,"318,290.01",Carew Academy,25284,Peoples Services Directorate,Top-up Funding,G064
http://statistics.data.gov.uk/id/local-authority/00BF,London Borough of Sutton,09/09/2017,40108752,"1,675.00",Carlene Home Care Services,28878,Peoples Services Directorate,Supported Living - Ext Provider,G306
http://statistics.data.gov.uk/id/local-authority/00BF,London Borough of Sutton,04/09/2017,40108754,"2,062.00",Carlene Home Care Services,28878,Peoples Services Directorate,Supported Living - Ext Provider,G306
http://statistics.data.gov.uk/id/local-authority/00BF,London Borough of Sutton,04/09/2017,40108776,"1,340.00",Carlene Home Care Services,28878,Peoples Services Directorate,Supported Living - Ext Provider,G306
http://statistics.data.gov.uk/id/local-authority/00BF,London Borough of Sutton,04/09/2017,40109417,"1,107.01",Carlene House,10763,Peoples Services Directorate,Day Care,G337
http://statistics.data.gov.uk/id/local-authority/00BF,London Borough of Sutton,04/09/2017,40109418,"1,107.01",Carlene House,10763,Peoples Services Directorate,Day Care,G337
http://statistics.data.gov.uk/id/local-authority/00BF,London Borough of Sutton,04/09/2017,40109419,"1,107.01",Carlene House,10763,Peoples Services Directorate,Day Care,G337
http://statistics.data.gov.uk/id/local-authority/00BF,London Borough of Sutton,04/09/2017,40109423,"1,107.01",Carlene House,10763,Peoples Services Directorate,Day Care,G337
http://statistics.data.gov.uk/id/local-authority/00BF,London Borough of Sutton,04/09/2017,40109426,"1,107.01",Carlene House,10763,Peoples Services Directorate,Day Care,G337
http://statistics.data.gov.uk/id/local-authority/00BF,London Borough of Sutton,04/09/2017,40109430,"1,107.01",Carlene House,10763,Peoples Services Directorate,Day Care,G337
http://statistics.data.gov.uk/id/local-authority/00BF,London Borough of Sutton,08/09/2017,40109452,"2,625.28",Carlene House,10763,Peoples Services Directorate,Residential Care - Ext Provider,G310
http://statistics.data.gov.uk/id/local-authority/00BF,London Borough of Sutton,08/09/2017,40109458,"2,740.64",Carlene House,10763,Peoples Services Directorate,Residential Care - Ext Provider,G310
http://statistics.data.gov.uk/id/local-authority/00BF,London Borough of Sutton,08/09/2017,40109464,"4,440.00",Carlene House,10763,Peoples Services Directorate,Residential Care - Ext Provider,G310
http://statistics.data.gov.uk/id/local-authority/00BF,London Borough of Sutton,08/09/2017,40109472,"2,630.60",Carlene House,10763,Peoples Services Directorate,Residential Care - Ext Provider,G310
http://statistics.data.gov.uk/id/local-authority/00BF,London Borough of Sutton,08/09/2017,40109494,"2,625.28",Carlene House,10763,Peoples Services Directorate,Residential Care - Ext Provider,G310
http://statistics.data.gov.uk/id/local-authority/00BF,London Borough of Sutton,08/09/2017,40109724,"2,654.68",Carlene House,10763,Peoples Services Directorate,Residential Care - Ext Provider,G310
http://statistics.data.gov.uk/id/local-authority/00BF,London Borough of Sutton,08/09/2017,40109817,"2,682.68",Carlene House,10763,Peoples Services Directorate,Residential Care - Ext Provider,G310
http://statistics.data.gov.uk/id/local-authority/00BF,London Borough of Sutton,18/09/2017,1242480,"1,215.90",Carly-Jo Etherington-Stanbrook,25990,Peoples Services Directorate,Non-Maintained Childrens' Nurseries - 3 & 4 yr olds,G405
http://statistics.data.gov.uk/id/local-authority/00BF,London Borough of Sutton,18/09/2017,1242546,525.00,Carly-Jo Etherington-Stanbrook,25990,Peoples Services Directorate,Non-Maintained Childrens' Nurseries - 3 & 4 yr olds,G405
http://statistics.data.gov.uk/id/local-authority/00BF,London Borough of Sutton,18/09/2017,1242539,"2,175.00",Caroline Brown,27834,Peoples Services Directorate,Non-Maintained Childrens' Nurseries - 3 & 4 yr olds,G405
http://statistics.data.gov.uk/id/local-authority/00BF,London Borough of Sutton,07/09/2017,6916205,538.36,Carshalton Beeches Baptist Free Church,20542,"Environment, Housing & Regeneration Directorate",Assistance to Voluntary Organisations,F471
http://statistics.data.gov.uk/id/local-authority/00BF,London Borough of Sutton,07/09/2017,6916205,461.64,Carshalton Beeches Baptist Free Church,20542,"Environment, Housing & Regeneration Directorate",Assistance to Voluntary Organisations,F471
http://statistics.data.gov.uk/id/local-authority/00BF,London Borough of Sutton,07/09/2017,6916205,"2,328.00",Carshalton Beeches Baptist Free Church,20542,"Environment, Housing & Regeneration Directorate",Assistance to Voluntary Organisations,F471
http://statistics.data.gov.uk/id/local-authority/00BF,London Borough of Sutton,31/08/2017,40111826,983.94,Carshalton News,10752,Peoples Services Directorate,Books,F006
http://statistics.data.gov.uk/id/local-authority/00BF,London Borough of Sutton,15/08/2017,40109166,"16,915.63",Castle Homes Ltd,10759,Peoples Services Directorate,Residential Care-Children,G330
http://statistics.data.gov.uk/id/local-authority/00BF,London Borough of Sutton,15/08/2017,40109270,"15,392.21",Castle Homes Ltd,10759,Peoples Services Directorate,Residential Care-Children,G330
http://statistics.data.gov.uk/id/local-authority/00BF,London Borough of Sutton,18/08/2017,6915536,416.60,Castle Water Ltd (collection account - Thames (other),27112,Peoples Services Directorate,Sewerage - Metered,D695
http://statistics.data.gov.uk/id/local-authority/00BF,London Borough of Sutton,21/08/2017,6915709,"1,228.43",Castle Water Ltd (collection account - Thames (other),27112,Peoples Services Directorate,Sewerage - Metered,D695
http://statistics.data.gov.uk/id/local-authority/00BF,London Borough of Sutton,13/08/2017,6915825,524.96,Castle Water Ltd (collection account - Thames (other),27112,Resources Directorate,Sewerage - Metered,D695
http://statistics.data.gov.uk/id/local-authority/00BF,London Borough of Sutton,23/08/2017,6915826,"3,109.50",Castle Water Ltd (collection account - Thames (other),27112,"Environment, Housing & Regeneration Directorate",Sewerage - Metered,D695
http://statistics.data.gov.uk/id/local-authority/00BF,London Borough of Sutton,07/09/2017,6916277,"-6,182.28",Castle Water Ltd (collection account - Thames (other),27112,Resources Directorate,Sewerage - Metered,D695
http://statistics.data.gov.uk/id/local-authority/00BF,London Borough of Sutton,07/09/2017,6916278,"-1,903.00",Castle Water Ltd (collection account - Thames (other),27112,"Environment, Housing & Regeneration Directorate",Sewerage - Metered,D695
http://statistics.data.gov.uk/id/local-authority/00BF,London Borough of Sutton,07/09/2017,6916279,-824.63,Castle Water Ltd (collection account - Thames (other),27112,"Environment, Housing & Regeneration Directorate",Sewerage - Metered,D695
http://statistics.data.gov.uk/id/local-authority/00BF,London Borough of Sutton,14/08/2017,6916428,724.54,Castle Water Ltd (collection account - Thames (other),27112,"Environment, Housing & Regeneration Directorate",Sewerage - Metered,D695
http://statistics.data.gov.uk/id/local-authority/00BF,London Borough of Sutton,19/09/2017,6916999,"2,995.74",Castle Water Ltd (collection account - Thames (other),27112,"Environment, Housing & Regeneration Directorate",Sewerage - Metered,D695
http://statistics.data.gov.uk/id/local-authority/00BF,London Borough of Sutton,08/09/2017,6917006,"-1,746.01",Castle Water Ltd (collection account - Thames (other),27112,"Environment, Housing & Regeneration Directorate",Sewerage - Metered,D695
http://statistics.data.gov.uk/id/local-authority/00BF,London Borough of Sutton,13/09/2017,1242223,700.00,Caterpillars Day Nursery,28020,Peoples Services Directorate,Non-Maintained Childrens' Nurseries - 3 & 4 yr olds,G405
http://statistics.data.gov.uk/id/local-authority/00BF,London Borough of Sutton,18/09/2017,1242443,"5,384.70",Caterpillars Day Nursery,28020,Peoples Services Directorate,Non-Maintained Childrens' Nurseries - 2 Year Olds,G404
http://statistics.data.gov.uk/id/local-authority/00BF,London Borough of Sutton,18/09/2017,1242494,"28,924.67",Caterpillars Day Nursery,28020,Peoples Services Directorate,Non-Maintained Childrens' Nurseries - 3 & 4 yr olds,G405
http://statistics.data.gov.uk/id/local-authority/00BF,London Borough of Sutton,18/09/2017,1242563,"1,575.00",Cathie McKnight Fagbohun,27116,Peoples Services Directorate,Non-Maintained Childrens' Nurseries - 3 & 4 yr olds,G405
http://statistics.data.gov.uk/id/local-authority/00BF,London Borough of Sutton,12/08/2017,6914851,"1,055.95",Caysh Enterprise Cic,28016,Peoples Services Directorate,Approved Lodgings,H323
http://statistics.data.gov.uk/id/local-authority/00BF,London Borough of Sutton,12/09/2017,6916381,"1,055.95",Caysh Enterprise Cic,28016,Peoples Services Directorate,Approved Lodgings,H323
http://statistics.data.gov.uk/id/local-authority/00BF,London Borough of Sutton,26/09/2017,1242846,"29,666.67",Caysh Housing Project,23133,"Environment, Housing & Regeneration Directorate",Supporting People - Teenage Parent Services,H247
http://statistics.data.gov.uk/id/local-authority/00BF,London Borough of Sutton,06/09/2017,6916107,"1,229.77",Caysh Housing Project,23133,Peoples Services Directorate,Approved Lodgings,H323
http://statistics.data.gov.uk/id/local-authority/00BF,London Borough of Sutton,06/09/2017,6916108,"1,365.37",Caysh Housing Project,23133,Peoples Services Directorate,Approved Lodgings,H323
http://statistics.data.gov.uk/id/local-authority/00BF,London Borough of Sutton,05/09/2017,6916808,"1,365.55",Caysh Housing Project,23133,Peoples Services Directorate,Approved Lodgings,H323
http://statistics.data.gov.uk/id/local-authority/00BF,London Borough of Sutton,29/08/2017,6915836,"10,000.00","CDARS, Community Drug and Alcohol Recovery Service",11089,"Environment, Housing & Regeneration Directorate",Provider Contract Payments,F470
http://statistics.data.gov.uk/id/local-authority/00BF,London Borough of Sutton,26/07/2017,6916443,"1,447.96",Central & North West London Nhs Foundation Trust,28976,Peoples Services Directorate,Provider Contract Payments,F470
http://statistics.data.gov.uk/id/local-authority/00BF,London Borough of Sutton,26/07/2017,6916444,973.60,Central & North West London Nhs Foundation Trust,28976,Peoples Services Directorate,Provider Contract Payments,F470
http://statistics.data.gov.uk/id/local-authority/00BF,London Borough of Sutton,25/07/2017,6916445,845.68,Central & North West London Nhs Foundation Trust,28976,Peoples Services Directorate,Provider Contract Payments,F470
http://statistics.data.gov.uk/id/local-authority/00BF,London Borough of Sutton,01/09/2017,1241870,"2,400.00",Channels & Choices - Residential,25797,Peoples Services Directorate,Independent Schools,G325
http://statistics.data.gov.uk/id/local-authority/00BF,London Borough of Sutton,01/09/2017,40109246,"1,628.55",Channels & Choices - Residential,25797,Peoples Services Directorate,Residential Care-Children,G330
http://statistics.data.gov.uk/id/local-authority/00BF,London Borough of Sutton,20/09/2017,40114509,578.58,Channels & Choices - Residential,25797,Peoples Services Directorate,Residential Care-Children,G330
http://statistics.data.gov.uk/id/local-authority/00BF,London Borough of Sutton,13/09/2017,1242224,700.00,Cheam Baptist Church Pre-School,10924,Peoples Services Directorate,Non-Maintained Childrens' Nurseries - 3 & 4 yr olds,G405
http://statistics.data.gov.uk/id/local-authority/00BF,London Borough of Sutton,18/09/2017,1242444,"1,074.05",Cheam Baptist Church Pre-School,10924,Peoples Services Directorate,Non-Maintained Childrens' Nurseries - 2 Year Olds,G404
http://statistics.data.gov.uk/id/local-authority/00BF,London Borough of Sutton,18/09/2017,1242495,"7,330.58",Cheam Baptist Church Pre-School,10924,Peoples Services Directorate,Non-Maintained Childrens' Nurseries - 3 & 4 yr olds,G405
http://statistics.data.gov.uk/id/local-authority/00BF,London Borough of Sutton,30/08/2017,6916319,"5,312.50",Cheam Common Infants,10936,Peoples Services Directorate,Equipment It,Y523
http://statistics.data.gov.uk/id/local-authority/00BF,London Borough of Sutton,25/08/2017,40111607,952.00,Cheam Common Junior Academy Extended Schools,26790,Peoples Services Directorate,Provider Contract Payments,F470
http://statistics.data.gov.uk/id/local-authority/00BF,London Borough of Sutton,25/08/2017,40111608,600.00,Cheam Common Junior Academy Extended Schools,26790,Peoples Services Directorate,Provider Contract Payments,F470
http://statistics.data.gov.uk/id/local-authority/00BF,London Borough of Sutton,25/08/2017,40111609,840.00,Cheam Common Junior Academy Extended Schools,26790,Peoples Services Directorate,Provider Contract Payments,F470
http://statistics.data.gov.uk/id/local-authority/00BF,London Borough of Sutton,25/08/2017,40111610,816.00,Cheam Common Junior Academy Extended Schools,26790,Peoples Services Directorate,Provider Contract Payments,F470
http://statistics.data.gov.uk/id/local-authority/00BF,London Borough of Sutton,13/09/2017,1242263,"5,533.34",Cheam Fields Primary - ACADEMY,26741,Peoples Services Directorate,Top-up Funding,G064
http://statistics.data.gov.uk/id/local-authority/00BF,London Borough of Sutton,13/09/2017,1242264,"34,621.66",Cheam High School (Academy),23996,Peoples Services Directorate,Top-up Funding,G064
http://statistics.data.gov.uk/id/local-authority/00BF,London Borough of Sutton,07/09/2017,6916180,800.00,Cheam Neighbourhood Watch - Ward 4,99803,"Environment, Housing & Regeneration Directorate",Assistance to Voluntary Organisations,F471
http://statistics.data.gov.uk/id/local-authority/00BF,London Borough of Sutton,08/09/2017,40109609,"3,600.00",Chegworth Nursing Home Bayswift Ltd,10908,Peoples Services Directorate,Nursing Care - Ext Provider,G311
http://statistics.data.gov.uk/id/local-authority/00BF,London Borough of Sutton,08/09/2017,40109630,607.14,Chegworth Nursing Home Bayswift Ltd,10908,Peoples Services Directorate,Nursing Care - Ext Provider,G311
http://statistics.data.gov.uk/id/local-authority/00BF,London Borough of Sutton,08/09/2017,40109641,643.75,Chegworth Nursing Home Bayswift Ltd,10908,Peoples Services Directorate,Nursing Care - Short Term Placements,G328
http://statistics.data.gov.uk/id/local-authority/00BF,London Borough of Sutton,08/09/2017,40109664,"3,400.00",Chegworth Nursing Home Bayswift Ltd,10908,Peoples Services Directorate,Nursing Care - Ext Provider,G311
http://statistics.data.gov.uk/id/local-authority/00BF,London Borough of Sutton,08/09/2017,40109681,"3,200.00",Chegworth Nursing Home Bayswift Ltd,10908,Peoples Services Directorate,Nursing Care - Ext Provider,G311
http://statistics.data.gov.uk/id/local-authority/00BF,London Borough of Sutton,08/09/2017,40109683,"3,400.00",Chegworth Nursing Home Bayswift Ltd,10908,Peoples Services Directorate,Nursing Care - Ext Provider,G311
http://statistics.data.gov.uk/id/local-authority/00BF,London Borough of Sutton,08/09/2017,40109690,"3,121.43",Chegworth Nursing Home Bayswift Ltd,10908,Peoples Services Directorate,Nursing Care - Ext Provider,G311
http://statistics.data.gov.uk/id/local-authority/00BF,London Borough of Sutton,08/09/2017,40109692,"3,035.71",Chegworth Nursing Home Bayswift Ltd,10908,Peoples Services Directorate,Nursing Care - Ext Provider,G311
http://statistics.data.gov.uk/id/local-authority/00BF,London Borough of Sutton,08/09/2017,40109720,"1,928.24",Chegworth Nursing Home Bayswift Ltd,10908,Peoples Services Directorate,Nursing Care - Ext Provider,G311
http://statistics.data.gov.uk/id/local-authority/00BF,London Borough of Sutton,08/09/2017,40109798,"2,781.64",Chegworth Nursing Home Bayswift Ltd,10908,Peoples Services Directorate,Nursing Care - Ext Provider,G311
http://statistics.data.gov.uk/id/local-authority/00BF,London Borough of Sutton,08/09/2017,40109802,"1,904.00",Chegworth Nursing Home Bayswift Ltd,10908,Peoples Services Directorate,Nursing Care - Ext Provider,G311
http://statistics.data.gov.uk/id/local-authority/00BF,London Borough of Sutton,01/09/2017,6916243,"6,219.58",Chelsea and Westminster NHS ft,28891,Peoples Services Directorate,Provider Contract Payments,F470
http://statistics.data.gov.uk/id/local-authority/00BF,London Borough of Sutton,01/09/2017,6916244,"9,513.61",Chelsea and Westminster NHS ft,28891,Peoples Services Directorate,Provider Contract Payments,F470
http://statistics.data.gov.uk/id/local-authority/00BF,London Borough of Sutton,13/08/2017,40108321,441.00,Chenash Homecare Specialists And Care Agency,25667,Peoples Services Directorate,Home Care,G334
http://statistics.data.gov.uk/id/local-authority/00BF,London Borough of Sutton,20/08/2017,40108322,441.00,Chenash Homecare Specialists And Care Agency,25667,Peoples Services Directorate,Home Care,G334
http://statistics.data.gov.uk/id/local-authority/00BF,London Borough of Sutton,13/08/2017,40108337,588.00,Chenash Homecare Specialists And Care Agency,25667,Peoples Services Directorate,Home Care,G334
http://statistics.data.gov.uk/id/local-authority/00BF,London Borough of Sutton,20/08/2017,40108338,588.00,Chenash Homecare Specialists And Care Agency,25667,Peoples Services Directorate,Home Care,G334
http://statistics.data.gov.uk/id/local-authority/00BF,London Borough of Sutton,06/08/2017,40108526,588.00,Chenash Homecare Specialists And Care Agency,25667,Peoples Services Directorate,Home Care,G334
http://statistics.data.gov.uk/id/local-authority/00BF,London Borough of Sutton,08/09/2017,40109824,"2,725.00",Cherry Lodge,10934,Peoples Services Directorate,Residential Care - Ext Provider,G310
http://statistics.data.gov.uk/id/local-authority/00BF,London Borough of Sutton,08/09/2017,40109835,"3,360.00",Cherry Lodge,10934,Peoples Services Directorate,Residential Care - Ext Provider,G310
http://statistics.data.gov.uk/id/local-authority/00BF,London Borough of Sutton,02/08/2017,40109247,"4,565.06",Children of All Nations,19625,Peoples Services Directorate,Foster Parents,G326
http://statistics.data.gov.uk/id/local-authority/00BF,London Borough of Sutton,18/09/2017,1242496,"5,289.17",Chiltern Day Nursery,10941,Peoples Services Directorate,Non-Maintained Childrens' Nurseries - 3 & 4 yr olds,G405
http://statistics.data.gov.uk/id/local-authority/00BF,London Borough of Sutton,10/08/2017,40108724,"1,200.00",Choice Care Group,22029,Peoples Services Directorate,Supported Living - Ext Provider,G306
http://statistics.data.gov.uk/id/local-authority/00BF,London Borough of Sutton,10/08/2017,40108777,"2,228.57",Choice Care Group,22029,Peoples Services Directorate,Supported Living - Ext Provider,G306
http://statistics.data.gov.uk/id/local-authority/00BF,London Borough of Sutton,08/09/2017,40109531,"7,682.20",Choice Care Group,22029,Peoples Services Directorate,Residential Care - Ext Provider,G310
http://statistics.data.gov.uk/id/local-authority/00BF,London Borough of Sutton,08/09/2017,40109732,"7,511.00",Choice Care Group,22029,Peoples Services Directorate,Residential Care - Ext Provider,G310
http://statistics.data.gov.uk/id/local-authority/00BF,London Borough of Sutton,01/08/2017,40108725,802.02,Choice Support,22320,Peoples Services Directorate,Supported Living - Ext Provider,G306
http://statistics.data.gov.uk/id/local-authority/00BF,London Borough of Sutton,01/08/2017,40108725,"5,968.69",Choice Support,22320,Peoples Services Directorate,Supported Living - Ext Provider,G306
http://statistics.data.gov.uk/id/local-authority/00BF,London Borough of Sutton,01/08/2017,40108726,"3,402.20",Choice Support,22320,Peoples Services Directorate,Supported Living - Ext Provider,G306
http://statistics.data.gov.uk/id/local-authority/00BF,London Borough of Sutton,01/08/2017,40108726,572.88,Choice Support,22320,Peoples Services Directorate,Supported Living - Ext Provider,G306
http://statistics.data.gov.uk/id/local-authority/00BF,London Borough of Sutton,01/08/2017,40108726,"2,978.53",Choice Support,22320,Peoples Services Directorate,Supported Living - Ext Provider,G306
http://statistics.data.gov.uk/id/local-authority/00BF,London Borough of Sutton,01/08/2017,40108743,802.06,Choice Support,22320,Peoples Services Directorate,Supported Living - Ext Provider,G306
http://statistics.data.gov.uk/id/local-authority/00BF,London Borough of Sutton,01/08/2017,40108743,"5,166.68",Choice Support,22320,Peoples Services Directorate,Supported Living - Ext Provider,G306
http://statistics.data.gov.uk/id/local-authority/00BF,London Borough of Sutton,01/08/2017,40108744,802.02,Choice Support,22320,Peoples Services Directorate,Supported Living - Ext Provider,G306
http://statistics.data.gov.uk/id/local-authority/00BF,London Borough of Sutton,01/08/2017,40108744,"4,737.06",Choice Support,22320,Peoples Services Directorate,Supported Living - Ext Provider,G306
http://statistics.data.gov.uk/id/local-authority/00BF,London Borough of Sutton,01/08/2017,40108745,802.02,Choice Support,22320,Peoples Services Directorate,Supported Living - Ext Provider,G306
http://statistics.data.gov.uk/id/local-authority/00BF,London Borough of Sutton,01/08/2017,40108745,"5,173.85",Choice Support,22320,Peoples Services Directorate,Supported Living - Ext Provider,G306
http://statistics.data.gov.uk/id/local-authority/00BF,London Borough of Sutton,01/08/2017,40108746,"2,484.87",Choice Support,22320,Peoples Services Directorate,Supported Living - Ext Provider,G306
http://statistics.data.gov.uk/id/local-authority/00BF,London Borough of Sutton,01/08/2017,40108746,572.88,Choice Support,22320,Peoples Services Directorate,Supported Living - Ext Provider,G306
http://statistics.data.gov.uk/id/local-authority/00BF,London Borough of Sutton,01/08/2017,40108746,"1,611.16",Choice Support,22320,Peoples Services Directorate,Supported Living - Ext Provider,G306
http://statistics.data.gov.uk/id/local-authority/00BF,London Borough of Sutton,01/08/2017,40108747,"1,303.29",Choice Support,22320,Peoples Services Directorate,Supported Living - Ext Provider,G306
http://statistics.data.gov.uk/id/local-authority/00BF,London Borough of Sutton,01/08/2017,40108747,572.88,Choice Support,22320,Peoples Services Directorate,Supported Living - Ext Provider,G306
http://statistics.data.gov.uk/id/local-authority/00BF,London Borough of Sutton,01/08/2017,40108747,"1,761.68",Choice Support,22320,Peoples Services Directorate,Supported Living - Ext Provider,G306
http://statistics.data.gov.uk/id/local-authority/00BF,London Borough of Sutton,01/08/2017,40108766,802.02,Choice Support,22320,Peoples Services Directorate,Supported Living - Ext Provider,G306
http://statistics.data.gov.uk/id/local-authority/00BF,London Borough of Sutton,01/08/2017,40108766,"5,524.77",Choice Support,22320,Peoples Services Directorate,Supported Living - Ext Provider,G306
http://statistics.data.gov.uk/id/local-authority/00BF,London Borough of Sutton,01/08/2017,40108769,802.02,Choice Support,22320,Peoples Services Directorate,Supported Living - Ext Provider,G306
http://statistics.data.gov.uk/id/local-authority/00BF,London Borough of Sutton,01/08/2017,40108769,"5,546.16",Choice Support,22320,Peoples Services Directorate,Supported Living - Ext Provider,G306
http://statistics.data.gov.uk/id/local-authority/00BF,London Borough of Sutton,01/08/2017,40108770,"1,568.24",Choice Support,22320,Peoples Services Directorate,Supported Living - Ext Provider,G306
http://statistics.data.gov.uk/id/local-authority/00BF,London Borough of Sutton,01/08/2017,40108770,572.88,Choice Support,22320,Peoples Services Directorate,Supported Living - Ext Provider,G306
http://statistics.data.gov.uk/id/local-authority/00BF,London Borough of Sutton,01/08/2017,40108770,"1,897.56",Choice Support,22320,Peoples Services Directorate,Supported Living - Ext Provider,G306
http://statistics.data.gov.uk/id/local-authority/00BF,London Borough of Sutton,01/08/2017,40108781,"1,611.24",Choice Support,22320,Peoples Services Directorate,Supported Living - Ext Provider,G306
http://statistics.data.gov.uk/id/local-authority/00BF,London Borough of Sutton,01/08/2017,40108781,572.88,Choice Support,22320,Peoples Services Directorate,Supported Living - Ext Provider,G306
http://statistics.data.gov.uk/id/local-authority/00BF,London Borough of Sutton,01/08/2017,40108781,"1,682.82",Choice Support,22320,Peoples Services Directorate,Supported Living - Ext Provider,G306
http://statistics.data.gov.uk/id/local-authority/00BF,London Borough of Sutton,01/08/2017,40108791,801.97,Choice Support,22320,Peoples Services Directorate,Supported Living - Ext Provider,G306
http://statistics.data.gov.uk/id/local-authority/00BF,London Borough of Sutton,01/08/2017,40108791,"6,548.75",Choice Support,22320,Peoples Services Directorate,Supported Living - Ext Provider,G306
http://statistics.data.gov.uk/id/local-authority/00BF,London Borough of Sutton,01/08/2017,40108793,"2,673.92",Choice Support,22320,Peoples Services Directorate,Supported Living - Ext Provider,G306
http://statistics.data.gov.uk/id/local-authority/00BF,London Borough of Sutton,01/08/2017,40108793,572.88,Choice Support,22320,Peoples Services Directorate,Supported Living - Ext Provider,G306
http://statistics.data.gov.uk/id/local-authority/00BF,London Borough of Sutton,01/08/2017,40108793,"1,431.72",Choice Support,22320,Peoples Services Directorate,Supported Living - Ext Provider,G306
http://statistics.data.gov.uk/id/local-authority/00BF,London Borough of Sutton,01/08/2017,40108794,"2,219.91",Choice Support,22320,Peoples Services Directorate,Supported Living - Ext Provider,G306
http://statistics.data.gov.uk/id/local-authority/00BF,London Borough of Sutton,01/08/2017,40108794,572.88,Choice Support,22320,Peoples Services Directorate,Supported Living - Ext Provider,G306
http://statistics.data.gov.uk/id/local-authority/00BF,London Borough of Sutton,01/08/2017,40108794,"1,432.20",Choice Support,22320,Peoples Services Directorate,Supported Living - Ext Provider,G306
http://statistics.data.gov.uk/id/local-authority/00BF,London Borough of Sutton,08/09/2017,40109358,"3,000.00",Christchurch Fairmile Village Llp,27141,Peoples Services Directorate,Nursing Care - Ext Provider,G311
http://statistics.data.gov.uk/id/local-authority/00BF,London Borough of Sutton,13/09/2017,1242225,"1,400.00",Christchurch Fledgelings Pre-School,10896,Peoples Services Directorate,Non-Maintained Childrens' Nurseries - 3 & 4 yr olds,G405
http://statistics.data.gov.uk/id/local-authority/00BF,London Borough of Sutton,18/09/2017,1242445,"1,580.67",Christchurch Fledgelings Pre-School,10896,Peoples Services Directorate,Non-Maintained Childrens' Nurseries - 2 Year Olds,G404
http://statistics.data.gov.uk/id/local-authority/00BF,London Borough of Sutton,18/09/2017,1242497,"7,950.67",Christchurch Fledgelings Pre-School,10896,Peoples Services Directorate,Non-Maintained Childrens' Nurseries - 3 & 4 yr olds,G405
http://statistics.data.gov.uk/id/local-authority/00BF,London Borough of Sutton,30/08/2017,6915781,897.00,Chroma Vision Limited,20351,"Environment, Housing & Regeneration Directorate",IT Equipment - Repair and Maintenance,F382
http://statistics.data.gov.uk/id/local-authority/00BF,London Borough of Sutton,15/09/2017,6916561,"22,232.00",Chroma Vision Limited,20351,Resources Directorate,Other,Y450
http://statistics.data.gov.uk/id/local-authority/00BF,London Borough of Sutton,24/07/2017,6916548,800.00,CIPFA Business Limited,12335,Resources Directorate,Subscriptions - General,F450
http://statistics.data.gov.uk/id/local-authority/00BF,London Borough of Sutton,03/08/2017,6916889,"1,445.00",CIPFA Business Limited,12335,Resources Directorate,Subscriptions - General,F450
http://statistics.data.gov.uk/id/local-authority/00BF,London Borough of Sutton,01/09/2017,6915864,"120,245.75",Citizens Advice Bureau,10969,Chief Executive's Directorate,Provider Contract Payments,F470
http://statistics.data.gov.uk/id/local-authority/00BF,London Borough of Sutton,31/08/2017,6916037,"3,610.00",City Sprint UK (Excel) Ltd,26267,Peoples Services Directorate,Hired Vehicles,E070
http://statistics.data.gov.uk/id/local-authority/00BF,London Borough of Sutton,18/08/2017,6915258,690.00,City Suburban Tree Surgeons,24817,"Environment, Housing & Regeneration Directorate",Highway Trees - Maintenance,D560
http://statistics.data.gov.uk/id/local-authority/00BF,London Borough of Sutton,18/08/2017,6915263,"2,840.88",City Suburban Tree Surgeons,24817,"Environment, Housing & Regeneration Directorate",Trees,G401
http://statistics.data.gov.uk/id/local-authority/00BF,London Borough of Sutton,18/08/2017,6915264,"2,775.00",City Suburban Tree Surgeons,24817,"Environment, Housing & Regeneration Directorate",Emergency Repairs,D540
http://statistics.data.gov.uk/id/local-authority/00BF,London Borough of Sutton,01/08/2017,6917009,"12,740.00",Cityglen Ltd T/A Hytyme ltd,24115,"Environment, Housing & Regeneration Directorate",Bed and Breakfast Accommodation,G400
http://statistics.data.gov.uk/id/local-authority/00BF,London Borough of Sutton,01/09/2017,6917016,"13,044.00",Cityglen Ltd T/A Hytyme ltd,24115,"Environment, Housing & Regeneration Directorate",Bed and Breakfast Accommodation,G400
http://statistics.data.gov.uk/id/local-authority/00BF,London Borough of Sutton,05/09/2017,6916124,494.00,Civica UK Ltd,10978,Resources Directorate,IT Licences,F385
http://statistics.data.gov.uk/id/local-authority/00BF,London Borough of Sutton,14/09/2017,6916624,"2,470.00",Civica UK Ltd,10978,Resources Directorate,Purchase of Software,F381
http://statistics.data.gov.uk/id/local-authority/00BF,London Borough of Sutton,18/09/2017,1242562,525.00,Clare McEvilly,27124,Peoples Services Directorate,Non-Maintained Childrens' Nurseries - 3 & 4 yr olds,G405
http://statistics.data.gov.uk/id/local-authority/00BF,London Borough of Sutton,08/09/2017,40109578,"2,805.00",Claremont Care Svs Ltd,18724,Peoples Services Directorate,Nursing Care - Ext Provider,G311
http://statistics.data.gov.uk/id/local-authority/00BF,London Borough of Sutton,08/09/2017,40109745,"3,584.00",Claremont Care Svs Ltd,18724,Peoples Services Directorate,Nursing Care - 3rd party top up payment,G360
http://statistics.data.gov.uk/id/local-authority/00BF,London Borough of Sutton,08/09/2017,40109745,"4,200.00",Claremont Care Svs Ltd,18724,Peoples Services Directorate,Nursing Care - Ext Provider,G311
http://statistics.data.gov.uk/id/local-authority/00BF,London Borough of Sutton,08/09/2017,40109757,"4,000.00",Claremont Care Svs Ltd,18724,Peoples Services Directorate,Nursing Care - Ext Provider,G311
http://statistics.data.gov.uk/id/local-authority/00BF,London Borough of Sutton,08/09/2017,40109812,"3,200.00",Claremont Care Svs Ltd,18724,Peoples Services Directorate,Interim Placements - Ext Provider,G317
http://statistics.data.gov.uk/id/local-authority/00BF,London Borough of Sutton,08/09/2017,40109842,"3,400.00",Claremont Care Svs Ltd,18724,Peoples Services Directorate,Nursing Care - Ext Provider,G311
http://statistics.data.gov.uk/id/local-authority/00BF,London Borough of Sutton,26/08/2017,6915651,660.00,Cloudcourt Ltd,29644,"Environment, Housing & Regeneration Directorate",Fees - Consultants (Ad Hoc),F283
http://statistics.data.gov.uk/id/local-authority/00BF,London Borough of Sutton,08/09/2017,40109517,"2,000.00",Cloyda Limited,20402,Peoples Services Directorate,Residential Care - Ext Provider,G310
http://statistics.data.gov.uk/id/local-authority/00BF,London Borough of Sutton,08/09/2017,40109612,"2,507.14",Cloyda Limited,20402,Peoples Services Directorate,Residential Care - Ext Provider,G310
http://statistics.data.gov.uk/id/local-authority/00BF,London Borough of Sutton,08/09/2017,40109569,"7,000.00",Cmg Homes Ltd,11026,Peoples Services Directorate,Residential Care - Ext Provider,G310
http://statistics.data.gov.uk/id/local-authority/00BF,London Borough of Sutton,08/09/2017,40109760,"7,036.00",Cmg Homes Ltd,11026,Peoples Services Directorate,Residential Care - Ext Provider,G310
http://statistics.data.gov.uk/id/local-authority/00BF,London Borough of Sutton,08/09/2017,40109790,"5,416.92",Cmg Homes Ltd,11026,Peoples Services Directorate,Residential Care - Ext Provider,G310
http://statistics.data.gov.uk/id/local-authority/00BF,London Borough of Sutton,19/09/2017,40111815,"4,003.69",Cmg Homes Ltd,11026,Peoples Services Directorate,Supported Living - Ext Provider,G306
http://statistics.data.gov.uk/id/local-authority/00BF,London Borough of Sutton,19/09/2017,40111816,"4,592.43",Cmg Homes Ltd,11026,Peoples Services Directorate,Supported Living - Ext Provider,G306
http://statistics.data.gov.uk/id/local-authority/00BF,London Borough of Sutton,19/09/2017,40111817,"3,808.57",Cmg Homes Ltd,11026,Peoples Services Directorate,Supported Living - Ext Provider,G306
http://statistics.data.gov.uk/id/local-authority/00BF,London Borough of Sutton,19/09/2017,40111818,"2,670.96",Cmg Homes Ltd,11026,Peoples Services Directorate,Supported Living - Ext Provider,G306
http://statistics.data.gov.uk/id/local-authority/00BF,London Borough of Sutton,31/08/2017,6916036,"1,646.88",Cobalt Telephone Technologies,15645,"Environment, Housing & Regeneration Directorate",Credit Card Commission,F460
http://statistics.data.gov.uk/id/local-authority/00BF,London Borough of Sutton,09/08/2017,6916332,"24,766.64",Cognus Ltd,26829,Peoples Services Directorate,LAC - Education,F269
http://statistics.data.gov.uk/id/local-authority/00BF,London Borough of Sutton,13/09/2017,6916460,"99,756.93",Cognus Ltd,26829,Peoples Services Directorate,Contractual Consultant Fees,G430
http://statistics.data.gov.uk/id/local-authority/00BF,London Borough of Sutton,13/09/2017,6916460,"242,243.07",Cognus Ltd,26829,Peoples Services Directorate,Contractual Consultant Fees,G430
http://statistics.data.gov.uk/id/local-authority/00BF,London Borough of Sutton,14/09/2017,6916529,"22,266.68",Cognus Ltd,26829,Peoples Services Directorate,LAC - Education,F269
http://statistics.data.gov.uk/id/local-authority/00BF,London Borough of Sutton,16/08/2017,40111054,567.00,Community Home Care Provider,11097,Peoples Services Directorate,Home Care,G334
http://statistics.data.gov.uk/id/local-authority/00BF,London Borough of Sutton,16/08/2017,40111068,472.50,Community Home Care Provider,11097,Peoples Services Directorate,Home Care,G334
http://statistics.data.gov.uk/id/local-authority/00BF,London Borough of Sutton,16/08/2017,40111070,476.00,Community Home Care Provider,11097,Peoples Services Directorate,Home Care,G334
http://statistics.data.gov.uk/id/local-authority/00BF,London Borough of Sutton,16/08/2017,40111079,476.00,Community Home Care Provider,11097,Peoples Services Directorate,Home Care,G334
http://statistics.data.gov.uk/id/local-authority/00BF,London Borough of Sutton,16/08/2017,40111086,465.75,Community Home Care Provider,11097,Peoples Services Directorate,Home Care,G334
http://statistics.data.gov.uk/id/local-authority/00BF,London Borough of Sutton,16/08/2017,40111089,567.00,Community Home Care Provider,11097,Peoples Services Directorate,Home Care,G334
http://statistics.data.gov.uk/id/local-authority/00BF,London Borough of Sutton,29/08/2017,40111351,472.50,Community Home Care Provider,11097,Peoples Services Directorate,Home Care,G334
http://statistics.data.gov.uk/id/local-authority/00BF,London Borough of Sutton,29/08/2017,40111352,567.00,Community Home Care Provider,11097,Peoples Services Directorate,Home Care,G334
http://statistics.data.gov.uk/id/local-authority/00BF,London Borough of Sutton,29/08/2017,40111353,476.00,Community Home Care Provider,11097,Peoples Services Directorate,Home Care,G334
http://statistics.data.gov.uk/id/local-authority/00BF,London Borough of Sutton,08/09/2017,40111356,476.00,Community Home Care Provider,11097,Peoples Services Directorate,Home Care,G334
http://statistics.data.gov.uk/id/local-authority/00BF,London Borough of Sutton,29/08/2017,40111362,476.00,Community Home Care Provider,11097,Peoples Services Directorate,Home Care,G334
http://statistics.data.gov.uk/id/local-authority/00BF,London Borough of Sutton,29/08/2017,40111363,472.50,Community Home Care Provider,11097,Peoples Services Directorate,Home Care,G334
http://statistics.data.gov.uk/id/local-authority/00BF,London Borough of Sutton,08/09/2017,40111377,567.00,Community Home Care Provider,11097,Peoples Services Directorate,Home Care,G334
http://statistics.data.gov.uk/id/local-authority/00BF,London Borough of Sutton,11/09/2017,40111378,472.50,Community Home Care Provider,11097,Peoples Services Directorate,Home Care,G334
http://statistics.data.gov.uk/id/local-authority/00BF,London Borough of Sutton,11/09/2017,40111386,567.00,Community Home Care Provider,11097,Peoples Services Directorate,Home Care,G334
http://statistics.data.gov.uk/id/local-authority/00BF,London Borough of Sutton,08/09/2017,40111395,472.50,Community Home Care Provider,11097,Peoples Services Directorate,Home Care,G334
http://statistics.data.gov.uk/id/local-authority/00BF,London Borough of Sutton,29/08/2017,40111403,567.00,Community Home Care Provider,11097,Peoples Services Directorate,Home Care,G334
http://statistics.data.gov.uk/id/local-authority/00BF,London Borough of Sutton,11/09/2017,40111406,476.00,Community Home Care Provider,11097,Peoples Services Directorate,Home Care,G334
http://statistics.data.gov.uk/id/local-authority/00BF,London Borough of Sutton,18/09/2017,1242542,"1,769.67",Connie GBetuwa,99338,Peoples Services Directorate,Non-Maintained Childrens' Nurseries - 3 & 4 yr olds,G405
http://statistics.data.gov.uk/id/local-authority/00BF,London Borough of Sutton,31/08/2017,6916345,792.50,Consult54 Ltd,26814,"Environment, Housing & Regeneration Directorate",Fees - Consultants (Ad Hoc),F283
http://statistics.data.gov.uk/id/local-authority/00BF,London Borough of Sutton,07/09/2017,6916270,"1,524.32",Contract Security Services,23827,Chief Executive's Directorate,Security - Cash In Transit,G410
http://statistics.data.gov.uk/id/local-authority/00BF,London Borough of Sutton,18/09/2017,1242446,"5,471.55",Co-operative Childcare,24665,Peoples Services Directorate,Non-Maintained Childrens' Nurseries - 2 Year Olds,G404
http://statistics.data.gov.uk/id/local-authority/00BF,London Borough of Sutton,18/09/2017,1242498,"22,660.83",Co-operative Childcare,24665,Peoples Services Directorate,Non-Maintained Childrens' Nurseries - 3 & 4 yr olds,G405
http://statistics.data.gov.uk/id/local-authority/00BF,London Borough of Sutton,07/09/2017,6916214,"15,910.66",Corelogic Ltd,24747,Peoples Services Directorate,Fees - Computer Software,F384
http://statistics.data.gov.uk/id/local-authority/00BF,London Borough of Sutton,26/07/2017,40109144,"13,728.66",Cornerways Childrens Services Ltd,18435,Peoples Services Directorate,Residential Care-Children,G330
http://statistics.data.gov.uk/id/local-authority/00BF,London Borough of Sutton,31/08/2017,6915965,"14,466.53",Corporate Document Services Ltd,11098,Resources Directorate,Suspense/Holding Accounts,X550
http://statistics.data.gov.uk/id/local-authority/00BF,London Borough of Sutton,31/08/2017,6916378,717.60,Corporate Document Services Ltd,11098,"Environment, Housing & Regeneration Directorate",Advertising/Publicity (non Staff),F240
http://statistics.data.gov.uk/id/local-authority/00BF,London Borough of Sutton,01/09/2017,6915963,"166,565.17",Cranstoun,11184,Peoples Services Directorate,Provider Contract Payments,F470
http://statistics.data.gov.uk/id/local-authority/00BF,London Borough of Sutton,26/07/2017,1241871,"12,666.16",Cressey Oasis Education Ltd,27626,Peoples Services Directorate,Independent Schools,G325
http://statistics.data.gov.uk/id/local-authority/00BF,London Borough of Sutton,14/07/2017,6914335,"1,550.00",Crest Manor Ltd,25469,Peoples Services Directorate,Approved Lodgings,H323
http://statistics.data.gov.uk/id/local-authority/00BF,London Borough of Sutton,14/07/2017,6914358,"1,970.00",Crest Manor Ltd,25469,Peoples Services Directorate,Approved Lodgings,H323
http://statistics.data.gov.uk/id/local-authority/00BF,London Borough of Sutton,14/07/2017,6914362,"1,375.00",Crest Manor Ltd,25469,Peoples Services Directorate,Approved Lodgings,H323
http://statistics.data.gov.uk/id/local-authority/00BF,London Borough of Sutton,15/08/2017,6915884,"1,922.00",Crest Manor Ltd,25469,Peoples Services Directorate,C.C.A Rent & Utilities,H211
http://statistics.data.gov.uk/id/local-authority/00BF,London Borough of Sutton,15/08/2017,6915989,"2,363.00",Crest Manor Ltd,25469,Peoples Services Directorate,Approved Lodgings,H323
http://statistics.data.gov.uk/id/local-authority/00BF,London Borough of Sutton,15/08/2017,6915991,"1,695.00",Crest Manor Ltd,25469,Peoples Services Directorate,Approved Lodgings,H323
http://statistics.data.gov.uk/id/local-authority/00BF,London Borough of Sutton,15/08/2017,6915993,"1,970.00",Crest Manor Ltd,25469,Peoples Services Directorate,Approved Lodgings,H323
http://statistics.data.gov.uk/id/local-authority/00BF,London Borough of Sutton,15/08/2017,6915995,"1,375.00",Crest Manor Ltd,25469,Peoples Services Directorate,Approved Lodgings,H323
http://statistics.data.gov.uk/id/local-authority/00BF,London Borough of Sutton,15/08/2017,6916067,770.28,Crest Manor Ltd,25469,Peoples Services Directorate,Approved Lodgings,H323
http://statistics.data.gov.uk/id/local-authority/00BF,London Borough of Sutton,15/08/2017,6916766,"1,645.00",Crest Manor Ltd,25469,Peoples Services Directorate,Approved Lodgings,H323
http://statistics.data.gov.uk/id/local-authority/00BF,London Borough of Sutton,08/09/2017,40109676,"4,168.24",Crossways Community,11187,Peoples Services Directorate,Residential Care - Ext Provider,G310
http://statistics.data.gov.uk/id/local-authority/00BF,London Borough of Sutton,08/09/2017,40109799,"2,404.28",Crossways Community,11187,Peoples Services Directorate,Residential Care - Ext Provider,G310
http://statistics.data.gov.uk/id/local-authority/00BF,London Borough of Sutton,26/09/2017,1242847,"1,832.14",Croydon Churches Housing Association,19583,"Environment, Housing & Regeneration Directorate",Supporting People - Older People Services,H244
http://statistics.data.gov.uk/id/local-authority/00BF,London Borough of Sutton,06/03/2017,6905124,"44,797.88",Croydon Council,11227,"Environment, Housing & Regeneration Directorate",Civic Amenity,G172
http://statistics.data.gov.uk/id/local-authority/00BF,London Borough of Sutton,05/06/2017,6910316,"4,710.49",Croydon Council,11227,"Environment, Housing & Regeneration Directorate",Civic Amenity,G172
http://statistics.data.gov.uk/id/local-authority/00BF,London Borough of Sutton,12/05/2017,6916081,"-6,287.83",Croydon Council,11227,"Environment, Housing & Regeneration Directorate",Civic Amenity,G172
http://statistics.data.gov.uk/id/local-authority/00BF,London Borough of Sutton,08/09/2017,6916552,"154,203.94",Croydon Council,11227,"Environment, Housing & Regeneration Directorate",Civic Amenity,G172
http://statistics.data.gov.uk/id/local-authority/00BF,London Borough of Sutton,16/05/2017,6916554,"15,872.63",Croydon Council,11227,"Environment, Housing & Regeneration Directorate",Civic Amenity,G172
http://statistics.data.gov.uk/id/local-authority/00BF,London Borough of Sutton,18/09/2017,6916697,"37,938.98",Croydon Council,11227,"Environment, Housing & Regeneration Directorate",Idverde - Contract Payment,G250
http://statistics.data.gov.uk/id/local-authority/00BF,London Borough of Sutton,08/09/2017,40109329,"8,926.00",CSS Ltd t/a Grove Care,19184,Peoples Services Directorate,Residential Care - Ext Provider,G310
http://statistics.data.gov.uk/id/local-authority/00BF,London Borough of Sutton,15/08/2017,6916235,"21,490.00",Culvers House Primary School,11252,Peoples Services Directorate,Building Works -Main Contractor,Y350
http://statistics.data.gov.uk/id/local-authority/00BF,London Borough of Sutton,15/08/2017,6916235,"8,826.00",Culvers House Primary School,11252,Peoples Services Directorate,Building Works -Main Contractor,Y350
http://statistics.data.gov.uk/id/local-authority/00BF,London Borough of Sutton,13/09/2017,6916462,"12,837.88",Curl La Tourelle Architects,18610,"Environment, Housing & Regeneration Directorate",External Fees  - Architects,Y100
http://statistics.data.gov.uk/id/local-authority/00BF,London Borough of Sutton,13/09/2017,6916463,967.50,Curl La Tourelle Architects,18610,"Environment, Housing & Regeneration Directorate",External Fees  - Architects,Y100
http://statistics.data.gov.uk/id/local-authority/00BF,London Borough of Sutton,13/09/2017,6916464,"1,180.35",Curl La Tourelle Architects,18610,"Environment, Housing & Regeneration Directorate",External Fees  - Architects,Y100
http://statistics.data.gov.uk/id/local-authority/00BF,London Borough of Sutton,13/09/2017,6916465,"5,130.33",Curl La Tourelle Architects,18610,Resources Directorate,External Fees  - Architects,Y100
http://statistics.data.gov.uk/id/local-authority/00BF,London Borough of Sutton,31/08/2017,6916540,"2,077.00",Cyberstyle Letting Limited,29264,"Environment, Housing & Regeneration Directorate",Bed and Breakfast Accommodation,G400
http://statistics.data.gov.uk/id/local-authority/00BF,London Borough of Sutton,31/08/2017,6916544,"1,116.00",Cyberstyle Letting Limited,29264,"Environment, Housing & Regeneration Directorate",Bed and Breakfast Accommodation,G400
http://statistics.data.gov.uk/id/local-authority/00BF,London Borough of Sutton,31/08/2017,6916545,"2,077.00",Cyberstyle Letting Limited,29264,"Environment, Housing & Regeneration Directorate",Bed and Breakfast Accommodation,G400
http://statistics.data.gov.uk/id/local-authority/00BF,London Borough of Sutton,04/09/2017,6916055,"6,576.34",Daley Bread Ltd T/A Daley Care,28917,Peoples Services Directorate,Approved Lodgings,H323
http://statistics.data.gov.uk/id/local-authority/00BF,London Borough of Sutton,04/09/2017,6916057,"4,871.34",Daley Bread Ltd T/A Daley Care,28917,Peoples Services Directorate,Approved Lodgings,H323
http://statistics.data.gov.uk/id/local-authority/00BF,London Borough of Sutton,04/09/2017,6916058,"6,576.34",Daley Bread Ltd T/A Daley Care,28917,Peoples Services Directorate,Approved Lodgings,H323
http://statistics.data.gov.uk/id/local-authority/00BF,London Borough of Sutton,04/09/2017,6916059,"4,871.34",Daley Bread Ltd T/A Daley Care,28917,Peoples Services Directorate,Approved Lodgings,H323
http://statistics.data.gov.uk/id/local-authority/00BF,London Borough of Sutton,15/08/2017,40109224,"8,164.55",Daley Bread Ltd T/A Daley Care,28917,Peoples Services Directorate,Approved Lodgings,H323
http://statistics.data.gov.uk/id/local-authority/00BF,London Borough of Sutton,04/09/2017,40109277,"4,992.31",Daley Bread Ltd T/A Daley Care,28917,Peoples Services Directorate,Approved Lodgings,H323
http://statistics.data.gov.uk/id/local-authority/00BF,London Borough of Sutton,23/08/2017,6916598,939.85,Redacted,99898,"Environment, Housing & Regeneration Directorate",Depositors,X460
http://statistics.data.gov.uk/id/local-authority/00BF,London Borough of Sutton,23/08/2017,6916598,"3,000.00",Redacted,99898,"Environment, Housing & Regeneration Directorate",Depositors,X460
http://statistics.data.gov.uk/id/local-authority/00BF,London Borough of Sutton,20/09/2017,6916866,"1,209.00",David V.  Randall,29122,"Environment, Housing & Regeneration Directorate",General Office Expenses,F235
http://statistics.data.gov.uk/id/local-authority/00BF,London Borough of Sutton,20/08/2017,40108395,603.00,Day and Nite Services,26773,Peoples Services Directorate,Home Care,G334
http://statistics.data.gov.uk/id/local-authority/00BF,London Borough of Sutton,27/08/2017,40108396,603.00,Day and Nite Services,26773,Peoples Services Directorate,Home Care,G334
http://statistics.data.gov.uk/id/local-authority/00BF,London Borough of Sutton,29/08/2017,40108540,444.00,Day and Nite Services,26773,Peoples Services Directorate,Home Care,G334
http://statistics.data.gov.uk/id/local-authority/00BF,London Borough of Sutton,11/09/2017,40111049,734.00,Day and Nite Services,26773,Peoples Services Directorate,Home Care,G334
http://statistics.data.gov.uk/id/local-authority/00BF,London Borough of Sutton,11/09/2017,40111055,534.00,Day and Nite Services,26773,Peoples Services Directorate,Home Care,G334
http://statistics.data.gov.uk/id/local-authority/00BF,London Borough of Sutton,11/09/2017,40111056,457.00,Day and Nite Services,26773,Peoples Services Directorate,Home Care,G334
http://statistics.data.gov.uk/id/local-authority/00BF,London Borough of Sutton,11/09/2017,40111057,492.00,Day and Nite Services,26773,Peoples Services Directorate,Home Care,G334
http://statistics.data.gov.uk/id/local-authority/00BF,London Borough of Sutton,11/09/2017,40111060,560.00,Day and Nite Services,26773,Peoples Services Directorate,Home Care,G334
http://statistics.data.gov.uk/id/local-authority/00BF,London Borough of Sutton,11/09/2017,40111063,492.00,Day and Nite Services,26773,Peoples Services Directorate,Home Care,G334
http://statistics.data.gov.uk/id/local-authority/00BF,London Borough of Sutton,08/05/2017,40111067,496.00,Day and Nite Services,26773,Peoples Services Directorate,Home Care,G334
http://statistics.data.gov.uk/id/local-authority/00BF,London Borough of Sutton,11/09/2017,40111077,520.00,Day and Nite Services,26773,Peoples Services Directorate,Home Care,G334
http://statistics.data.gov.uk/id/local-authority/00BF,London Borough of Sutton,11/09/2017,40111083,416.00,Day and Nite Services,26773,Peoples Services Directorate,Home Care,G334
http://statistics.data.gov.uk/id/local-authority/00BF,London Borough of Sutton,11/09/2017,40111093,492.00,Day and Nite Services,26773,Peoples Services Directorate,Home Care,G334
http://statistics.data.gov.uk/id/local-authority/00BF,London Borough of Sutton,11/09/2017,40111096,534.00,Day and Nite Services,26773,Peoples Services Directorate,Home Care,G334
http://statistics.data.gov.uk/id/local-authority/00BF,London Borough of Sutton,11/09/2017,40111099,562.00,Day and Nite Services,26773,Peoples Services Directorate,Home Care,G334
http://statistics.data.gov.uk/id/local-authority/00BF,London Borough of Sutton,11/09/2017,40111104,464.00,Day and Nite Services,26773,Peoples Services Directorate,Home Care,G334
http://statistics.data.gov.uk/id/local-authority/00BF,London Borough of Sutton,05/09/2017,40111394,492.00,Day and Nite Services,26773,Peoples Services Directorate,Home Care,G334
http://statistics.data.gov.uk/id/local-authority/00BF,London Borough of Sutton,18/09/2017,40114522,534.00,Day and Nite Services,26773,Peoples Services Directorate,Home Care,G334
http://statistics.data.gov.uk/id/local-authority/00BF,London Borough of Sutton,18/09/2017,40114523,464.00,Day and Nite Services,26773,Peoples Services Directorate,Home Care,G334
http://statistics.data.gov.uk/id/local-authority/00BF,London Borough of Sutton,18/09/2017,40114525,457.00,Day and Nite Services,26773,Peoples Services Directorate,Home Care,G334
http://statistics.data.gov.uk/id/local-authority/00BF,London Borough of Sutton,18/09/2017,40114533,416.00,Day and Nite Services,26773,Peoples Services Directorate,Home Care,G334
http://statistics.data.gov.uk/id/local-authority/00BF,London Borough of Sutton,18/09/2017,40114536,520.00,Day and Nite Services,26773,Peoples Services Directorate,Home Care,G334
http://statistics.data.gov.uk/id/local-authority/00BF,London Borough of Sutton,18/09/2017,40114559,492.00,Day and Nite Services,26773,Peoples Services Directorate,Home Care,G334
http://statistics.data.gov.uk/id/local-authority/00BF,London Borough of Sutton,18/09/2017,40114560,492.00,Day and Nite Services,26773,Peoples Services Directorate,Home Care,G334
http://statistics.data.gov.uk/id/local-authority/00BF,London Borough of Sutton,18/09/2017,40114561,618.00,Day and Nite Services,26773,Peoples Services Directorate,Home Care,G334
http://statistics.data.gov.uk/id/local-authority/00BF,London Borough of Sutton,18/09/2017,40114563,734.00,Day and Nite Services,26773,Peoples Services Directorate,Home Care,G334
http://statistics.data.gov.uk/id/local-authority/00BF,London Borough of Sutton,18/09/2017,40114581,492.00,Day and Nite Services,26773,Peoples Services Directorate,Home Care,G334
http://statistics.data.gov.uk/id/local-authority/00BF,London Borough of Sutton,18/09/2017,40114582,562.00,Day and Nite Services,26773,Peoples Services Directorate,Home Care,G334
http://statistics.data.gov.uk/id/local-authority/00BF,London Borough of Sutton,18/09/2017,40114588,534.00,Day and Nite Services,26773,Peoples Services Directorate,Home Care,G334
http://statistics.data.gov.uk/id/local-authority/00BF,London Borough of Sutton,03/09/2017,40114887,687.00,Day and Nite Services,26773,Peoples Services Directorate,Home Care,G334
http://statistics.data.gov.uk/id/local-authority/00BF,London Borough of Sutton,03/09/2017,40114944,467.00,Day and Nite Services,26773,Peoples Services Directorate,Home Care,G334
http://statistics.data.gov.uk/id/local-authority/00BF,London Borough of Sutton,03/09/2017,40114986,467.00,Day and Nite Services,26773,Peoples Services Directorate,Home Care,G334
http://statistics.data.gov.uk/id/local-authority/00BF,London Borough of Sutton,31/07/2017,6914296,556.50,Deborah Klee Consultancy Ltd,25029,Peoples Services Directorate,Contractual Consultant Fees,G430
http://statistics.data.gov.uk/id/local-authority/00BF,London Borough of Sutton,31/08/2017,6916658,500.00,Deborah Klee Consultancy Ltd,25029,Peoples Services Directorate,Contractual Consultant Fees,G430
http://statistics.data.gov.uk/id/local-authority/00BF,London Borough of Sutton,31/08/2017,6916247,476.96,Deepstore Ltd,21074,Resources Directorate,Offsite Storage,F231
http://statistics.data.gov.uk/id/local-authority/00BF,London Borough of Sutton,31/08/2017,6916248,602.35,Deepstore Ltd,21074,Resources Directorate,Offsite Storage,F231
http://statistics.data.gov.uk/id/local-authority/00BF,London Borough of Sutton,14/07/2017,6916421,500.00,Degenis,27281,Peoples Services Directorate,LAC - Education,F269
http://statistics.data.gov.uk/id/local-authority/00BF,London Borough of Sutton,04/05/2017,6915853,"1,272.00",Denhan Property Services,28353,"Environment, Housing & Regeneration Directorate",Bed and Breakfast Accommodation,G400
http://statistics.data.gov.uk/id/local-authority/00BF,London Borough of Sutton,09/08/2017,6915916,"1,441.50",Denhan Property Services,28353,"Environment, Housing & Regeneration Directorate",Bed and Breakfast Accommodation,G400
http://statistics.data.gov.uk/id/local-authority/00BF,London Borough of Sutton,09/08/2017,6915917,"1,271.00",Denhan Property Services,28353,"Environment, Housing & Regeneration Directorate",Bed and Breakfast Accommodation,G400
http://statistics.data.gov.uk/id/local-authority/00BF,London Borough of Sutton,09/08/2017,6915918,"1,441.50",Denhan Property Services,28353,"Environment, Housing & Regeneration Directorate",Bed and Breakfast Accommodation,G400
http://statistics.data.gov.uk/id/local-authority/00BF,London Borough of Sutton,09/08/2017,6915919,"1,767.00",Denhan Property Services,28353,"Environment, Housing & Regeneration Directorate",Bed and Breakfast Accommodation,G400
http://statistics.data.gov.uk/id/local-authority/00BF,London Borough of Sutton,09/08/2017,6915920,"1,302.00",Denhan Property Services,28353,"Environment, Housing & Regeneration Directorate",Bed and Breakfast Accommodation,G400
http://statistics.data.gov.uk/id/local-authority/00BF,London Borough of Sutton,09/08/2017,6915921,"2,294.00",Denhan Property Services,28353,"Environment, Housing & Regeneration Directorate",Bed and Breakfast Accommodation,G400
http://statistics.data.gov.uk/id/local-authority/00BF,London Borough of Sutton,09/08/2017,6915922,"1,023.00",Denhan Property Services,28353,"Environment, Housing & Regeneration Directorate",Bed and Breakfast Accommodation,G400
http://statistics.data.gov.uk/id/local-authority/00BF,London Borough of Sutton,09/08/2017,6915923,"1,171.80",Denhan Property Services,28353,"Environment, Housing & Regeneration Directorate",Bed and Breakfast Accommodation,G400
http://statistics.data.gov.uk/id/local-authority/00BF,London Borough of Sutton,09/08/2017,6915924,"1,023.00",Denhan Property Services,28353,"Environment, Housing & Regeneration Directorate",Bed and Breakfast Accommodation,G400
http://statistics.data.gov.uk/id/local-authority/00BF,London Borough of Sutton,09/08/2017,6915925,"1,619.75",Denhan Property Services,28353,"Environment, Housing & Regeneration Directorate",Bed and Breakfast Accommodation,G400
http://statistics.data.gov.uk/id/local-authority/00BF,London Borough of Sutton,09/08/2017,6915937,"1,441.50",Denhan Property Services,28353,"Environment, Housing & Regeneration Directorate",Bed and Breakfast Accommodation,G400
http://statistics.data.gov.uk/id/local-authority/00BF,London Borough of Sutton,09/08/2017,6915939,"1,240.00",Denhan Property Services,28353,"Environment, Housing & Regeneration Directorate",Bed and Breakfast Accommodation,G400
http://statistics.data.gov.uk/id/local-authority/00BF,London Borough of Sutton,09/08/2017,6915940,"1,974.70",Denhan Property Services,28353,"Environment, Housing & Regeneration Directorate",Bed and Breakfast Accommodation,G400
http://statistics.data.gov.uk/id/local-authority/00BF,London Borough of Sutton,09/08/2017,6915941,"1,441.50",Denhan Property Services,28353,"Environment, Housing & Regeneration Directorate",Bed and Breakfast Accommodation,G400
http://statistics.data.gov.uk/id/local-authority/00BF,London Borough of Sutton,09/08/2017,6915942,"1,116.00",Denhan Property Services,28353,"Environment, Housing & Regeneration Directorate",Bed and Breakfast Accommodation,G400
http://statistics.data.gov.uk/id/local-authority/00BF,London Borough of Sutton,09/08/2017,6915943,"1,271.00",Denhan Property Services,28353,"Environment, Housing & Regeneration Directorate",Bed and Breakfast Accommodation,G400
http://statistics.data.gov.uk/id/local-authority/00BF,London Borough of Sutton,09/08/2017,6915944,"1,240.00",Denhan Property Services,28353,"Environment, Housing & Regeneration Directorate",Bed and Breakfast Accommodation,G400
http://statistics.data.gov.uk/id/local-authority/00BF,London Borough of Sutton,09/08/2017,6915945,"1,643.00",Denhan Property Services,28353,"Environment, Housing & Regeneration Directorate",Bed and Breakfast Accommodation,G400
http://statistics.data.gov.uk/id/local-authority/00BF,London Borough of Sutton,09/08/2017,6915946,"1,271.00",Denhan Property Services,28353,"Environment, Housing & Regeneration Directorate",Bed and Breakfast Accommodation,G400
http://statistics.data.gov.uk/id/local-authority/00BF,London Borough of Sutton,12/09/2017,6916703,"1,240.00",Denhan Property Services,28353,"Environment, Housing & Regeneration Directorate",Bed and Breakfast Accommodation,G400
http://statistics.data.gov.uk/id/local-authority/00BF,London Borough of Sutton,12/09/2017,6916704,"1,240.00",Denhan Property Services,28353,"Environment, Housing & Regeneration Directorate",Bed and Breakfast Accommodation,G400
http://statistics.data.gov.uk/id/local-authority/00BF,London Borough of Sutton,12/09/2017,6916705,"1,643.00",Denhan Property Services,28353,"Environment, Housing & Regeneration Directorate",Bed and Breakfast Accommodation,G400
http://statistics.data.gov.uk/id/local-authority/00BF,London Borough of Sutton,12/09/2017,6916706,"1,271.00",Denhan Property Services,28353,"Environment, Housing & Regeneration Directorate",Bed and Breakfast Accommodation,G400
http://statistics.data.gov.uk/id/local-authority/00BF,London Borough of Sutton,12/09/2017,6916707,"1,441.50",Denhan Property Services,28353,"Environment, Housing & Regeneration Directorate",Bed and Breakfast Accommodation,G400
http://statistics.data.gov.uk/id/local-authority/00BF,London Borough of Sutton,12/09/2017,6916708,"2,294.00",Denhan Property Services,28353,"Environment, Housing & Regeneration Directorate",Bed and Breakfast Accommodation,G400
http://statistics.data.gov.uk/id/local-authority/00BF,London Borough of Sutton,12/09/2017,6916709,"1,943.70",Denhan Property Services,28353,"Environment, Housing & Regeneration Directorate",Bed and Breakfast Accommodation,G400
http://statistics.data.gov.uk/id/local-authority/00BF,London Borough of Sutton,12/09/2017,6916710,"1,271.00",Denhan Property Services,28353,"Environment, Housing & Regeneration Directorate",Bed and Breakfast Accommodation,G400
http://statistics.data.gov.uk/id/local-authority/00BF,London Borough of Sutton,12/09/2017,6916711,"1,054.00",Denhan Property Services,28353,"Environment, Housing & Regeneration Directorate",Bed and Breakfast Accommodation,G400
http://statistics.data.gov.uk/id/local-authority/00BF,London Borough of Sutton,12/09/2017,6916712,790.50,Denhan Property Services,28353,"Environment, Housing & Regeneration Directorate",Bed and Breakfast Accommodation,G400
http://statistics.data.gov.uk/id/local-authority/00BF,London Borough of Sutton,12/09/2017,6916713,"1,619.75",Denhan Property Services,28353,"Environment, Housing & Regeneration Directorate",Bed and Breakfast Accommodation,G400
http://statistics.data.gov.uk/id/local-authority/00BF,London Borough of Sutton,12/09/2017,6916714,"1,943.70",Denhan Property Services,28353,"Environment, Housing & Regeneration Directorate",Bed and Breakfast Accommodation,G400
http://statistics.data.gov.uk/id/local-authority/00BF,London Borough of Sutton,12/09/2017,6916715,"1,441.50",Denhan Property Services,28353,"Environment, Housing & Regeneration Directorate",Bed and Breakfast Accommodation,G400
http://statistics.data.gov.uk/id/local-authority/00BF,London Borough of Sutton,12/09/2017,6916716,"1,116.00",Denhan Property Services,28353,"Environment, Housing & Regeneration Directorate",Bed and Breakfast Accommodation,G400
http://statistics.data.gov.uk/id/local-authority/00BF,London Borough of Sutton,12/09/2017,6916717,"1,974.70",Denhan Property Services,28353,"Environment, Housing & Regeneration Directorate",Bed and Breakfast Accommodation,G400
http://statistics.data.gov.uk/id/local-authority/00BF,London Borough of Sutton,12/09/2017,6916718,"1,023.00",Denhan Property Services,28353,"Environment, Housing & Regeneration Directorate",Bed and Breakfast Accommodation,G400
http://statistics.data.gov.uk/id/local-authority/00BF,London Borough of Sutton,12/09/2017,6916719,"1,178.00",Denhan Property Services,28353,"Environment, Housing & Regeneration Directorate",Bed and Breakfast Accommodation,G400
http://statistics.data.gov.uk/id/local-authority/00BF,London Borough of Sutton,12/09/2017,6916720,"1,236.90",Denhan Property Services,28353,"Environment, Housing & Regeneration Directorate",Bed and Breakfast Accommodation,G400
http://statistics.data.gov.uk/id/local-authority/00BF,London Borough of Sutton,12/09/2017,6916721,"1,441.50",Denhan Property Services,28353,"Environment, Housing & Regeneration Directorate",Bed and Breakfast Accommodation,G400
http://statistics.data.gov.uk/id/local-authority/00BF,London Borough of Sutton,12/09/2017,6916722,"1,488.00",Denhan Property Services,28353,"Environment, Housing & Regeneration Directorate",Bed and Breakfast Accommodation,G400
http://statistics.data.gov.uk/id/local-authority/00BF,London Borough of Sutton,12/09/2017,6916723,"1,767.00",Denhan Property Services,28353,"Environment, Housing & Regeneration Directorate",Bed and Breakfast Accommodation,G400
http://statistics.data.gov.uk/id/local-authority/00BF,London Borough of Sutton,12/09/2017,6916724,"1,302.00",Denhan Property Services,28353,"Environment, Housing & Regeneration Directorate",Bed and Breakfast Accommodation,G400
http://statistics.data.gov.uk/id/local-authority/00BF,London Borough of Sutton,12/09/2017,6916725,"1,171.80",Denhan Property Services,28353,"Environment, Housing & Regeneration Directorate",Bed and Breakfast Accommodation,G400
http://statistics.data.gov.uk/id/local-authority/00BF,London Borough of Sutton,12/09/2017,6916726,"1,441.50",Denhan Property Services,28353,"Environment, Housing & Regeneration Directorate",Bed and Breakfast Accommodation,G400
http://statistics.data.gov.uk/id/local-authority/00BF,London Borough of Sutton,12/09/2017,6916727,"1,271.00",Denhan Property Services,28353,"Environment, Housing & Regeneration Directorate",Bed and Breakfast Accommodation,G400
http://statistics.data.gov.uk/id/local-authority/00BF,London Borough of Sutton,12/09/2017,6916728,"1,116.00",Denhan Property Services,28353,"Environment, Housing & Regeneration Directorate",Bed and Breakfast Accommodation,G400
http://statistics.data.gov.uk/id/local-authority/00BF,London Borough of Sutton,12/09/2017,6916729,"1,085.00",Denhan Property Services,28353,"Environment, Housing & Regeneration Directorate",Bed and Breakfast Accommodation,G400
http://statistics.data.gov.uk/id/local-authority/00BF,London Borough of Sutton,12/09/2017,6916730,"1,023.00",Denhan Property Services,28353,"Environment, Housing & Regeneration Directorate",Bed and Breakfast Accommodation,G400
http://statistics.data.gov.uk/id/local-authority/00BF,London Borough of Sutton,12/09/2017,6916731,"1,410.50",Denhan Property Services,28353,"Environment, Housing & Regeneration Directorate",Bed and Breakfast Accommodation,G400
http://statistics.data.gov.uk/id/local-authority/00BF,London Borough of Sutton,13/09/2017,1242265,"11,434.00",Devonshire Primary School,11321,Peoples Services Directorate,Top-up Funding,G064
http://statistics.data.gov.uk/id/local-authority/00BF,London Borough of Sutton,01/09/2017,40108757,"2,343.60",Direct Care And Support Services,23268,Peoples Services Directorate,Supported Living - Ext Provider,G306
http://statistics.data.gov.uk/id/local-authority/00BF,London Borough of Sutton,01/09/2017,40108758,"2,497.98",Direct Care And Support Services,23268,Peoples Services Directorate,Supported Living - Ext Provider,G306
http://statistics.data.gov.uk/id/local-authority/00BF,London Borough of Sutton,01/09/2017,40108759,"2,356.31",Direct Care And Support Services,23268,Peoples Services Directorate,Supported Living - Ext Provider,G306
http://statistics.data.gov.uk/id/local-authority/00BF,London Borough of Sutton,01/09/2017,40108762,"3,132.80",Direct Care And Support Services,23268,Peoples Services Directorate,Supported Living - Ext Provider,G306
http://statistics.data.gov.uk/id/local-authority/00BF,London Borough of Sutton,01/09/2017,40109408,"3,496.00",Direct Care And Support Services,23268,Peoples Services Directorate,Supported Living - Ext Provider,G306
http://statistics.data.gov.uk/id/local-authority/00BF,London Borough of Sutton,04/09/2017,40109420,"2,664.48",Direct Care And Support Services,23268,Peoples Services Directorate,Supported Living - Ext Provider,G306
http://statistics.data.gov.uk/id/local-authority/00BF,London Borough of Sutton,01/09/2017,40109421,"2,232.44",Direct Care And Support Services,23268,Peoples Services Directorate,Supported Living - Ext Provider,G306
http://statistics.data.gov.uk/id/local-authority/00BF,London Borough of Sutton,01/09/2017,40109427,"2,664.48",Direct Care And Support Services,23268,Peoples Services Directorate,Supported Living - Ext Provider,G306
http://statistics.data.gov.uk/id/local-authority/00BF,London Borough of Sutton,18/08/2017,40109151,"15,057.01",Direct Care Ltd,28832,Peoples Services Directorate,Residential Care-Children,G330
http://statistics.data.gov.uk/id/local-authority/00BF,London Borough of Sutton,18/08/2017,40109269,"15,477.99",Direct Care Ltd,28832,Peoples Services Directorate,Residential Care-Children,G330
http://statistics.data.gov.uk/id/local-authority/00BF,London Borough of Sutton,27/07/2017,6913906,746.00,DMA Signs Limited,20534,"Environment, Housing & Regeneration Directorate",Special,D535
http://statistics.data.gov.uk/id/local-authority/00BF,London Borough of Sutton,31/08/2017,6916013,894.00,DMA Signs Limited,20534,"Environment, Housing & Regeneration Directorate",Special,D535
http://statistics.data.gov.uk/id/local-authority/00BF,London Borough of Sutton,12/09/2017,6916377,"1,990.00",DMA Signs Limited,20534,"Environment, Housing & Regeneration Directorate",Notices And Signs,Y445
http://statistics.data.gov.uk/id/local-authority/00BF,London Borough of Sutton,25/09/2017,6917036,711.75,DMA Signs Limited,20534,"Environment, Housing & Regeneration Directorate",Notices And Signs,Y445
http://statistics.data.gov.uk/id/local-authority/00BF,London Borough of Sutton,18/09/2017,1242447,"2,431.80",Dolphin Day Nursery,11373,Peoples Services Directorate,Non-Maintained Childrens' Nurseries - 2 Year Olds,G404
http://statistics.data.gov.uk/id/local-authority/00BF,London Borough of Sutton,18/09/2017,1242499,"3,985.00",Dolphin Day Nursery,11373,Peoples Services Directorate,Non-Maintained Childrens' Nurseries - 3 & 4 yr olds,G405
http://statistics.data.gov.uk/id/local-authority/00BF,London Borough of Sutton,18/09/2017,1242479,"1,215.90",Donna Dobson,28335,Peoples Services Directorate,Non-Maintained Childrens' Nurseries - 3 & 4 yr olds,G405
http://statistics.data.gov.uk/id/local-authority/00BF,London Borough of Sutton,18/09/2017,1242541,-427.50,Donna Dobson,28335,Peoples Services Directorate,Non-Maintained Childrens' Nurseries - 3 & 4 yr olds,G405
http://statistics.data.gov.uk/id/local-authority/00BF,London Borough of Sutton,13/09/2017,1242266,"10,853.67",Dorchester Primary School,11376,Peoples Services Directorate,Top-up Funding,G064
http://statistics.data.gov.uk/id/local-authority/00BF,London Borough of Sutton,13/09/2017,6916484,"2,182.40",Dr Rajashekar Krishnaiah,25754,Peoples Services Directorate,Fees - Dols Assessments,F309
http://statistics.data.gov.uk/id/local-authority/00BF,London Borough of Sutton,13/09/2017,6916485,"3,218.50",Dr Rajashekar Krishnaiah,25754,Peoples Services Directorate,Fees - Dols Assessments,F309
http://statistics.data.gov.uk/id/local-authority/00BF,London Borough of Sutton,25/08/2017,6915567,"1,344.71",DSI Billing Services Ltd,17962,Resources Directorate,Postages - General,F350
http://statistics.data.gov.uk/id/local-authority/00BF,London Borough of Sutton,01/09/2017,6915905,"1,221.04",DSI Billing Services Ltd,17962,Resources Directorate,Postages - General,F350
http://statistics.data.gov.uk/id/local-authority/00BF,London Borough of Sutton,19/09/2017,6916784,756.72,DSI Billing Services Ltd,17962,Resources Directorate,Postages - General,F350
http://statistics.data.gov.uk/id/local-authority/00BF,London Borough of Sutton,21/09/2017,6916918,823.84,DSI Billing Services Ltd,17962,Resources Directorate,Postages - General,F350
http://statistics.data.gov.uk/id/local-authority/00BF,London Borough of Sutton,26/09/2017,6917219,"1,204.53",DSI Billing Services Ltd,17962,Resources Directorate,Postages - General,F350
http://statistics.data.gov.uk/id/local-authority/00BF,London Borough of Sutton,05/09/2017,6917232,"3,870.47",DSI Billing Services Ltd,17962,Resources Directorate,Postages - General,F350
http://statistics.data.gov.uk/id/local-authority/00BF,London Borough of Sutton,25/09/2017,6917030,"9,300.00",Due North Limited,22671,Chief Executive's Directorate,Purchase of IT Equipment,F380
http://statistics.data.gov.uk/id/local-authority/00BF,London Borough of Sutton,14/08/2017,6916023,"1,800.00",Dunfield & Mead Ltd,28055,Peoples Services Directorate,Approved Lodgings,H323
http://statistics.data.gov.uk/id/local-authority/00BF,London Borough of Sutton,14/08/2017,6916025,"2,000.00",Dunfield & Mead Ltd,28055,Peoples Services Directorate,Approved Lodgings,H323
http://statistics.data.gov.uk/id/local-authority/00BF,London Borough of Sutton,14/08/2017,6916028,"2,000.00",Dunfield & Mead Ltd,28055,Peoples Services Directorate,Approved Lodgings,H323
http://statistics.data.gov.uk/id/local-authority/00BF,London Borough of Sutton,14/08/2017,6917088,"1,800.00",Dunfield & Mead Ltd,28055,Peoples Services Directorate,Approved Lodgings,H323
http://statistics.data.gov.uk/id/local-authority/00BF,London Borough of Sutton,28/08/2017,40109158,"3,830.26",Dunfield & Mead Ltd,28055,Peoples Services Directorate,Approved Lodgings,H323
http://statistics.data.gov.uk/id/local-authority/00BF,London Borough of Sutton,28/08/2017,40109178,"4,020.69",Dunfield & Mead Ltd,28055,Peoples Services Directorate,Approved Lodgings,H323
http://statistics.data.gov.uk/id/local-authority/00BF,London Borough of Sutton,28/08/2017,40109179,"4,574.27",Dunfield & Mead Ltd,28055,Peoples Services Directorate,Approved Lodgings,H323
http://statistics.data.gov.uk/id/local-authority/00BF,London Borough of Sutton,28/08/2017,40109213,"1,992.86",Dunfield & Mead Ltd,28055,Peoples Services Directorate,Accommodation - Supported Living,H201
http://statistics.data.gov.uk/id/local-authority/00BF,London Borough of Sutton,28/08/2017,40109225,"1,992.86",Dunfield & Mead Ltd,28055,Peoples Services Directorate,Accommodation - Supported Living,H201
http://statistics.data.gov.uk/id/local-authority/00BF,London Borough of Sutton,28/08/2017,40109251,"2,214.29",Dunfield & Mead Ltd,28055,Peoples Services Directorate,Accommodation - Supported Living,H201
http://statistics.data.gov.uk/id/local-authority/00BF,London Borough of Sutton,08/09/2017,40109375,"2,999.92",Dunheved Lodge,11403,Peoples Services Directorate,Residential Care - Ext Provider,G310
http://statistics.data.gov.uk/id/local-authority/00BF,London Borough of Sutton,06/08/2017,6916608,"1,183.00",Dunheved Partnership Ltd,26353,"Environment, Housing & Regeneration Directorate",Bed and Breakfast Accommodation,G400
http://statistics.data.gov.uk/id/local-authority/00BF,London Borough of Sutton,13/08/2017,6916609,"1,253.00",Dunheved Partnership Ltd,26353,"Environment, Housing & Regeneration Directorate",Bed and Breakfast Accommodation,G400
http://statistics.data.gov.uk/id/local-authority/00BF,London Borough of Sutton,20/08/2017,6916611,"1,253.00",Dunheved Partnership Ltd,26353,"Environment, Housing & Regeneration Directorate",Bed and Breakfast Accommodation,G400
http://statistics.data.gov.uk/id/local-authority/00BF,London Borough of Sutton,27/08/2017,6916612,"1,393.00",Dunheved Partnership Ltd,26353,"Environment, Housing & Regeneration Directorate",Bed and Breakfast Accommodation,G400
http://statistics.data.gov.uk/id/local-authority/00BF,London Borough of Sutton,03/09/2017,6916822,"1,498.00",Dunheved Partnership Ltd,26353,"Environment, Housing & Regeneration Directorate",Bed and Breakfast Accommodation,G400
http://statistics.data.gov.uk/id/local-authority/00BF,London Borough of Sutton,10/09/2017,6916823,"1,498.00",Dunheved Partnership Ltd,26353,"Environment, Housing & Regeneration Directorate",Bed and Breakfast Accommodation,G400
http://statistics.data.gov.uk/id/local-authority/00BF,London Borough of Sutton,07/09/2017,40114506,"18,795.00",Durham County Council,22986,Peoples Services Directorate,Secure Accommodation,G332
http://statistics.data.gov.uk/id/local-authority/00BF,London Borough of Sutton,31/08/2017,6917258,"12,195.58",E Homes And Shelters,28378,"Environment, Housing & Regeneration Directorate",Bed and Breakfast Accommodation,G400
http://statistics.data.gov.uk/id/local-authority/00BF,London Borough of Sutton,21/08/2017,40111085,"1,260.00",Eager Health TA Care24Seven,29920,Peoples Services Directorate,Home Care,G334
http://statistics.data.gov.uk/id/local-authority/00BF,London Borough of Sutton,04/09/2017,40111092,"3,360.00",Eager Health TA Care24Seven,29920,Peoples Services Directorate,Home Care,G334
http://statistics.data.gov.uk/id/local-authority/00BF,London Borough of Sutton,27/08/2017,40111106,"2,940.00",Eager Health TA Care24Seven,29920,Peoples Services Directorate,Home Care,G334
http://statistics.data.gov.uk/id/local-authority/00BF,London Borough of Sutton,11/09/2017,40111107,"2,940.00",Eager Health TA Care24Seven,29920,Peoples Services Directorate,Home Care,G334
http://statistics.data.gov.uk/id/local-authority/00BF,London Borough of Sutton,18/09/2017,40114565,"2,940.00",Eager Health TA Care24Seven,29920,Peoples Services Directorate,Home Care,G334
http://statistics.data.gov.uk/id/local-authority/00BF,London Borough of Sutton,05/09/2017,6916123,624.00,Earth Anchors Ltd,15290,"Environment, Housing & Regeneration Directorate",Furniture - Purchase,F080
http://statistics.data.gov.uk/id/local-authority/00BF,London Borough of Sutton,08/09/2017,40109522,"3,300.00",Eastcroft Nursing Home,11420,Peoples Services Directorate,Nursing Care - Ext Provider,G311
http://statistics.data.gov.uk/id/local-authority/00BF,London Borough of Sutton,08/09/2017,40109608,"3,400.00",Eastcroft Nursing Home,11420,Peoples Services Directorate,Nursing Care - Ext Provider,G311
http://statistics.data.gov.uk/id/local-authority/00BF,London Borough of Sutton,08/09/2017,40109698,"2,064.29",Eastcroft Nursing Home,11420,Peoples Services Directorate,Nursing Care - Ext Provider,G311
http://statistics.data.gov.uk/id/local-authority/00BF,London Borough of Sutton,28/07/2017,6914648,546.41,EDF Energy (Seeboard),13999,Peoples Services Directorate,Gas - General,D610
http://statistics.data.gov.uk/id/local-authority/00BF,London Borough of Sutton,05/09/2017,6916357,531.15,EDF Energy (Seeboard),13999,HRA Directorate,Electricity - Anti Hypothermia Heating,D622
http://statistics.data.gov.uk/id/local-authority/00BF,London Borough of Sutton,12/09/2017,6916791,520.07,EDF Energy (Seeboard),13999,HRA Directorate,Electricity - Anti Hypothermia Heating,D622
http://statistics.data.gov.uk/id/local-authority/00BF,London Borough of Sutton,24/08/2017,6915794,"5,597.58",EE Airtime,24846,Resources Directorate,"Telephones - Mobile, Pagers etc.",F374
http://statistics.data.gov.uk/id/local-authority/00BF,London Borough of Sutton,24/08/2017,6915796,432.16,EE Airtime,24846,Resources Directorate,"Telephones - Mobile, Pagers etc.",F374
http://statistics.data.gov.uk/id/local-authority/00BF,London Borough of Sutton,24/08/2017,6915797,"1,013.93",EE Airtime,24846,Resources Directorate,"Telephones - Mobile, Pagers etc.",F374
http://statistics.data.gov.uk/id/local-authority/00BF,London Borough of Sutton,31/08/2017,6916014,"13,933.69",Eldercare,22163,HRA Directorate,Supporting People - Alarm Services,H237
http://statistics.data.gov.uk/id/local-authority/00BF,London Borough of Sutton,31/08/2017,6916015,"5,400.00",Eldercare,22163,Peoples Services Directorate,Agency Services,G431
http://statistics.data.gov.uk/id/local-authority/00BF,London Borough of Sutton,31/08/2017,6916126,816.50,Eldercare,22163,Peoples Services Directorate,Agency Services,G431
http://statistics.data.gov.uk/id/local-authority/00BF,London Borough of Sutton,31/08/2017,6916134,"9,038.65",Eldercare,22163,Peoples Services Directorate,Agency Services,G431
http://statistics.data.gov.uk/id/local-authority/00BF,London Borough of Sutton,08/09/2017,40109379,"4,484.80",Eleanor Nursing & Social Care Ltd,25134,Peoples Services Directorate,Residential Care - Ext Provider,G310
http://statistics.data.gov.uk/id/local-authority/00BF,London Borough of Sutton,19/09/2017,6916756,"1,312.50",Electric Pedals,28451,"Environment, Housing & Regeneration Directorate",Other Equipment - Purchase,F015
http://statistics.data.gov.uk/id/local-authority/00BF,London Borough of Sutton,13/08/2017,40108277,441.00,Elite CarePlus Ltd,26199,Peoples Services Directorate,Home Care,G334
http://statistics.data.gov.uk/id/local-authority/00BF,London Borough of Sutton,13/08/2017,40108283,686.00,Elite CarePlus Ltd,26199,Peoples Services Directorate,Home Care,G334
http://statistics.data.gov.uk/id/local-authority/00BF,London Borough of Sutton,13/08/2017,40108288,490.00,Elite CarePlus Ltd,26199,Peoples Services Directorate,Home Care,G334
http://statistics.data.gov.uk/id/local-authority/00BF,London Borough of Sutton,13/08/2017,40108300,637.00,Elite CarePlus Ltd,26199,Peoples Services Directorate,Home Care,G334
http://statistics.data.gov.uk/id/local-authority/00BF,London Borough of Sutton,13/08/2017,40108312,490.00,Elite CarePlus Ltd,26199,Peoples Services Directorate,Home Care,G334
http://statistics.data.gov.uk/id/local-authority/00BF,London Borough of Sutton,13/08/2017,40108314,490.00,Elite CarePlus Ltd,26199,Peoples Services Directorate,Home Care,G334
http://statistics.data.gov.uk/id/local-authority/00BF,London Borough of Sutton,18/09/2017,1242550,"1,050.00",Emma Christian,27071,Peoples Services Directorate,Non-Maintained Childrens' Nurseries - 3 & 4 yr olds,G405
http://statistics.data.gov.uk/id/local-authority/00BF,London Borough of Sutton,12/09/2017,1241967,420.00,Enfields Bournemouth Limited,29642,Peoples Services Directorate,Approved Lodgings,H323
http://statistics.data.gov.uk/id/local-authority/00BF,London Borough of Sutton,14/09/2017,1242628,420.00,Enfields Bournemouth Limited,29642,Peoples Services Directorate,Education Allowance,H321
http://statistics.data.gov.uk/id/local-authority/00BF,London Borough of Sutton,07/09/2017,6916282,"131,009.41",Ensigna Construction Ltd,97705,Peoples Services Directorate,Building Works -Main Contractor,Y350
http://statistics.data.gov.uk/id/local-authority/00BF,London Borough of Sutton,16/08/2017,40107428,926.67,Enviva Paediatric Care/formerlyPNL Nursing Link Ltd (Pnl),28212,Peoples Services Directorate,Provider Contract Payments,F470
http://statistics.data.gov.uk/id/local-authority/00BF,London Borough of Sutton,13/09/2017,40114178,454.26,Enviva Paediatric Care/formerlyPNL Nursing Link Ltd (Pnl),28212,Peoples Services Directorate,Provider Contract Payments,F470
http://statistics.data.gov.uk/id/local-authority/00BF,London Borough of Sutton,08/09/2017,40109593,"1,724.16",Eothen Homes Ltd,11539,Peoples Services Directorate,Residential Care - Ext Provider,G310
http://statistics.data.gov.uk/id/local-authority/00BF,London Borough of Sutton,08/09/2017,40109627,"1,724.00",Eothen Homes Ltd,11539,Peoples Services Directorate,Residential Care - Ext Provider,G310
http://statistics.data.gov.uk/id/local-authority/00BF,London Borough of Sutton,08/09/2017,40109767,"1,724.16",Eothen Homes Ltd,11539,Peoples Services Directorate,Residential Care - Ext Provider,G310
http://statistics.data.gov.uk/id/local-authority/00BF,London Borough of Sutton,08/09/2017,40109803,"2,948.00",Eothen Homes Ltd,11539,Peoples Services Directorate,Residential Care - Ext Provider,G310
http://statistics.data.gov.uk/id/local-authority/00BF,London Borough of Sutton,18/09/2017,1242477,868.50,Epsom & St Helier Nhs Trust,11542,Peoples Services Directorate,Non-Maintained Childrens' Nurseries - 2 Year Olds,G404
http://statistics.data.gov.uk/id/local-authority/00BF,London Borough of Sutton,18/09/2017,1242478,"2,431.80",Epsom & St Helier Nhs Trust,11542,Peoples Services Directorate,Non-Maintained Childrens' Nurseries - 2 Year Olds,G404
http://statistics.data.gov.uk/id/local-authority/00BF,London Borough of Sutton,18/09/2017,1242536,"17,171.17",Epsom & St Helier Nhs Trust,11542,Peoples Services Directorate,Non-Maintained Childrens' Nurseries - 3 & 4 yr olds,G405
http://statistics.data.gov.uk/id/local-authority/00BF,London Borough of Sutton,18/09/2017,1242537,"11,758.67",Epsom & St Helier Nhs Trust,11542,Peoples Services Directorate,Non-Maintained Childrens' Nurseries - 3 & 4 yr olds,G405
http://statistics.data.gov.uk/id/local-authority/00BF,London Borough of Sutton,13/09/2017,6916477,525.00,Esendex Limited,29045,Resources Directorate,Fees - Other,F299
http://statistics.data.gov.uk/id/local-authority/00BF,London Borough of Sutton,14/08/2017,40109145,"18,157.14",Esland North Ltd,29269,Peoples Services Directorate,Residential Care-Children,G330
http://statistics.data.gov.uk/id/local-authority/00BF,London Borough of Sutton,31/08/2017,6917010,465.00,Essential Loo Hire Ltd,27153,"Environment, Housing & Regeneration Directorate",Other Equipment - Purchase,F015
http://statistics.data.gov.uk/id/local-authority/00BF,London Borough of Sutton,06/08/2017,6916605,"2,107.00",Euro Hotels (Croydon Court) Ltd,21414,"Environment, Housing & Regeneration Directorate",Bed and Breakfast Accommodation,G400
http://statistics.data.gov.uk/id/local-authority/00BF,London Borough of Sutton,06/08/2017,6916606,860.00,Euro Hotels (Gilroy Court) Ltd,25822,"Environment, Housing & Regeneration Directorate",Bed and Breakfast Accommodation,G400
http://statistics.data.gov.uk/id/local-authority/00BF,London Borough of Sutton,20/08/2017,6916607,"1,008.00",Euro Hotels (Gilroy Court) Ltd,25822,"Environment, Housing & Regeneration Directorate",Bed and Breakfast Accommodation,G400
http://statistics.data.gov.uk/id/local-authority/00BF,London Borough of Sutton,13/08/2017,6916610,"1,008.00",Euro Hotels (Gilroy Court) Ltd,25822,"Environment, Housing & Regeneration Directorate",Bed and Breakfast Accommodation,G400
http://statistics.data.gov.uk/id/local-authority/00BF,London Borough of Sutton,03/09/2017,6916932,665.00,Euro Hotels (Hounslow) Ltd t/a Channins Hounslow Hotel,24589,"Environment, Housing & Regeneration Directorate",Bed and Breakfast Accommodation,G400
http://statistics.data.gov.uk/id/local-authority/00BF,London Borough of Sutton,10/09/2017,6916933,665.00,Euro Hotels (Hounslow) Ltd t/a Channins Hounslow Hotel,24589,"Environment, Housing & Regeneration Directorate",Bed and Breakfast Accommodation,G400
http://statistics.data.gov.uk/id/local-authority/00BF,London Borough of Sutton,20/08/2017,6916589,455.00,Euro Hotels (Thornton Heath) Ltd,10030,"Environment, Housing & Regeneration Directorate",Bed and Breakfast Accommodation,G400
http://statistics.data.gov.uk/id/local-authority/00BF,London Borough of Sutton,20/08/2017,6916590,595.00,Euro Hotels (Thornton Heath) Ltd,10030,"Environment, Housing & Regeneration Directorate",Bed and Breakfast Accommodation,G400
http://statistics.data.gov.uk/id/local-authority/00BF,London Borough of Sutton,27/08/2017,6916591,455.00,Euro Hotels (Thornton Heath) Ltd,10030,"Environment, Housing & Regeneration Directorate",Bed and Breakfast Accommodation,G400
http://statistics.data.gov.uk/id/local-authority/00BF,London Borough of Sutton,27/08/2017,6916592,595.00,Euro Hotels (Thornton Heath) Ltd,10030,"Environment, Housing & Regeneration Directorate",Bed and Breakfast Accommodation,G400
http://statistics.data.gov.uk/id/local-authority/00BF,London Borough of Sutton,03/09/2017,6916824,"1,218.00",Euro Hotels (Thornton Heath) Ltd,10030,"Environment, Housing & Regeneration Directorate",Bed and Breakfast Accommodation,G400
http://statistics.data.gov.uk/id/local-authority/00BF,London Borough of Sutton,03/09/2017,6916825,595.00,Euro Hotels (Thornton Heath) Ltd,10030,"Environment, Housing & Regeneration Directorate",Bed and Breakfast Accommodation,G400
http://statistics.data.gov.uk/id/local-authority/00BF,London Borough of Sutton,10/09/2017,6916826,"1,218.00",Euro Hotels (Thornton Heath) Ltd,10030,"Environment, Housing & Regeneration Directorate",Bed and Breakfast Accommodation,G400
http://statistics.data.gov.uk/id/local-authority/00BF,London Borough of Sutton,10/09/2017,6916831,595.00,Euro Hotels (Thornton Heath) Ltd,10030,"Environment, Housing & Regeneration Directorate",Bed and Breakfast Accommodation,G400
http://statistics.data.gov.uk/id/local-authority/00BF,London Borough of Sutton,13/09/2017,6916466,"1,687.06",Extraspace Solutions (UK) Ltd,97597,Peoples Services Directorate,Building Works -Main Contractor,Y350
http://statistics.data.gov.uk/id/local-authority/00BF,London Borough of Sutton,08/09/2017,6916328,"2,280.00",F L Beadle & Sons Ltd,97197,"Environment, Housing & Regeneration Directorate",Other Services,F340
http://statistics.data.gov.uk/id/local-authority/00BF,London Borough of Sutton,21/08/2017,6915350,"95,559.84",F M Conway Limited,97060,"Environment, Housing & Regeneration Directorate",Roads & Sewers Etc-Main Contract,Y300
http://statistics.data.gov.uk/id/local-authority/00BF,London Borough of Sutton,25/07/2017,6915371,"50,891.69",F M Conway Limited,97060,"Environment, Housing & Regeneration Directorate",Roads & Sewers Etc-Main Contract,Y300
http://statistics.data.gov.uk/id/local-authority/00BF,London Borough of Sutton,29/08/2017,6915707,"97,299.34",F M Conway Limited,97060,"Environment, Housing & Regeneration Directorate",Roads & Sewers Etc-Main Contract,Y300
http://statistics.data.gov.uk/id/local-authority/00BF,London Borough of Sutton,20/09/2017,6916900,"1,264.43",F M Conway Limited,97060,"Environment, Housing & Regeneration Directorate",Roads & Sewers Etc-Main Contract,Y300
http://statistics.data.gov.uk/id/local-authority/00BF,London Borough of Sutton,18/09/2017,1242449,"1,823.85",Fairlands Pre-School,11598,Peoples Services Directorate,Non-Maintained Childrens' Nurseries - 2 Year Olds,G404
http://statistics.data.gov.uk/id/local-authority/00BF,London Borough of Sutton,18/09/2017,1242501,"5,935.17",Fairlands Pre-School,11598,Peoples Services Directorate,Non-Maintained Childrens' Nurseries - 3 & 4 yr olds,G405
http://statistics.data.gov.uk/id/local-authority/00BF,London Borough of Sutton,24/08/2017,40109181,"14,241.15",Fairport Care Services Ltd,29873,Peoples Services Directorate,Residential Care-Children,G330
http://statistics.data.gov.uk/id/local-authority/00BF,London Borough of Sutton,31/08/2017,40109252,"5,757.14",Family First Fostering,27926,Peoples Services Directorate,Foster Parents,G326
http://statistics.data.gov.uk/id/local-authority/00BF,London Borough of Sutton,31/08/2017,40109253,"1,135.71",Family First Fostering,27926,Peoples Services Directorate,Foster Parents,G326
http://statistics.data.gov.uk/id/local-authority/00BF,London Borough of Sutton,05/09/2017,6916032,880.00,Family Futures Consortium Ltd,16039,Peoples Services Directorate,Training - Course Fees,A520
http://statistics.data.gov.uk/id/local-authority/00BF,London Borough of Sutton,26/09/2017,1242848,"25,916.67",Family Mosaic Housing,21012,"Environment, Housing & Regeneration Directorate",Supporting People - Mental Health Services,H243
http://statistics.data.gov.uk/id/local-authority/00BF,London Borough of Sutton,26/09/2017,1242849,"18,833.33",Family Mosaic Housing,21012,"Environment, Housing & Regeneration Directorate",Supporting People - Generic Services,H241
http://statistics.data.gov.uk/id/local-authority/00BF,London Borough of Sutton,08/09/2017,40109540,"3,400.00",Family Star Ltd,19653,Peoples Services Directorate,Nursing Care - Ext Provider,G311
http://statistics.data.gov.uk/id/local-authority/00BF,London Borough of Sutton,08/09/2017,40109644,"2,400.00",Family Star Ltd,19653,Peoples Services Directorate,Nursing Care - Ext Provider,G311
http://statistics.data.gov.uk/id/local-authority/00BF,London Borough of Sutton,11/09/2017,6916350,"1,746.00",Fatima Mirza,99898,"Environment, Housing & Regeneration Directorate",Depositors,X460
http://statistics.data.gov.uk/id/local-authority/00BF,London Borough of Sutton,01/09/2017,6916941,"1,887.00",Fern Court London Limited,26961,"Environment, Housing & Regeneration Directorate",Bed and Breakfast Accommodation,G400
http://statistics.data.gov.uk/id/local-authority/00BF,London Borough of Sutton,18/09/2017,1242556,420.00,Fiona Mackley,26372,Peoples Services Directorate,Non-Maintained Childrens' Nurseries - 3 & 4 yr olds,G405
http://statistics.data.gov.uk/id/local-authority/00BF,London Borough of Sutton,08/09/2017,40109373,"3,438.00",Fircroft Homes,11660,Peoples Services Directorate,Residential Care - Ext Provider,G310
http://statistics.data.gov.uk/id/local-authority/00BF,London Borough of Sutton,04/09/2017,40109424,"1,340.00",Fircroft Homes,11660,Peoples Services Directorate,Supported Living - Ext Provider,G306
http://statistics.data.gov.uk/id/local-authority/00BF,London Borough of Sutton,18/09/2017,1242482,"8,337.60",First Little Steps  Day Nursery,27125,Peoples Services Directorate,Non-Maintained Childrens' Nurseries - 3 & 4 yr olds,G405
http://statistics.data.gov.uk/id/local-authority/00BF,London Borough of Sutton,18/09/2017,1242557,"2,100.00",First Little Steps  Day Nursery,27125,Peoples Services Directorate,Non-Maintained Childrens' Nurseries - 3 & 4 yr olds,G405
http://statistics.data.gov.uk/id/local-authority/00BF,London Borough of Sutton,08/09/2017,40109545,"2,600.00",Firtree House Nursing Home,11653,Peoples Services Directorate,Nursing Care - Ext Provider,G311
http://statistics.data.gov.uk/id/local-authority/00BF,London Borough of Sutton,05/09/2017,6916663,"3,750.00",Fiscal Technologies Ltd,27760,Resources Directorate,IT Licences,F385
http://statistics.data.gov.uk/id/local-authority/00BF,London Borough of Sutton,08/09/2017,40109331,"3,758.08",Fitzroy,11657,Peoples Services Directorate,Residential Care - Ext Provider,G310
http://statistics.data.gov.uk/id/local-authority/00BF,London Borough of Sutton,01/08/2017,40109436,"1,224.28",Fitzroy,11657,Peoples Services Directorate,Day Care,G337
http://statistics.data.gov.uk/id/local-authority/00BF,London Borough of Sutton,01/08/2017,40109266,"17,492.86",Five Rivers Child Care Ltd,29141,Peoples Services Directorate,Residential Care-Children,G330
http://statistics.data.gov.uk/id/local-authority/00BF,London Borough of Sutton,08/09/2017,40109602,"7,200.00",Florence Avenue Care Home Ltd,26881,Peoples Services Directorate,Residential Care - Ext Provider,G310
http://statistics.data.gov.uk/id/local-authority/00BF,London Borough of Sutton,04/09/2017,6916007,"1,024.00",Foster Refrigerator (Uk) Ltd,11720,Chief Executive's Directorate,Other Equipment - Purchase,F015
http://statistics.data.gov.uk/id/local-authority/00BF,London Borough of Sutton,04/09/2017,6916008,"1,874.00",Foster Refrigerator (Uk) Ltd,11720,Chief Executive's Directorate,Other Equipment - Purchase,F015
http://statistics.data.gov.uk/id/local-authority/00BF,London Borough of Sutton,05/09/2017,6916097,"1,139.00",Foster Refrigerator (Uk) Ltd,11720,Chief Executive's Directorate,Other Equipment - Purchase,F015
http://statistics.data.gov.uk/id/local-authority/00BF,London Borough of Sutton,05/09/2017,6916098,"1,683.00",Foster Refrigerator (Uk) Ltd,11720,Chief Executive's Directorate,Other Equipment - Purchase,F015
http://statistics.data.gov.uk/id/local-authority/00BF,London Borough of Sutton,31/08/2017,40114508,"3,232.86",Fostering For You,24993,Peoples Services Directorate,Foster Parents,G326
http://statistics.data.gov.uk/id/local-authority/00BF,London Borough of Sutton,31/08/2017,40114517,"3,374.48",Fostering For You,24993,Peoples Services Directorate,Foster Parents,G326
http://statistics.data.gov.uk/id/local-authority/00BF,London Borough of Sutton,31/08/2017,6915816,"1,326.00",Fresh Start In Education Ltd,28509,Peoples Services Directorate,LAC - Education,F269
http://statistics.data.gov.uk/id/local-authority/00BF,London Borough of Sutton,08/09/2017,40109562,"2,928.00",Friends Of The Elderly,11766,Peoples Services Directorate,Residential Care - Ext Provider,G310
http://statistics.data.gov.uk/id/local-authority/00BF,London Borough of Sutton,08/09/2017,40109601,"4,192.00",Friends Of The Elderly,11766,Peoples Services Directorate,Nursing Care - Ext Provider,G311
http://statistics.data.gov.uk/id/local-authority/00BF,London Borough of Sutton,08/09/2017,40109604,"3,212.00",Friends Of The Elderly,11766,Peoples Services Directorate,Residential Care - Ext Provider,G310
http://statistics.data.gov.uk/id/local-authority/00BF,London Borough of Sutton,08/09/2017,40109605,"3,212.00",Friends Of The Elderly,11766,Peoples Services Directorate,Residential Care - Ext Provider,G310
http://statistics.data.gov.uk/id/local-authority/00BF,London Borough of Sutton,08/09/2017,40109606,"3,212.00",Friends Of The Elderly,11766,Peoples Services Directorate,Residential Care - Ext Provider,G310
http://statistics.data.gov.uk/id/local-authority/00BF,London Borough of Sutton,08/09/2017,40109649,"2,800.00",Friends Of The Elderly,11766,Peoples Services Directorate,Residential Care - Ext Provider,G310
http://statistics.data.gov.uk/id/local-authority/00BF,London Borough of Sutton,08/09/2017,40109697,442.86,Friends Of The Elderly,11766,Peoples Services Directorate,Interim Placements - Ext Provider,G317
http://statistics.data.gov.uk/id/local-authority/00BF,London Borough of Sutton,08/09/2017,40109741,"1,692.00",Friends Of The Elderly,11766,Peoples Services Directorate,Residential Care - Ext Provider,G310
http://statistics.data.gov.uk/id/local-authority/00BF,London Borough of Sutton,08/09/2017,40109839,"1,692.00",Friends Of The Elderly,11766,Peoples Services Directorate,Residential Care - Ext Provider,G310
http://statistics.data.gov.uk/id/local-authority/00BF,London Borough of Sutton,22/09/2017,6916970,426.30,Frith Frames Ltd,11759,Peoples Services Directorate,Nature Conservation,G014
http://statistics.data.gov.uk/id/local-authority/00BF,London Borough of Sutton,08/09/2017,40109480,"2,294.12",Gable Lodge,11789,Peoples Services Directorate,Nursing Care - Ext Provider,G311
http://statistics.data.gov.uk/id/local-authority/00BF,London Borough of Sutton,08/09/2017,40109721,"3,000.00",Galleon Care Homes Ltd,23693,Peoples Services Directorate,Nursing Care - Ext Provider,G311
http://statistics.data.gov.uk/id/local-authority/00BF,London Borough of Sutton,01/09/2017,6915855,826.89,Gandlake Limited,18183,Resources Directorate,IT Licences,F385
http://statistics.data.gov.uk/id/local-authority/00BF,London Borough of Sutton,01/09/2017,6915856,"4,651.35",Gandlake Limited,18183,Resources Directorate,IT Equipment - Repair and Maintenance,F382
http://statistics.data.gov.uk/id/local-authority/00BF,London Borough of Sutton,01/09/2017,6915856,"4,651.35",Gandlake Limited,18183,Resources Directorate,IT Equipment - Repair and Maintenance,F382
http://statistics.data.gov.uk/id/local-authority/00BF,London Borough of Sutton,08/09/2017,40109454,"1,744.00",Gate Lodge Care Home,16164,Peoples Services Directorate,Residential Care - Ext Provider,G310
http://statistics.data.gov.uk/id/local-authority/00BF,London Borough of Sutton,08/09/2017,40109623,"2,400.00",Gate Lodge Care Home,16164,Peoples Services Directorate,Residential Care - Ext Provider,G310
http://statistics.data.gov.uk/id/local-authority/00BF,London Borough of Sutton,08/09/2017,40109631,"2,400.00",Gate Lodge Care Home,16164,Peoples Services Directorate,Residential Care - Ext Provider,G310
http://statistics.data.gov.uk/id/local-authority/00BF,London Borough of Sutton,05/09/2017,6916088,"4,650.00",Gatenby Sanderson,18532,"Environment, Housing & Regeneration Directorate",Staff Advertising,A500
http://statistics.data.gov.uk/id/local-authority/00BF,London Borough of Sutton,05/09/2017,6916133,450.00,GB Property Services,97013,"Environment, Housing & Regeneration Directorate",General Works,D400
http://statistics.data.gov.uk/id/local-authority/00BF,London Borough of Sutton,07/09/2017,6916274,450.00,GB Property Services,97013,"Environment, Housing & Regeneration Directorate",General Works,D400
http://statistics.data.gov.uk/id/local-authority/00BF,London Borough of Sutton,11/09/2017,6916410,"1,500.00",GB Property Services,97013,Resources Directorate,Special,D535
http://statistics.data.gov.uk/id/local-authority/00BF,London Borough of Sutton,18/09/2017,1242450,"1,215.90",Glaisdale Day Nursery,21887,Peoples Services Directorate,Non-Maintained Childrens' Nurseries - 2 Year Olds,G404
http://statistics.data.gov.uk/id/local-authority/00BF,London Borough of Sutton,18/09/2017,1242503,"30,468.75",Glaisdale Day Nursery,21887,Peoples Services Directorate,Non-Maintained Childrens' Nurseries - 3 & 4 yr olds,G405
http://statistics.data.gov.uk/id/local-authority/00BF,London Borough of Sutton,04/09/2017,6916030,"1,215.00",Glen Hellings,29637,"Environment, Housing & Regeneration Directorate",General Office Expenses,F235
http://statistics.data.gov.uk/id/local-authority/00BF,London Borough of Sutton,08/09/2017,40109473,"3,238.40",Grange Cottage Ltd,11892,Peoples Services Directorate,Residential Care - Ext Provider,G310
http://statistics.data.gov.uk/id/local-authority/00BF,London Borough of Sutton,08/09/2017,40109503,"1,882.40",Grange Cottage Ltd,11892,Peoples Services Directorate,Residential Care - Ext Provider,G310
http://statistics.data.gov.uk/id/local-authority/00BF,London Borough of Sutton,08/09/2017,40109552,"2,600.00",Grange Cottage Ltd,11892,Peoples Services Directorate,Residential Care - Ext Provider,G310
http://statistics.data.gov.uk/id/local-authority/00BF,London Borough of Sutton,08/09/2017,40109603,"2,800.00",Grange Cottage Ltd,11892,Peoples Services Directorate,Residential Care - Ext Provider,G310
http://statistics.data.gov.uk/id/local-authority/00BF,London Borough of Sutton,08/09/2017,40109621,"2,500.00",Grange Cottage Ltd,11892,Peoples Services Directorate,Residential Care - Ext Provider,G310
http://statistics.data.gov.uk/id/local-authority/00BF,London Borough of Sutton,08/09/2017,40109694,750.00,Grange Cottage Ltd,11892,Peoples Services Directorate,Respite Care - Residential,G327
http://statistics.data.gov.uk/id/local-authority/00BF,London Borough of Sutton,08/09/2017,40109508,978.47,Grasmere Rest Home,11893,Peoples Services Directorate,Residential Care - Ext Provider,G310
http://statistics.data.gov.uk/id/local-authority/00BF,London Borough of Sutton,08/09/2017,40109515,"1,801.36",Grasmere Rest Home,11893,Peoples Services Directorate,Residential Care - Ext Provider,G310
http://statistics.data.gov.uk/id/local-authority/00BF,London Borough of Sutton,08/09/2017,40109587,"2,600.00",Grasmere Rest Home,11893,Peoples Services Directorate,Residential Care - Ext Provider,G310
http://statistics.data.gov.uk/id/local-authority/00BF,London Borough of Sutton,08/09/2017,40109592,"2,408.56",Grasmere Rest Home,11893,Peoples Services Directorate,Residential Care - Ext Provider,G310
http://statistics.data.gov.uk/id/local-authority/00BF,London Borough of Sutton,08/09/2017,40109607,"2,300.00",Grasmere Rest Home,11893,Peoples Services Directorate,Residential Care - Ext Provider,G310
http://statistics.data.gov.uk/id/local-authority/00BF,London Borough of Sutton,08/09/2017,40109702,482.14,Grasmere Rest Home,11893,Peoples Services Directorate,Interim Placements - Ext Provider,G317
http://statistics.data.gov.uk/id/local-authority/00BF,London Borough of Sutton,08/09/2017,40109706,835.71,Grasmere Rest Home,11893,Peoples Services Directorate,Residential Care - Ext Provider,G310
http://statistics.data.gov.uk/id/local-authority/00BF,London Borough of Sutton,08/09/2017,40109778,"2,274.96",Grasmere Rest Home,11893,Peoples Services Directorate,Residential Care - Ext Provider,G310
http://statistics.data.gov.uk/id/local-authority/00BF,London Borough of Sutton,08/09/2017,40109782,"1,680.16",Grasmere Rest Home,11893,Peoples Services Directorate,Residential Care - Ext Provider,G310
http://statistics.data.gov.uk/id/local-authority/00BF,London Borough of Sutton,08/09/2017,40109794,"1,801.36",Grasmere Rest Home,11893,Peoples Services Directorate,Residential Care - Ext Provider,G310
http://statistics.data.gov.uk/id/local-authority/00BF,London Borough of Sutton,08/09/2017,40109845,"1,712.32",Grasmere Rest Home,11893,Peoples Services Directorate,Residential Care - Ext Provider,G310
http://statistics.data.gov.uk/id/local-authority/00BF,London Borough of Sutton,01/09/2017,6915845,875.00,Greater London Authority,11908,HRA Directorate,Other Services,F340
http://statistics.data.gov.uk/id/local-authority/00BF,London Borough of Sutton,13/09/2017,1242267,"70,938.67",Green Wrythe Primary School,11902,Peoples Services Directorate,Top-up Funding,G064
http://statistics.data.gov.uk/id/local-authority/00BF,London Borough of Sutton,08/09/2017,40109370,"5,616.08",Greenfield Care Homes Limited,22712,Peoples Services Directorate,Residential Care - Ext Provider,G310
http://statistics.data.gov.uk/id/local-authority/00BF,London Borough of Sutton,13/09/2017,1242280,900.00,Greenshaw Learning Trust t/a Victor Seymour Infants School,29002,Peoples Services Directorate,Top-up Funding,G064
http://statistics.data.gov.uk/id/local-authority/00BF,London Borough of Sutton,18/09/2017,1242474,"9,119.25",Greenshaw Learning Trust t/a Victor Seymour Infants School,29002,Peoples Services Directorate,Non-Maintained Childrens' Nurseries - 2 Year Olds,G404
http://statistics.data.gov.uk/id/local-authority/00BF,London Borough of Sutton,13/09/2017,1242237,700.00,Greenwich Leisure Ltd,19543,Peoples Services Directorate,Non-Maintained Childrens' Nurseries - 3 & 4 yr olds,G405
http://statistics.data.gov.uk/id/local-authority/00BF,London Borough of Sutton,18/09/2017,1242524,"14,725.50",Greenwich Leisure Ltd,19543,Peoples Services Directorate,Non-Maintained Childrens' Nurseries - 3 & 4 yr olds,G405
http://statistics.data.gov.uk/id/local-authority/00BF,London Borough of Sutton,05/09/2017,6916102,"6,009.75",Gresham Office Furniture,29904,Peoples Services Directorate,Furniture & Fittings,Y500
http://statistics.data.gov.uk/id/local-authority/00BF,London Borough of Sutton,31/07/2017,6915809,"8,241.50",Gunfire Ltd,97713,Peoples Services Directorate,Building Works -Main Contractor,Y350
http://statistics.data.gov.uk/id/local-authority/00BF,London Borough of Sutton,04/09/2017,6916241,"2,929.00",Guys and St Thomas NHS Foundation Trust,25430,Peoples Services Directorate,Provider Contract Payments,F470
http://statistics.data.gov.uk/id/local-authority/00BF,London Borough of Sutton,18/08/2017,6916506,"1,650.00",Hackbridge Primary School,12000,Peoples Services Directorate,Building Works -Main Contractor,Y350
http://statistics.data.gov.uk/id/local-authority/00BF,London Borough of Sutton,18/08/2017,6916506,"2,173.00",Hackbridge Primary School,12000,Peoples Services Directorate,Building Works -Main Contractor,Y350
http://statistics.data.gov.uk/id/local-authority/00BF,London Borough of Sutton,18/08/2017,6916506,"3,873.00",Hackbridge Primary School,12000,Peoples Services Directorate,Equipment It,Y523
http://statistics.data.gov.uk/id/local-authority/00BF,London Borough of Sutton,13/09/2017,1242268,"1,450.00",Harris Junior Acadamy Carshalton,25440,Peoples Services Directorate,Top-up Funding,G064
http://statistics.data.gov.uk/id/local-authority/00BF,London Borough of Sutton,08/09/2017,40109806,"3,316.88",Haydon Park Lodge,12002,Peoples Services Directorate,Residential Care - Ext Provider,G310
http://statistics.data.gov.uk/id/local-authority/00BF,London Borough of Sutton,08/09/2017,40109816,"4,263.00",Haydon Park Lodge,12002,Peoples Services Directorate,Residential Care - Ext Provider,G310
http://statistics.data.gov.uk/id/local-authority/00BF,London Borough of Sutton,18/09/2017,1242544,"2,100.00",Hayleigh Jelley,25638,Peoples Services Directorate,Non-Maintained Childrens' Nurseries - 3 & 4 yr olds,G405
http://statistics.data.gov.uk/id/local-authority/00BF,London Borough of Sutton,28/07/2017,6916740,"3,250.00",Hays Specialist Recruitment Ltd,18016,Chief Executive's Directorate,Subscriptions - General,F450
http://statistics.data.gov.uk/id/local-authority/00BF,London Borough of Sutton,31/08/2017,40109167,"11,625.00",Heartwood Care,28813,Peoples Services Directorate,Residential Care-Children,G330
http://statistics.data.gov.uk/id/local-authority/00BF,London Borough of Sutton,08/09/2017,40109349,"6,988.00",Heathcotes (Southern) Limited,26792,Peoples Services Directorate,Residential Care - Ext Provider,G310
http://statistics.data.gov.uk/id/local-authority/00BF,London Borough of Sutton,08/09/2017,40109586,"8,400.00",Heathcotes (Southern) Limited,26792,Peoples Services Directorate,Residential Care - Ext Provider,G310
http://statistics.data.gov.uk/id/local-authority/00BF,London Borough of Sutton,08/09/2017,40109526,"3,600.00",Heatherwood Nursing Home,17510,Peoples Services Directorate,Nursing Care - Ext Provider,G311
http://statistics.data.gov.uk/id/local-authority/00BF,London Borough of Sutton,08/09/2017,40109584,"3,600.00",Heatherwood Nursing Home,17510,Peoples Services Directorate,Nursing Care - Ext Provider,G311
http://statistics.data.gov.uk/id/local-authority/00BF,London Borough of Sutton,08/09/2017,40109617,"3,400.00",Heatherwood Nursing Home,17510,Peoples Services Directorate,Nursing Care - Ext Provider,G311
http://statistics.data.gov.uk/id/local-authority/00BF,London Borough of Sutton,05/09/2017,40109286,710.16,Help for Carers,22413,Peoples Services Directorate,Provider Contract Payments,F470
http://statistics.data.gov.uk/id/local-authority/00BF,London Borough of Sutton,05/09/2017,40109295,758.58,Help for Carers,22413,Peoples Services Directorate,Provider Contract Payments,F470
http://statistics.data.gov.uk/id/local-authority/00BF,London Borough of Sutton,08/09/2017,40109553,"3,600.00",Hendford Nursing Home,12071,Peoples Services Directorate,Nursing Care - Ext Provider,G311
http://statistics.data.gov.uk/id/local-authority/00BF,London Borough of Sutton,08/09/2017,40109570,"3,848.00",Hendford Nursing Home,12071,Peoples Services Directorate,Nursing Care - Ext Provider,G311
http://statistics.data.gov.uk/id/local-authority/00BF,London Borough of Sutton,14/09/2017,6916523,"1,189.48",Heritage Care Ltd,21702,Peoples Services Directorate,Agency Services,G431
http://statistics.data.gov.uk/id/local-authority/00BF,London Borough of Sutton,14/09/2017,6916524,"26,047.20",Heritage Care Ltd,21702,Peoples Services Directorate,Provider Contract Payments,F470
http://statistics.data.gov.uk/id/local-authority/00BF,London Borough of Sutton,29/08/2017,40109407,"2,016.00",HF Trust Ltd,12131,Peoples Services Directorate,One to One Care,G335
http://statistics.data.gov.uk/id/local-authority/00BF,London Borough of Sutton,29/08/2017,40109416,"2,784.92",HF Trust Ltd,12131,Peoples Services Directorate,Supported Living - Ext Provider,G306
http://statistics.data.gov.uk/id/local-authority/00BF,London Borough of Sutton,08/09/2017,40109737,"2,700.08",HF Trust Ltd,12131,Peoples Services Directorate,Residential Care - Ext Provider,G310
http://statistics.data.gov.uk/id/local-authority/00BF,London Borough of Sutton,08/09/2017,40109819,"2,228.76",HF Trust Ltd,12131,Peoples Services Directorate,Residential Care - Ext Provider,G310
http://statistics.data.gov.uk/id/local-authority/00BF,London Borough of Sutton,08/09/2017,40109832,"2,645.08",HF Trust Ltd,12131,Peoples Services Directorate,Residential Care - Ext Provider,G310
http://statistics.data.gov.uk/id/local-authority/00BF,London Borough of Sutton,12/09/2017,6917086,"4,946.50",Higher Elevations Ltd,99815,"Environment, Housing & Regeneration Directorate",Grants -Made,Y610
http://statistics.data.gov.uk/id/local-authority/00BF,London Borough of Sutton,31/08/2017,6915656,"3,764.02",Higher Level Care (HLC),24443,Peoples Services Directorate,Approved Lodgings,H323
http://statistics.data.gov.uk/id/local-authority/00BF,London Borough of Sutton,31/08/2017,6915657,"2,878.35",Higher Level Care (HLC),24443,Peoples Services Directorate,Approved Lodgings,H323
http://statistics.data.gov.uk/id/local-authority/00BF,London Borough of Sutton,31/08/2017,6915658,"3,764.02",Higher Level Care (HLC),24443,Peoples Services Directorate,Approved Lodgings,H323
http://statistics.data.gov.uk/id/local-authority/00BF,London Borough of Sutton,31/08/2017,6915659,"4,317.37",Higher Level Care (HLC),24443,Peoples Services Directorate,Approved Lodgings,H323
http://statistics.data.gov.uk/id/local-authority/00BF,London Borough of Sutton,31/08/2017,6915662,"3,764.02",Higher Level Care (HLC),24443,Peoples Services Directorate,Approved Lodgings,H323
http://statistics.data.gov.uk/id/local-authority/00BF,London Borough of Sutton,31/08/2017,6915735,"2,624.85",Higher Level Care (HLC),24443,Peoples Services Directorate,Approved Lodgings,H323
http://statistics.data.gov.uk/id/local-authority/00BF,London Borough of Sutton,31/08/2017,40109148,"4,020.39",Higher Level Care (HLC),24443,Peoples Services Directorate,Approved Lodgings,H323
http://statistics.data.gov.uk/id/local-authority/00BF,London Borough of Sutton,31/08/2017,40109149,"4,020.39",Higher Level Care (HLC),24443,Peoples Services Directorate,Approved Lodgings,H323
http://statistics.data.gov.uk/id/local-authority/00BF,London Borough of Sutton,31/08/2017,40109150,"4,020.39",Higher Level Care (HLC),24443,Peoples Services Directorate,Approved Lodgings,H323
http://statistics.data.gov.uk/id/local-authority/00BF,London Borough of Sutton,31/08/2017,40109152,"2,932.16",Higher Level Care (HLC),24443,Peoples Services Directorate,Approved Lodgings,H323
http://statistics.data.gov.uk/id/local-authority/00BF,London Borough of Sutton,31/08/2017,40109191,"4,020.39",Higher Level Care (HLC),24443,Peoples Services Directorate,Accommodation - Supported Living,H201
http://statistics.data.gov.uk/id/local-authority/00BF,London Borough of Sutton,31/08/2017,40109192,"4,020.39",Higher Level Care (HLC),24443,Peoples Services Directorate,Accommodation - Supported Living,H201
http://statistics.data.gov.uk/id/local-authority/00BF,London Borough of Sutton,31/08/2017,40109193,"4,020.39",Higher Level Care (HLC),24443,Peoples Services Directorate,Approved Lodgings,H323
http://statistics.data.gov.uk/id/local-authority/00BF,London Borough of Sutton,31/08/2017,40109194,"2,692.04",Higher Level Care (HLC),24443,Peoples Services Directorate,Accommodation - Supported Living,H201
http://statistics.data.gov.uk/id/local-authority/00BF,London Borough of Sutton,31/08/2017,40109195,"1,426.59",Higher Level Care (HLC),24443,Peoples Services Directorate,Approved Lodgings,H323
http://statistics.data.gov.uk/id/local-authority/00BF,London Borough of Sutton,31/08/2017,40109196,"4,020.39",Higher Level Care (HLC),24443,Peoples Services Directorate,Accommodation - Supported Living,H201
http://statistics.data.gov.uk/id/local-authority/00BF,London Borough of Sutton,31/08/2017,40109216,"4,020.39",Higher Level Care (HLC),24443,Peoples Services Directorate,Accommodation - Supported Living,H201
http://statistics.data.gov.uk/id/local-authority/00BF,London Borough of Sutton,31/08/2017,40109243,"4,020.39",Higher Level Care (HLC),24443,Peoples Services Directorate,Approved Lodgings,H323
http://statistics.data.gov.uk/id/local-authority/00BF,London Borough of Sutton,31/08/2017,40109271,"4,020.39",Higher Level Care (HLC),24443,Peoples Services Directorate,Approved Lodgings,H323
http://statistics.data.gov.uk/id/local-authority/00BF,London Borough of Sutton,31/08/2017,40109272,"4,020.39",Higher Level Care (HLC),24443,Peoples Services Directorate,Approved Lodgings,H323
http://statistics.data.gov.uk/id/local-authority/00BF,London Borough of Sutton,05/09/2017,40114505,"4,249.70",Higher Level Care (HLC),24443,Peoples Services Directorate,Approved Lodgings,H323
http://statistics.data.gov.uk/id/local-authority/00BF,London Borough of Sutton,13/09/2017,1242269,"1,866.66",Highview Primary School,12097,Peoples Services Directorate,Top-up Funding,G064
http://statistics.data.gov.uk/id/local-authority/00BF,London Borough of Sutton,18/08/2017,6916237,"39,527.00",Highview Primary School,12097,Peoples Services Directorate,Building Works -Main Contractor,Y350
http://statistics.data.gov.uk/id/local-authority/00BF,London Borough of Sutton,15/08/2017,6916481,"1,100.00",Hilda Mallett,26310,"Environment, Housing & Regeneration Directorate",General Office Expenses,F235
http://statistics.data.gov.uk/id/local-authority/00BF,London Borough of Sutton,15/08/2017,6916482,"1,209.00",Hilda Mallett,26310,"Environment, Housing & Regeneration Directorate",General Office Expenses,F235
http://statistics.data.gov.uk/id/local-authority/00BF,London Borough of Sutton,15/08/2017,6916483,"1,209.00",Hilda Mallett,26310,"Environment, Housing & Regeneration Directorate",General Office Expenses,F235
http://statistics.data.gov.uk/id/local-authority/00BF,London Borough of Sutton,08/09/2017,40109567,"3,380.00",Hill House Nursing Home Ltd,17378,Peoples Services Directorate,Nursing Care - Ext Provider,G311
http://statistics.data.gov.uk/id/local-authority/00BF,London Borough of Sutton,01/08/2017,40109249,"16,120.00",Hillcrest Childrens Services Ltd,25817,Peoples Services Directorate,Residential Care-Children,G330
http://statistics.data.gov.uk/id/local-authority/00BF,London Borough of Sutton,18/09/2017,1242451,"1,215.90",Hillcrest Montessori,12101,Peoples Services Directorate,Non-Maintained Childrens' Nurseries - 2 Year Olds,G404
http://statistics.data.gov.uk/id/local-authority/00BF,London Borough of Sutton,18/09/2017,1242504,"2,558.67",Hillcrest Montessori,12101,Peoples Services Directorate,Non-Maintained Childrens' Nurseries - 3 & 4 yr olds,G405
http://statistics.data.gov.uk/id/local-authority/00BF,London Borough of Sutton,12/09/2017,6916398,418.50,HM Land Registry,27717,Resources Directorate,Fees - Land Registry (Corporate Legal),F295
http://statistics.data.gov.uk/id/local-authority/00BF,London Borough of Sutton,08/09/2017,40109753,"6,565.76",HMT CARE LTD,16498,Peoples Services Directorate,Residential Care - Ext Provider,G310
http://statistics.data.gov.uk/id/local-authority/00BF,London Borough of Sutton,18/09/2017,1242505,"5,876.00",Holmwood Pre-School,12146,Peoples Services Directorate,Non-Maintained Childrens' Nurseries - 3 & 4 yr olds,G405
http://statistics.data.gov.uk/id/local-authority/00BF,London Borough of Sutton,13/09/2017,1242270,"15,103.34",Holy Trinity C Of E Junior School,12152,Peoples Services Directorate,Top-up Funding,G064
http://statistics.data.gov.uk/id/local-authority/00BF,London Borough of Sutton,05/09/2017,6916455,455.00,Homes2let,28382,"Environment, Housing & Regeneration Directorate",Bed and Breakfast Accommodation,G400
http://statistics.data.gov.uk/id/local-authority/00BF,London Borough of Sutton,21/09/2017,6917301,455.00,Homes2let,28382,"Environment, Housing & Regeneration Directorate",Bed and Breakfast Accommodation,G400
http://statistics.data.gov.uk/id/local-authority/00BF,London Borough of Sutton,08/09/2017,40109538,"2,444.00",Hopelit UK Ltd,12165,Peoples Services Directorate,Nursing Care - Ext Provider,G311
http://statistics.data.gov.uk/id/local-authority/00BF,London Borough of Sutton,08/09/2017,40109543,"3,200.00",Hopelit UK Ltd,12165,Peoples Services Directorate,Nursing Care - Ext Provider,G311
http://statistics.data.gov.uk/id/local-authority/00BF,London Borough of Sutton,08/09/2017,40109563,"3,000.00",Hopelit UK Ltd,12165,Peoples Services Directorate,Nursing Care - Ext Provider,G311
http://statistics.data.gov.uk/id/local-authority/00BF,London Borough of Sutton,08/09/2017,40109583,"3,400.00",Hopelit UK Ltd,12165,Peoples Services Directorate,Nursing Care - Short Term Placements,G328
http://statistics.data.gov.uk/id/local-authority/00BF,London Borough of Sutton,08/09/2017,40109667,"3,400.00",Hopelit UK Ltd,12165,Peoples Services Directorate,Nursing Care - Ext Provider,G311
http://statistics.data.gov.uk/id/local-authority/00BF,London Borough of Sutton,08/09/2017,40109837,"2,509.20",Hopelit UK Ltd,12165,Peoples Services Directorate,Nursing Care - Ext Provider,G311
http://statistics.data.gov.uk/id/local-authority/00BF,London Borough of Sutton,13/09/2017,1242227,700.00,Hopscotch Day Nursery,12134,Peoples Services Directorate,Non-Maintained Childrens' Nurseries - 3 & 4 yr olds,G405
http://statistics.data.gov.uk/id/local-authority/00BF,London Borough of Sutton,18/09/2017,1242452,"1,823.85",Hopscotch Day Nursery,12134,Peoples Services Directorate,Non-Maintained Childrens' Nurseries - 2 Year Olds,G404
http://statistics.data.gov.uk/id/local-authority/00BF,London Borough of Sutton,18/09/2017,1242506,"13,171.00",Hopscotch Day Nursery,12134,Peoples Services Directorate,Non-Maintained Childrens' Nurseries - 3 & 4 yr olds,G405
http://statistics.data.gov.uk/id/local-authority/00BF,London Borough of Sutton,04/09/2017,6915972,"1,000.00",Horizon Church,28307,"Environment, Housing & Regeneration Directorate",Assistance to Voluntary Organisations,F471
http://statistics.data.gov.uk/id/local-authority/00BF,London Borough of Sutton,01/09/2017,6916020,"4,780.33",Hounslow & Richmond Community Healthcare,25124,Peoples Services Directorate,Provider Contract Payments,F470
http://statistics.data.gov.uk/id/local-authority/00BF,London Borough of Sutton,01/09/2017,6916020,"12,818.00",Hounslow & Richmond Community Healthcare,25124,Peoples Services Directorate,Provider Contract Payments,F470
